Workbook

Sheet RAPPORT
C2: Projectnaam: | G2: (invullen…)
C3: Locatie site: | G3: (invullen…)
C4: Assessor: | G4: (invullen…)
C5: Datum: | G5: (invullen…)
C7: Voorbereidingsfase (%) | E7: Ontwerpfase (%) | G7: Categoriescore (%) | I7: Controle uigevoerd?
C8: fase 1 | E8: fase 2 | G8: fase 2 | I8: fase 3 | K8: thema's
K10: TYPE: | L10: ='Invulscherm 1 - Weging'!F3 -> PRODUCTIEGERICHT & GEMENGD BEDRIJVENTERREIN | P10: WEGING (%) | S10: SCORE (%)
C12: ='Invulscherm 1 - Weging'!F7/100 -> 0.092 | E12: ='Invulscherm 1 - Weging'!I7/100 -> 0.108 | G12: ='Invulscherm 2 - Scores'!J4/100 -> 0 | L12: 1. MAN - MANAGEMENT | P12: 0.2 | S12: =G12 -> 0
C13: =SUM('Invulscherm 2 - Scores'!J6,'Invulscherm 2 - Scores'!J7,'Invulscherm 2 - Scores'!J8,'Invulscherm 2 - Scores'!J11,'Invulscherm 2 - Scores'!J13,'Invulscherm 2 - Scores'!J14,'Invulscherm 2 - Scores'!J17,'Invulscherm 2 - Scores'!J19,'Invulscherm 2 - Scores'!J22,'Invulscherm 2 - Scores'!J24)/100 -> 0 | E13: =SUM('Invulscherm 2 - Scores'!J9,'Invulscherm 2 - Scores'!J12,'Invulscherm 2 - Scores'!J15,'Invulscherm 2 - Scores'!J18,'Invulscherm 2 - Scores'!J20,'Invulscherm 2 - Scores'!J23,'Invulscherm 2 - Scores'!J25,'Invulscherm 2 - Scores'!J26,'Invulscherm 2 - Scores'!J27,'Invulscherm 2 - Scores'!J28,'Invulscherm 2 - Scores'!J29,'Invulscherm 2 - Scores'!J30)/100 -> 0
C15: ='Invulscherm 1 - Weging'!F31/100 -> 0.048 | E15: ='Invulscherm 1 - Weging'!I31/100 -> 0.102 | G15: ='Invulscherm 2 - Scores'!J31/100 -> 0 | L15: 2. SEW - SOCIAAL & ECONOMISCH WELZIJN | P15: 0.15 | S15: =G15 -> 0
C16: =SUM('Invulscherm 2 - Scores'!J38,'Invulscherm 2 - Scores'!J39,'Invulscherm 2 - Scores'!J41,'Invulscherm 2 - Scores'!J45)/100 -> 0 | E16: =SUM('Invulscherm 2 - Scores'!J33,'Invulscherm 2 - Scores'!J34,'Invulscherm 2 - Scores'!J35,'Invulscherm 2 - Scores'!J36,'Invulscherm 2 - Scores'!J42,'Invulscherm 2 - Scores'!J43,'Invulscherm 2 - Scores'!J46)/100 -> 0
C18: ='Invulscherm 1 - Weging'!F46/100 -> 0.04615384615 | E18: ='Invulscherm 1 - Weging'!I46/100 -> 0.1038461538 | G18: ='Invulscherm 2 - Scores'!J47/100 -> 0 | L18: 3. IOR - INFRASTRUCTUUR & OPENBARE RUIMTE | P18: 0.15 | S18: =G18 -> 0
C19: =SUM('Invulscherm 2 - Scores'!J49,'Invulscherm 2 - Scores'!J51,'Invulscherm 2 - Scores'!J54,'Invulscherm 2 - Scores'!J56)/100 -> 0 | E19: =SUM('Invulscherm 2 - Scores'!J50,'Invulscherm 2 - Scores'!J52,'Invulscherm 2 - Scores'!J55,'Invulscherm 2 - Scores'!J57,'Invulscherm 2 - Scores'!J58,'Invulscherm 2 - Scores'!J60,'Invulscherm 2 - Scores'!J61,'Invulscherm 2 - Scores'!J62)/100 -> 0
C21: ='Invulscherm 1 - Weging'!F59/100 -> 0.08035714286 | E21: ='Invulscherm 1 - Weging'!I59/100 -> 0.06964285714 | G21: ='Invulscherm 2 - Scores'!J63/100 -> 0 | L21: 4. BRE - BRONNEN & ENERGIE | P21: 0.15 | S21: =G21 -> 0
C22: =SUM('Invulscherm 2 - Scores'!J65,'Invulscherm 2 - Scores'!J67,'Invulscherm 2 - Scores'!J69,'Invulscherm 2 - Scores'!J71,'Invulscherm 2 - Scores'!J74,'Invulscherm 2 - Scores'!J77)/100 -> 0 | E22: =SUM('Invulscherm 2 - Scores'!J66,'Invulscherm 2 - Scores'!J68,'Invulscherm 2 - Scores'!J70,'Invulscherm 2 - Scores'!J72,'Invulscherm 2 - Scores'!J75,'Invulscherm 2 - Scores'!J78)/100 -> 0
C24: ='Invulscherm 1 - Weging'!F70/100 -> 0.08421052632 | E24: ='Invulscherm 1 - Weging'!I70/100 -> 0.1157894737 | G24: ='Invulscherm 2 - Scores'!J79/100 -> 0 | L24: 5. EDL - ECOLOGIE & DUURZAAM LANDGEBRUIK | P24: 0.2 | S24: =G24 -> 0
C25: =SUM('Invulscherm 2 - Scores'!J81,'Invulscherm 2 - Scores'!J84,'Invulscherm 2 - Scores'!J86,'Invulscherm 2 - Scores'!J88,'Invulscherm 2 - Scores'!J91,'Invulscherm 2 - Scores'!J94,'Invulscherm 2 - Scores'!J96,'Invulscherm 2 - Scores'!J100)/100 -> 0 | E25: =SUM('Invulscherm 2 - Scores'!J102,'Invulscherm 2 - Scores'!J101,'Invulscherm 2 - Scores'!J98,'Invulscherm 2 - Scores'!J97,'Invulscherm 2 - Scores'!J95,'Invulscherm 2 - Scores'!J92,'Invulscherm 2 - Scores'!J90,'Invulscherm 2 - Scores'!J89,'Invulscherm 2 - Scores'!J87,'Invulscherm 2 - Scores'!J85,'Invulscherm 2 - Scores'!J82)/100 -> 0
C27: ='Invulscherm 1 - Weging'!F87/100 -> 0.08414634146 | E27: ='Invulscherm 1 - Weging'!I87/100 -> 0.06585365854 | G27: ='Invulscherm 2 - Scores'!J103/100 -> 0 | L27: 6. TRA - TRANSPORT | P27: 0.15 | S27: =G27 -> 0
C28: =SUM('Invulscherm 2 - Scores'!J105,'Invulscherm 2 - Scores'!J107,'Invulscherm 2 - Scores'!J110,'Invulscherm 2 - Scores'!J113,'Invulscherm 2 - Scores'!J115,'Invulscherm 2 - Scores'!J117,'Invulscherm 2 - Scores'!J120,'Invulscherm 2 - Scores'!J122,'Invulscherm 2 - Scores'!J124,'Invulscherm 2 - Scores'!J126)/100 -> 0 | E28: =SUM('Invulscherm 2 - Scores'!J106,'Invulscherm 2 - Scores'!J108,'Invulscherm 2 - Scores'!J111,'Invulscherm 2 - Scores'!J114,'Invulscherm 2 - Scores'!J116,'Invulscherm 2 - Scores'!J118,'Invulscherm 2 - Scores'!J121,'Invulscherm 2 - Scores'!J123,'Invulscherm 2 - Scores'!J127)/100 -> 0
K30: totale indicatieve score | P30: 1 | S30: =SUM(S12,S15,S18,S21,S24,S27) -> 0
C32: Indicatie classificatie: | P32: =IF(S30<0.3,"-",IF(AND(0.3<S30,S30<0.45),"*",IF(AND(0.45<S30,S30<0.55),"**",IF(AND(0.55<S30,S30<0.7),"***",IF(AND(0.7<S30,S30<0.85),"****","*****"))))) -> -
C34: Toelichting classificatie:
C36: UITMUNTEND | I36: ≥ 85% | L36: * * * * *
C39: UITSTEKEND | I39: ≥ 70% | L39: * * * *
C42: ZEER GOED | I42: ≥ 55% | L42: * * *
C45: GOED | I45: ≥ 45% | L45: * *
C48: GESLAAGD | I48: ≥ 30% | L48: *
C51: ONVOLDOENDE | I51: < 30%
C62: Projectnaam: | G62: =G2 -> (invullen…)
C63: Locatie site: | G63: =G3 -> (invullen…)
C64: Assessor: | G64: (invullen…)
C65: Datum: | G65: (invullen…)
C66: Per thema kunnen maximaal 3 wijzigingen doorgevoerd worden. Indien in het 'invulblad 1' wijzigingen zijn aangebracht dan is de onderbouwing hieronder weergegeven. Wijzigingen (inclusief toelichting) worden afgekeurd bij certificering, als deze niet bijdragen aan het verduurzamen van de economische site / bedrijventerrein.
C67: Toelichting op wijzigingen 'Invulscherm 1'
C69: 1. MAN - MANAGEMENT
C71: Wijziging 1: | E71: ='Invulscherm 1b'!E8:T8 -> (invullen…)
C72: Wijziging 2: | E72: ='Invulscherm 1b'!E9:T9 -> (invullen…)
C73: Wijziging 3: | E73: ='Invulscherm 1b'!E10:T10 -> (invullen…)
C75: 2. SEW - SOCIAAL & ECONOMISCH WELZIJN
C77: Wijziging 1: | E77: ='Invulscherm 1b'!E14:T14 -> (invullen…)
C78: Wijziging 2: | E78: ='Invulscherm 1b'!E15:T15 -> (invullen…)
C79: Wijziging 3: | E79: ='Invulscherm 1b'!E16:T16 -> (invullen…)
C81: 3. IOR - INFRASTRUCTUUR & OPENBARE RUIMTE
C83: Wijziging 1: | E83: ='Invulscherm 1b'!E20:T20 -> (invullen…)
C84: Wijziging 2: | E84: ='Invulscherm 1b'!E21:T21 -> (invullen…)
C85: Wijziging 3: | E85: ='Invulscherm 1b'!E22:T22 -> (invullen…)
C87: 4. BRE - BRONNEN & ENERGIE
C89: Wijziging 1: | E89: ='Invulscherm 1b'!E26:T26 -> (invullen…)
C90: Wijziging 2: | E90: ='Invulscherm 1b'!E27:T27 -> (invullen…)
C91: Wijziging 3: | E91: ='Invulscherm 1b'!E28:T28 -> (invullen…)
C93: 5. EDL - ECOLOGIE & DUURZAAM LANDGEBRUIK
C95: Wijziging 1: | E95: ='Invulscherm 1b'!E32 -> (invullen…)
C96: Wijziging 2: | E96: ='Invulscherm 1b'!E33 -> (invullen…)
C97: Wijziging 3: | E97: ='Invulscherm 1b'!E34:T34 -> (invullen…)
C99: 6. TRA - TRANSPORT
C101: Wijziging 1: | E101: ='Invulscherm 1b'!E38:T38 -> (invullen…)
C102: Wijziging 2: | E102: ='Invulscherm 1b'!E39:T39 -> (invullen…)
C103: Wijziging 3: | E103: ='Invulscherm 1b'!E40:T40 -> (invullen…)
C106: Beoordeling

Sheet Invulscherm 1 - Weging
I2: =IF(S15=1,"Nieuw Terrein","Bestaand Terrein") -> Nieuw Terrein
A3: Maak keuze: | F3: =IF(S14=1,"PRODUCTIEGERICHT & GEMENGD BEDRIJVENTERREIN",IF(S14=2,"KANTOOR TERREIN",IF(S14=3,"VRIJETIJDSGERICHT BEDRIJVENTERREIN",IF(S14=4,"LOGISTIEK TERREIN")))) -> PRODUCTIEGERICHT & GEMENGD BEDRIJVENTERREIN | I3: =IF(S15=1,"(nieuw)","(bestaand)") -> (nieuw) | N3: Bestaande Sites Certificaat
A4: Maak keuze: | D4: 1-Voorbereidingsfase | G4: 2-Ontwerpfase | J4: Categorie weging | N4: Checklist Bestaande Sites
D5: Geef accent | E5: Status | F5: Weging | G5: Geef accent | H5: Status | I5: Weging | N5: Weging | U5: Beschikbaar | V5: Beschikbaar
A6: MAN | B6: 1. MANAGEMENT (20%) | D6: =IF(SUM(Q9:R29)=0,"U heeft nog geen wijzigingen in dit thema doorgevoerd",IF(SUM(Q9:R29)=1,"Let op! U kunt nog 2 wijziging binnen dit thema doorvoeren",IF(SUM(Q9:R29)=2,"Let op! U kunt nog 1 wijziging voor dit thema doorvoeren",IF(SUM(Q9:R29)=3,"LET OP! U mag geen wijzigingen meer doorvoeren binnen dit thema","STOP! U heeft te veel wijzigingen doorgevoerd. Klik op de knop 'basiswaarden' om te resetten")))) -> U heeft nog geen wijzigingen in dit thema doorgevoerd | J6: =SUM(I7+F7) -> 20
F7: =SUM(F9:F23) -> 9.2 | I7: =SUM(I12:I29) -> 10.8 | S7: 1 - Productiegericht & gemengd bedrijventerrein | T7: (i.e. traditionele transport en distributie, industrie, afvalverwerking, recycling) | U7: 11 | V7: 9
A8: MAN1 | B8: Markt | S8: 2 - Kantoor terrein | T8: (i.e. kantoren- en dienstenzones, kantoren publieksgericht)
A9: MAN1.1 | C9: Marktanalyse (marktvraag & welke eisen stelt markt aan de locatie) | E9: =IF(K9=1,"minder belangrijk",IF(K9=2,"relevant",IF(K9=3,"extra belangrijk"))) -> extra belangrijk | F9: =IF(K9=1,U9,IF(K9=2,U9*2,IF(K9=3,U9*3))) -> 1.2 | K9: =IFERROR(IF(OR(INDEX('Criteria-Status-Tabel'!$A$5:$K$128,MATCH("1-"&'Invulscherm 1 - Weging'!$A9,'Criteria-Status-Tabel'!$A$5:$A$128,0),MATCH(10*$S$15+$S$14,'Criteria-Status-Tabel'!$A$5:$K$5,0))="relevant",INDEX('Criteria-Status-Tabel'!$A$5:$K$128,MATCH("1-"&'Invulscherm 1 - Weging'!$A9,'Criteria-Status-Tabel'!$A$5:$A$128,0),MATCH(10*$S$15+$S$14,'Criteria-Status-Tabel'!$A$5:$K$5,0))="verplicht")=TRUE,2,IF(INDEX('Criteria-Status-Tabel'!$A$5:$K$128,MATCH("1-"&'Invulscherm 1 - Weging'!$A9,'Criteria-Status-Tabel'!$A$5:$A$128,0),MATCH(10*$S$15+$S$14,'Criteria-Status-Tabel'!$A$5:$K$5,0))="extra belangrijk",3,1)),"1") -> 3 | O9: =IFERROR(IF(OR(INDEX('Criteria-Status-Tabel'!$A$5:$K$128,MATCH("1-"&'Invulscherm 1 - Weging'!$A9,'Criteria-Status-Tabel'!$A$5:$A$128,0),MATCH(10*$S$15+$S$14,'Criteria-Status-Tabel'!$A$5:$K$5,0))="relevant",INDEX('Criteria-Status-Tabel'!$A$5:$K$128,MATCH("1-"&'Invulscherm 1 - Weging'!$A9,'Criteria-Status-Tabel'!$A$5:$A$128,0),MATCH(10*$S$15+$S$14,'Criteria-Status-Tabel'!$A$5:$K$5,0))="verplicht")=TRUE,2,IF(INDEX('Criteria-Status-Tabel'!$A$5:$K$128,MATCH("1-"&'Invulscherm 1 - Weging'!$A9,'Criteria-Status-Tabel'!$A$5:$A$128,0),MATCH(10*$S$15+$S$14,'Criteria-Status-Tabel'!$A$5:$K$5,0))="extra belangrijk",3,1)),"1") -> 3 | Q9: =IF(K9<>O9,1,0) -> 0 | R9: =IF(L9<>P9,1,0) -> 0 | S9: 3 - Vrijetijdsgericht bedrijventerrein | T9: (i.e. kleinhandel, leisure (sportstadia, beurzen)) | U9: =SUM($U$7+$V$7)/SUM($K$9:$L$29) -> 0.4 | W9: Alleen uit bij 'bestaande terreinen'
A10: MAN1.2 | C10: Effect marktanalyse op ruimtelijk ontwerp | E10: =IF(K10=1,"minder belangrijk",IF(K10=2,"relevant",IF(K10=3,"extra belangrijk"))) -> extra belangrijk | F10: =IF(K10=1,U10,IF(K10=2,U10*2,IF(K10=3,U10*3))) -> 1.2 | K10: =IFERROR(IF(OR(INDEX('Criteria-Status-Tabel'!$A$5:$K$128,MATCH("1-"&'Invulscherm 1 - Weging'!$A10,'Criteria-Status-Tabel'!$A$5:$A$128,0),MATCH(10*$S$15+$S$14,'Criteria-Status-Tabel'!$A$5:$K$5,0))="relevant",INDEX('Criteria-Status-Tabel'!$A$5:$K$128,MATCH("1-"&'Invulscherm 1 - Weging'!$A10,'Criteria-Status-Tabel'!$A$5:$A$128,0),MATCH(10*$S$15+$S$14,'Criteria-Status-Tabel'!$A$5:$K$5,0))="verplicht")=TRUE,2,IF(INDEX('Criteria-Status-Tabel'!$A$5:$K$128,MATCH("1-"&'Invulscherm 1 - Weging'!$A10,'Criteria-Status-Tabel'!$A$5:$A$128,0),MATCH(10*$S$15+$S$14,'Criteria-Status-Tabel'!$A$5:$K$5,0))="extra belangrijk",3,1)),"1") -> 3 | O10: =IFERROR(IF(OR(INDEX('Criteria-Status-Tabel'!$A$5:$K$128,MATCH("1-"&'Invulscherm 1 - Weging'!$A10,'Criteria-Status-Tabel'!$A$5:$A$128,0),MATCH(10*$S$15+$S$14,'Criteria-Status-Tabel'!$A$5:$K$5,0))="relevant",INDEX('Criteria-Status-Tabel'!$A$5:$K$128,MATCH("1-"&'Invulscherm 1 - Weging'!$A10,'Criteria-Status-Tabel'!$A$5:$A$128,0),MATCH(10*$S$15+$S$14,'Criteria-Status-Tabel'!$A$5:$K$5,0))="verplicht")=TRUE,2,IF(INDEX('Criteria-Status-Tabel'!$A$5:$K$128,MATCH("1-"&'Invulscherm 1 - Weging'!$A10,'Criteria-Status-Tabel'!$A$5:$A$128,0),MATCH(10*$S$15+$S$14,'Criteria-Status-Tabel'!$A$5:$K$5,0))="extra belangrijk",3,1)),"1") -> 3 | Q10: 0 | R10: 0 | S10: 4 - Logistiek terrein | T10: (Standaar weging - geen eenduidig profiel) | U10: =SUM($U$7+$V$7)/SUM($K$9:$L$29) -> 0.4 | W10: Alleen uit bij 'bestaande terreinen'
A11: MAN1.3 | C11: Maatschappelijk kosten baten (MKBA) | E11: extra belangrijk | F11: =IF(K11=1,U11,IF(K11=2,U11*2,IF(K11=3,U11*3))) -> 1.2 | K11: =IFERROR(IF(OR(INDEX('Criteria-Status-Tabel'!$A$5:$K$128,MATCH("1-"&'Invulscherm 1 - Weging'!$A11,'Criteria-Status-Tabel'!$A$5:$A$128,0),MATCH(10*$S$15+$S$14,'Criteria-Status-Tabel'!$A$5:$K$5,0))="relevant",INDEX('Criteria-Status-Tabel'!$A$5:$K$128,MATCH("1-"&'Invulscherm 1 - Weging'!$A11,'Criteria-Status-Tabel'!$A$5:$A$128,0),MATCH(10*$S$15+$S$14,'Criteria-Status-Tabel'!$A$5:$K$5,0))="verplicht")=TRUE,2,IF(INDEX('Criteria-Status-Tabel'!$A$5:$K$128,MATCH("1-"&'Invulscherm 1 - Weging'!$A11,'Criteria-Status-Tabel'!$A$5:$A$128,0),MATCH(10*$S$15+$S$14,'Criteria-Status-Tabel'!$A$5:$K$5,0))="extra belangrijk",3,1)),"1") -> 3 | O11: =IFERROR(IF(OR(INDEX('Criteria-Status-Tabel'!$A$5:$K$128,MATCH("1-"&'Invulscherm 1 - Weging'!$A11,'Criteria-Status-Tabel'!$A$5:$A$128,0),MATCH(10*$S$15+$S$14,'Criteria-Status-Tabel'!$A$5:$K$5,0))="relevant",INDEX('Criteria-Status-Tabel'!$A$5:$K$128,MATCH("1-"&'Invulscherm 1 - Weging'!$A11,'Criteria-Status-Tabel'!$A$5:$A$128,0),MATCH(10*$S$15+$S$14,'Criteria-Status-Tabel'!$A$5:$K$5,0))="verplicht")=TRUE,2,IF(INDEX('Criteria-Status-Tabel'!$A$5:$K$128,MATCH("1-"&'Invulscherm 1 - Weging'!$A11,'Criteria-Status-Tabel'!$A$5:$A$128,0),MATCH(10*$S$15+$S$14,'Criteria-Status-Tabel'!$A$5:$K$5,0))="extra belangrijk",3,1)),"1") -> 3 | Q11: 0 | R11: 0 | S11: 1 - Nieuw bedrijventerrein | T11: (i.e. geen eenduidig profiel) | U11: =SUM($U$7+$V$7)/SUM($K$9:$L$29) -> 0.4 | W11: Alleen uit bij 'bestaande terreinen'
A12: MAN1.4 | C12: Maatschappelijk Verantwoord Ondernemen (MVO) | H12: =IF(L12=1,"minder belangrijk",IF(L12=2,"relevant",IF(L12=3,"extra belangrijk"))) -> relevant | I12: =IF(L12=1,V12,IF(L12=2,V12*2,IF(L12=3,V12*3))) -> 0.8 | L12: =IFERROR(IF(OR(INDEX('Criteria-Status-Tabel'!$A$5:$K$128,MATCH("2-"&'Invulscherm 1 - Weging'!$A12,'Criteria-Status-Tabel'!$A$5:$A$128,0),MATCH(10*$S$15+$S$14,'Criteria-Status-Tabel'!$A$5:$K$5,0))="relevant",INDEX('Criteria-Status-Tabel'!$A$5:$K$128,MATCH("2-"&'Invulscherm 1 - Weging'!$A12,'Criteria-Status-Tabel'!$A$5:$A$128,0),MATCH(10*$S$15+$S$14,'Criteria-Status-Tabel'!$A$5:$K$5,0))="verplicht")=TRUE,2,IF(INDEX('Criteria-Status-Tabel'!$A$5:$K$128,MATCH("2-"&'Invulscherm 1 - Weging'!$A12,'Criteria-Status-Tabel'!$A$5:$A$128,0),MATCH(10*$S$15+$S$14,'Criteria-Status-Tabel'!$A$5:$K$5,0))="extra belangrijk",3,1)),"1") -> 2 | P12: =IFERROR(IF(OR(INDEX('Criteria-Status-Tabel'!$A$5:$K$128,MATCH("2-"&'Invulscherm 1 - Weging'!$A12,'Criteria-Status-Tabel'!$A$5:$A$128,0),MATCH(10*$S$15+$S$14,'Criteria-Status-Tabel'!$A$5:$K$5,0))="relevant",INDEX('Criteria-Status-Tabel'!$A$5:$K$128,MATCH("2-"&'Invulscherm 1 - Weging'!$A12,'Criteria-Status-Tabel'!$A$5:$A$128,0),MATCH(10*$S$15+$S$14,'Criteria-Status-Tabel'!$A$5:$K$5,0))="verplicht")=TRUE,2,IF(INDEX('Criteria-Status-Tabel'!$A$5:$K$128,MATCH("2-"&'Invulscherm 1 - Weging'!$A12,'Criteria-Status-Tabel'!$A$5:$A$128,0),MATCH(10*$S$15+$S$14,'Criteria-Status-Tabel'!$A$5:$K$5,0))="extra belangrijk",3,1)),"1") -> 2 | Q12: 0 | R12: 0 | S12: 2 - Bestaand bedrijventerrein | V12: =SUM($U$7+$V$7)/SUM($K$9:$L$29) -> 0.4
A13: MAN2 | B13: Proces | Q13: 0 | R13: 0 | S13: 3 - Bestaande economische sites
A14: MAN2.1 | C14: Procesaanpak | E14: =IF(K14=2,"verplicht","extra belangrijk") -> verplicht | F14: =IF(K14=2,SUM(U14+U14),(U14*3)) -> 0.8 | H14: =IF(L14=1,"minder belangrijk",IF(L14=2,"relevant",IF(L14=3,"extra belangrijk"))) -> relevant | I14: =IF(L14=1,V14,IF(L14=2,V14*2,IF(L14=3,V14*3))) -> 0.8 | K14: =IFERROR(IF(OR(INDEX('Criteria-Status-Tabel'!$A$5:$K$128,MATCH("1-"&'Invulscherm 1 - Weging'!$A14,'Criteria-Status-Tabel'!$A$5:$A$128,0),MATCH(10*$S$15+$S$14,'Criteria-Status-Tabel'!$A$5:$K$5,0))="relevant",INDEX('Criteria-Status-Tabel'!$A$5:$K$128,MATCH("1-"&'Invulscherm 1 - Weging'!$A14,'Criteria-Status-Tabel'!$A$5:$A$128,0),MATCH(10*$S$15+$S$14,'Criteria-Status-Tabel'!$A$5:$K$5,0))="verplicht")=TRUE,2,IF(INDEX('Criteria-Status-Tabel'!$A$5:$K$128,MATCH("1-"&'Invulscherm 1 - Weging'!$A14,'Criteria-Status-Tabel'!$A$5:$A$128,0),MATCH(10*$S$15+$S$14,'Criteria-Status-Tabel'!$A$5:$K$5,0))="extra belangrijk",3,1)),"1") -> 2 | L14: =IFERROR(IF(OR(INDEX('Criteria-Status-Tabel'!$A$5:$K$128,MATCH("2-"&'Invulscherm 1 - Weging'!$A14,'Criteria-Status-Tabel'!$A$5:$A$128,0),MATCH(10*$S$15+$S$14,'Criteria-Status-Tabel'!$A$5:$K$5,0))="relevant",INDEX('Criteria-Status-Tabel'!$A$5:$K$128,MATCH("2-"&'Invulscherm 1 - Weging'!$A14,'Criteria-Status-Tabel'!$A$5:$A$128,0),MATCH(10*$S$15+$S$14,'Criteria-Status-Tabel'!$A$5:$K$5,0))="verplicht")=TRUE,2,IF(INDEX('Criteria-Status-Tabel'!$A$5:$K$128,MATCH("2-"&'Invulscherm 1 - Weging'!$A14,'Criteria-Status-Tabel'!$A$5:$A$128,0),MATCH(10*$S$15+$S$14,'Criteria-Status-Tabel'!$A$5:$K$5,0))="extra belangrijk",3,1)),"1") -> 2 | O14: =IFERROR(IF(OR(INDEX('Criteria-Status-Tabel'!$A$5:$K$128,MATCH("1-"&'Invulscherm 1 - Weging'!$A14,'Criteria-Status-Tabel'!$A$5:$A$128,0),MATCH(10*$S$15+$S$14,'Criteria-Status-Tabel'!$A$5:$K$5,0))="relevant",INDEX('Criteria-Status-Tabel'!$A$5:$K$128,MATCH("1-"&'Invulscherm 1 - Weging'!$A14,'Criteria-Status-Tabel'!$A$5:$A$128,0),MATCH(10*$S$15+$S$14,'Criteria-Status-Tabel'!$A$5:$K$5,0))="verplicht")=TRUE,2,IF(INDEX('Criteria-Status-Tabel'!$A$5:$K$128,MATCH("1-"&'Invulscherm 1 - Weging'!$A14,'Criteria-Status-Tabel'!$A$5:$A$128,0),MATCH(10*$S$15+$S$14,'Criteria-Status-Tabel'!$A$5:$K$5,0))="extra belangrijk",3,1)),"1") -> 2 | P14: =IFERROR(IF(OR(INDEX('Criteria-Status-Tabel'!$A$5:$K$128,MATCH("2-"&'Invulscherm 1 - Weging'!$A14,'Criteria-Status-Tabel'!$A$5:$A$128,0),MATCH(10*$S$15+$S$14,'Criteria-Status-Tabel'!$A$5:$K$5,0))="relevant",INDEX('Criteria-Status-Tabel'!$A$5:$K$128,MATCH("2-"&'Invulscherm 1 - Weging'!$A14,'Criteria-Status-Tabel'!$A$5:$A$128,0),MATCH(10*$S$15+$S$14,'Criteria-Status-Tabel'!$A$5:$K$5,0))="verplicht")=TRUE,2,IF(INDEX('Criteria-Status-Tabel'!$A$5:$K$128,MATCH("2-"&'Invulscherm 1 - Weging'!$A14,'Criteria-Status-Tabel'!$A$5:$A$128,0),MATCH(10*$S$15+$S$14,'Criteria-Status-Tabel'!$A$5:$K$5,0))="extra belangrijk",3,1)),"1") -> 2 | Q14: 0 | R14: 0 | S14: 1 | U14: =SUM($U$7+$V$7)/SUM($K$9:$L$29) -> 0.4 | V14: =SUM($U$7+$V$7)/SUM($K$9:$L$29) -> 0.4
A15: MAN2.2 | C15: Uitgifteproces | E15: =IF(K15=1,"minder belangrijk",IF(K15=2,"relevant",IF(K15=3,"extra belangrijk"))) -> relevant | F15: =IF(K15=1,U15,IF(K15=2,U15*2,IF(K15=3,U15*3))) -> 0.8 | K15: =IFERROR(IF(OR(INDEX('Criteria-Status-Tabel'!$A$5:$K$128,MATCH("1-"&'Invulscherm 1 - Weging'!$A15,'Criteria-Status-Tabel'!$A$5:$A$128,0),MATCH(10*$S$15+$S$14,'Criteria-Status-Tabel'!$A$5:$K$5,0))="relevant",INDEX('Criteria-Status-Tabel'!$A$5:$K$128,MATCH("1-"&'Invulscherm 1 - Weging'!$A15,'Criteria-Status-Tabel'!$A$5:$A$128,0),MATCH(10*$S$15+$S$14,'Criteria-Status-Tabel'!$A$5:$K$5,0))="verplicht")=TRUE,2,IF(INDEX('Criteria-Status-Tabel'!$A$5:$K$128,MATCH("1-"&'Invulscherm 1 - Weging'!$A15,'Criteria-Status-Tabel'!$A$5:$A$128,0),MATCH(10*$S$15+$S$14,'Criteria-Status-Tabel'!$A$5:$K$5,0))="extra belangrijk",3,1)),"1") -> 2 | O15: =IFERROR(IF(OR(INDEX('Criteria-Status-Tabel'!$A$5:$K$128,MATCH("1-"&'Invulscherm 1 - Weging'!$A15,'Criteria-Status-Tabel'!$A$5:$A$128,0),MATCH(10*$S$15+$S$14,'Criteria-Status-Tabel'!$A$5:$K$5,0))="relevant",INDEX('Criteria-Status-Tabel'!$A$5:$K$128,MATCH("1-"&'Invulscherm 1 - Weging'!$A15,'Criteria-Status-Tabel'!$A$5:$A$128,0),MATCH(10*$S$15+$S$14,'Criteria-Status-Tabel'!$A$5:$K$5,0))="verplicht")=TRUE,2,IF(INDEX('Criteria-Status-Tabel'!$A$5:$K$128,MATCH("1-"&'Invulscherm 1 - Weging'!$A15,'Criteria-Status-Tabel'!$A$5:$A$128,0),MATCH(10*$S$15+$S$14,'Criteria-Status-Tabel'!$A$5:$K$5,0))="extra belangrijk",3,1)),"1") -> 2 | Q15: 0 | R15: 0 | S15: 1 | U15: =SUM($U$7+$V$7)/SUM($K$9:$L$29) -> 0.4 | W15: Alleen uit bij 'bestaande terreinen'
A16: MAN2.3 | C16: Gebiedsvisie & duurzaamheidsambitie | E16: =IF(K16=2,"verplicht","extra belangrijk") -> verplicht | F16: =IF(K16=2,SUM(U16+U16),(U16*3)) -> 0.8 | H16: =IF(L16=2,"verplicht","extra belangrijk") -> verplicht | I16: =IF(L16=1,V16,IF(L16=2,V16*2,IF(L16=3,V16*3))) -> 0.8 | K16: =IFERROR(IF(OR(INDEX('Criteria-Status-Tabel'!$A$5:$K$128,MATCH("1-"&'Invulscherm 1 - Weging'!$A16,'Criteria-Status-Tabel'!$A$5:$A$128,0),MATCH(10*$S$15+$S$14,'Criteria-Status-Tabel'!$A$5:$K$5,0))="relevant",INDEX('Criteria-Status-Tabel'!$A$5:$K$128,MATCH("1-"&'Invulscherm 1 - Weging'!$A16,'Criteria-Status-Tabel'!$A$5:$A$128,0),MATCH(10*$S$15+$S$14,'Criteria-Status-Tabel'!$A$5:$K$5,0))="verplicht")=TRUE,2,IF(INDEX('Criteria-Status-Tabel'!$A$5:$K$128,MATCH("1-"&'Invulscherm 1 - Weging'!$A16,'Criteria-Status-Tabel'!$A$5:$A$128,0),MATCH(10*$S$15+$S$14,'Criteria-Status-Tabel'!$A$5:$K$5,0))="extra belangrijk",3,1)),"1") -> 2 | L16: =IFERROR(IF(OR(INDEX('Criteria-Status-Tabel'!$A$5:$K$128,MATCH("2-"&'Invulscherm 1 - Weging'!$A16,'Criteria-Status-Tabel'!$A$5:$A$128,0),MATCH(10*$S$15+$S$14,'Criteria-Status-Tabel'!$A$5:$K$5,0))="relevant",INDEX('Criteria-Status-Tabel'!$A$5:$K$128,MATCH("2-"&'Invulscherm 1 - Weging'!$A16,'Criteria-Status-Tabel'!$A$5:$A$128,0),MATCH(10*$S$15+$S$14,'Criteria-Status-Tabel'!$A$5:$K$5,0))="verplicht")=TRUE,2,IF(INDEX('Criteria-Status-Tabel'!$A$5:$K$128,MATCH("2-"&'Invulscherm 1 - Weging'!$A16,'Criteria-Status-Tabel'!$A$5:$A$128,0),MATCH(10*$S$15+$S$14,'Criteria-Status-Tabel'!$A$5:$K$5,0))="extra belangrijk",3,1)),"1") -> 2 | O16: =IFERROR(IF(OR(INDEX('Criteria-Status-Tabel'!$A$5:$K$128,MATCH("1-"&'Invulscherm 1 - Weging'!$A16,'Criteria-Status-Tabel'!$A$5:$A$128,0),MATCH(10*$S$15+$S$14,'Criteria-Status-Tabel'!$A$5:$K$5,0))="relevant",INDEX('Criteria-Status-Tabel'!$A$5:$K$128,MATCH("1-"&'Invulscherm 1 - Weging'!$A16,'Criteria-Status-Tabel'!$A$5:$A$128,0),MATCH(10*$S$15+$S$14,'Criteria-Status-Tabel'!$A$5:$K$5,0))="verplicht")=TRUE,2,IF(INDEX('Criteria-Status-Tabel'!$A$5:$K$128,MATCH("1-"&'Invulscherm 1 - Weging'!$A16,'Criteria-Status-Tabel'!$A$5:$A$128,0),MATCH(10*$S$15+$S$14,'Criteria-Status-Tabel'!$A$5:$K$5,0))="extra belangrijk",3,1)),"1") -> 2 | P16: =IFERROR(IF(OR(INDEX('Criteria-Status-Tabel'!$A$5:$K$128,MATCH("2-"&'Invulscherm 1 - Weging'!$A16,'Criteria-Status-Tabel'!$A$5:$A$128,0),MATCH(10*$S$15+$S$14,'Criteria-Status-Tabel'!$A$5:$K$5,0))="relevant",INDEX('Criteria-Status-Tabel'!$A$5:$K$128,MATCH("2-"&'Invulscherm 1 - Weging'!$A16,'Criteria-Status-Tabel'!$A$5:$A$128,0),MATCH(10*$S$15+$S$14,'Criteria-Status-Tabel'!$A$5:$K$5,0))="verplicht")=TRUE,2,IF(INDEX('Criteria-Status-Tabel'!$A$5:$K$128,MATCH("2-"&'Invulscherm 1 - Weging'!$A16,'Criteria-Status-Tabel'!$A$5:$A$128,0),MATCH(10*$S$15+$S$14,'Criteria-Status-Tabel'!$A$5:$K$5,0))="extra belangrijk",3,1)),"1") -> 2 | Q16: 0 | R16: 0 | U16: =SUM($U$7+$V$7)/SUM($K$9:$L$29) -> 0.4 | V16: =SUM($U$7+$V$7)/SUM($K$9:$L$29) -> 0.4
A17: MAN3 | B17: Draagvlak / Stakeholder management | Q17: 0 | R17: 0
A18: MAN3.1 | C18: Stakeholder analyse + herziening ontwerp | E18: =IF(K18=2,"verplicht","extra belangrijk") -> verplicht | F18: =IF(K18=2,SUM(U18+U18),(U18*3)) -> 0.8 | H18: =IF(L18=1,"minder belangrijk",IF(L18=2,"relevant",IF(L18=3,"extra belangrijk"))) -> relevant | I18: =IF(L18=1,V18,IF(L18=2,V18*2,IF(L18=3,V18*3))) -> 0.8 | K18: =IFERROR(IF(OR(INDEX('Criteria-Status-Tabel'!$A$5:$K$128,MATCH("1-"&'Invulscherm 1 - Weging'!$A18,'Criteria-Status-Tabel'!$A$5:$A$128,0),MATCH(10*$S$15+$S$14,'Criteria-Status-Tabel'!$A$5:$K$5,0))="relevant",INDEX('Criteria-Status-Tabel'!$A$5:$K$128,MATCH("1-"&'Invulscherm 1 - Weging'!$A18,'Criteria-Status-Tabel'!$A$5:$A$128,0),MATCH(10*$S$15+$S$14,'Criteria-Status-Tabel'!$A$5:$K$5,0))="verplicht")=TRUE,2,IF(INDEX('Criteria-Status-Tabel'!$A$5:$K$128,MATCH("1-"&'Invulscherm 1 - Weging'!$A18,'Criteria-Status-Tabel'!$A$5:$A$128,0),MATCH(10*$S$15+$S$14,'Criteria-Status-Tabel'!$A$5:$K$5,0))="extra belangrijk",3,1)),"1") -> 2 | L18: =IFERROR(IF(OR(INDEX('Criteria-Status-Tabel'!$A$5:$K$128,MATCH("2-"&'Invulscherm 1 - Weging'!$A18,'Criteria-Status-Tabel'!$A$5:$A$128,0),MATCH(10*$S$15+$S$14,'Criteria-Status-Tabel'!$A$5:$K$5,0))="relevant",INDEX('Criteria-Status-Tabel'!$A$5:$K$128,MATCH("2-"&'Invulscherm 1 - Weging'!$A18,'Criteria-Status-Tabel'!$A$5:$A$128,0),MATCH(10*$S$15+$S$14,'Criteria-Status-Tabel'!$A$5:$K$5,0))="verplicht")=TRUE,2,IF(INDEX('Criteria-Status-Tabel'!$A$5:$K$128,MATCH("2-"&'Invulscherm 1 - Weging'!$A18,'Criteria-Status-Tabel'!$A$5:$A$128,0),MATCH(10*$S$15+$S$14,'Criteria-Status-Tabel'!$A$5:$K$5,0))="extra belangrijk",3,1)),"1") -> 2 | O18: =IFERROR(IF(OR(INDEX('Criteria-Status-Tabel'!$A$5:$K$128,MATCH("1-"&'Invulscherm 1 - Weging'!$A18,'Criteria-Status-Tabel'!$A$5:$A$128,0),MATCH(10*$S$15+$S$14,'Criteria-Status-Tabel'!$A$5:$K$5,0))="relevant",INDEX('Criteria-Status-Tabel'!$A$5:$K$128,MATCH("1-"&'Invulscherm 1 - Weging'!$A18,'Criteria-Status-Tabel'!$A$5:$A$128,0),MATCH(10*$S$15+$S$14,'Criteria-Status-Tabel'!$A$5:$K$5,0))="verplicht")=TRUE,2,IF(INDEX('Criteria-Status-Tabel'!$A$5:$K$128,MATCH("1-"&'Invulscherm 1 - Weging'!$A18,'Criteria-Status-Tabel'!$A$5:$A$128,0),MATCH(10*$S$15+$S$14,'Criteria-Status-Tabel'!$A$5:$K$5,0))="extra belangrijk",3,1)),"1") -> 2 | P18: =IFERROR(IF(OR(INDEX('Criteria-Status-Tabel'!$A$5:$K$128,MATCH("2-"&'Invulscherm 1 - Weging'!$A18,'Criteria-Status-Tabel'!$A$5:$A$128,0),MATCH(10*$S$15+$S$14,'Criteria-Status-Tabel'!$A$5:$K$5,0))="relevant",INDEX('Criteria-Status-Tabel'!$A$5:$K$128,MATCH("2-"&'Invulscherm 1 - Weging'!$A18,'Criteria-Status-Tabel'!$A$5:$A$128,0),MATCH(10*$S$15+$S$14,'Criteria-Status-Tabel'!$A$5:$K$5,0))="verplicht")=TRUE,2,IF(INDEX('Criteria-Status-Tabel'!$A$5:$K$128,MATCH("2-"&'Invulscherm 1 - Weging'!$A18,'Criteria-Status-Tabel'!$A$5:$A$128,0),MATCH(10*$S$15+$S$14,'Criteria-Status-Tabel'!$A$5:$K$5,0))="extra belangrijk",3,1)),"1") -> 2 | Q18: 0 | R18: 0 | U18: =SUM($U$7+$V$7)/SUM($K$9:$L$29) -> 0.4 | V18: =SUM($U$7+$V$7)/SUM($K$9:$L$29) -> 0.4
A19: MAN3.2 | C19: Klantwensen en garanderen van betrokkenheid | E19: =IF(K19=2,"verplicht","extra belangrijk") -> verplicht | F19: =IF(K19=2,SUM(U19+U19),(U19*3)) -> 0.8 | H19: =IF(L19=2,"verplicht","extra belangrijk") -> verplicht | I19: =IF(L19=1,V19,IF(L19=2,V19*2,IF(L19=3,V19*3))) -> 0.8 | K19: =IFERROR(IF(OR(INDEX('Criteria-Status-Tabel'!$A$5:$K$128,MATCH("1-"&'Invulscherm 1 - Weging'!$A19,'Criteria-Status-Tabel'!$A$5:$A$128,0),MATCH(10*$S$15+$S$14,'Criteria-Status-Tabel'!$A$5:$K$5,0))="relevant",INDEX('Criteria-Status-Tabel'!$A$5:$K$128,MATCH("1-"&'Invulscherm 1 - Weging'!$A19,'Criteria-Status-Tabel'!$A$5:$A$128,0),MATCH(10*$S$15+$S$14,'Criteria-Status-Tabel'!$A$5:$K$5,0))="verplicht")=TRUE,2,IF(INDEX('Criteria-Status-Tabel'!$A$5:$K$128,MATCH("1-"&'Invulscherm 1 - Weging'!$A19,'Criteria-Status-Tabel'!$A$5:$A$128,0),MATCH(10*$S$15+$S$14,'Criteria-Status-Tabel'!$A$5:$K$5,0))="extra belangrijk",3,1)),"1") -> 2 | L19: =IFERROR(IF(OR(INDEX('Criteria-Status-Tabel'!$A$5:$K$128,MATCH("2-"&'Invulscherm 1 - Weging'!$A19,'Criteria-Status-Tabel'!$A$5:$A$128,0),MATCH(10*$S$15+$S$14,'Criteria-Status-Tabel'!$A$5:$K$5,0))="relevant",INDEX('Criteria-Status-Tabel'!$A$5:$K$128,MATCH("2-"&'Invulscherm 1 - Weging'!$A19,'Criteria-Status-Tabel'!$A$5:$A$128,0),MATCH(10*$S$15+$S$14,'Criteria-Status-Tabel'!$A$5:$K$5,0))="verplicht")=TRUE,2,IF(INDEX('Criteria-Status-Tabel'!$A$5:$K$128,MATCH("2-"&'Invulscherm 1 - Weging'!$A19,'Criteria-Status-Tabel'!$A$5:$A$128,0),MATCH(10*$S$15+$S$14,'Criteria-Status-Tabel'!$A$5:$K$5,0))="extra belangrijk",3,1)),"1") -> 2 | O19: =IFERROR(IF(OR(INDEX('Criteria-Status-Tabel'!$A$5:$K$128,MATCH("1-"&'Invulscherm 1 - Weging'!$A19,'Criteria-Status-Tabel'!$A$5:$A$128,0),MATCH(10*$S$15+$S$14,'Criteria-Status-Tabel'!$A$5:$K$5,0))="relevant",INDEX('Criteria-Status-Tabel'!$A$5:$K$128,MATCH("1-"&'Invulscherm 1 - Weging'!$A19,'Criteria-Status-Tabel'!$A$5:$A$128,0),MATCH(10*$S$15+$S$14,'Criteria-Status-Tabel'!$A$5:$K$5,0))="verplicht")=TRUE,2,IF(INDEX('Criteria-Status-Tabel'!$A$5:$K$128,MATCH("1-"&'Invulscherm 1 - Weging'!$A19,'Criteria-Status-Tabel'!$A$5:$A$128,0),MATCH(10*$S$15+$S$14,'Criteria-Status-Tabel'!$A$5:$K$5,0))="extra belangrijk",3,1)),"1") -> 2 | P19: =IFERROR(IF(OR(INDEX('Criteria-Status-Tabel'!$A$5:$K$128,MATCH("2-"&'Invulscherm 1 - Weging'!$A19,'Criteria-Status-Tabel'!$A$5:$A$128,0),MATCH(10*$S$15+$S$14,'Criteria-Status-Tabel'!$A$5:$K$5,0))="relevant",INDEX('Criteria-Status-Tabel'!$A$5:$K$128,MATCH("2-"&'Invulscherm 1 - Weging'!$A19,'Criteria-Status-Tabel'!$A$5:$A$128,0),MATCH(10*$S$15+$S$14,'Criteria-Status-Tabel'!$A$5:$K$5,0))="verplicht")=TRUE,2,IF(INDEX('Criteria-Status-Tabel'!$A$5:$K$128,MATCH("2-"&'Invulscherm 1 - Weging'!$A19,'Criteria-Status-Tabel'!$A$5:$A$128,0),MATCH(10*$S$15+$S$14,'Criteria-Status-Tabel'!$A$5:$K$5,0))="extra belangrijk",3,1)),"1") -> 2 | Q19: 0 | R19: 0 | U19: =SUM($U$7+$V$7)/SUM($K$9:$L$29) -> 0.4 | V19: =SUM($U$7+$V$7)/SUM($K$9:$L$29) -> 0.4
A20: MAN4 | B20: Parkmanagement | Q20: 0 | R20: 0
A21: MAN4.1 | C21: Collectieve financiering | E21: =IF(K21=1,"minder belangrijk",IF(K21=2,"relevant",IF(K21=3,"extra belangrijk"))) -> relevant | F21: =IF(K21=1,U21,IF(K21=2,U21*2,IF(K21=3,U21*3))) -> 0.8 | K21: =IFERROR(IF(OR(INDEX('Criteria-Status-Tabel'!$A$5:$K$128,MATCH("1-"&'Invulscherm 1 - Weging'!$A21,'Criteria-Status-Tabel'!$A$5:$A$128,0),MATCH(10*$S$15+$S$14,'Criteria-Status-Tabel'!$A$5:$K$5,0))="relevant",INDEX('Criteria-Status-Tabel'!$A$5:$K$128,MATCH("1-"&'Invulscherm 1 - Weging'!$A21,'Criteria-Status-Tabel'!$A$5:$A$128,0),MATCH(10*$S$15+$S$14,'Criteria-Status-Tabel'!$A$5:$K$5,0))="verplicht")=TRUE,2,IF(INDEX('Criteria-Status-Tabel'!$A$5:$K$128,MATCH("1-"&'Invulscherm 1 - Weging'!$A21,'Criteria-Status-Tabel'!$A$5:$A$128,0),MATCH(10*$S$15+$S$14,'Criteria-Status-Tabel'!$A$5:$K$5,0))="extra belangrijk",3,1)),"1") -> 2 | O21: =IFERROR(IF(OR(INDEX('Criteria-Status-Tabel'!$A$5:$K$128,MATCH("1-"&'Invulscherm 1 - Weging'!$A21,'Criteria-Status-Tabel'!$A$5:$A$128,0),MATCH(10*$S$15+$S$14,'Criteria-Status-Tabel'!$A$5:$K$5,0))="relevant",INDEX('Criteria-Status-Tabel'!$A$5:$K$128,MATCH("1-"&'Invulscherm 1 - Weging'!$A21,'Criteria-Status-Tabel'!$A$5:$A$128,0),MATCH(10*$S$15+$S$14,'Criteria-Status-Tabel'!$A$5:$K$5,0))="verplicht")=TRUE,2,IF(INDEX('Criteria-Status-Tabel'!$A$5:$K$128,MATCH("1-"&'Invulscherm 1 - Weging'!$A21,'Criteria-Status-Tabel'!$A$5:$A$128,0),MATCH(10*$S$15+$S$14,'Criteria-Status-Tabel'!$A$5:$K$5,0))="extra belangrijk",3,1)),"1") -> 2 | Q21: 0 | R21: 0 | U21: =SUM($U$7+$V$7)/SUM($K$9:$L$29) -> 0.4
A22: MAN4.2 | C22: Collectieve energie inkoop | H22: =IF(L22=1,"minder belangrijk",IF(L22=2,"relevant",IF(L22=3,"extra belangrijk"))) -> extra belangrijk | I22: =IF(L22=1,V22,IF(L22=2,V22*2,IF(L22=3,V22*3))) -> 1.2 | L22: =IFERROR(IF(OR(INDEX('Criteria-Status-Tabel'!$A$5:$K$128,MATCH("2-"&'Invulscherm 1 - Weging'!$A22,'Criteria-Status-Tabel'!$A$5:$A$128,0),MATCH(10*$S$15+$S$14,'Criteria-Status-Tabel'!$A$5:$K$5,0))="relevant",INDEX('Criteria-Status-Tabel'!$A$5:$K$128,MATCH("2-"&'Invulscherm 1 - Weging'!$A22,'Criteria-Status-Tabel'!$A$5:$A$128,0),MATCH(10*$S$15+$S$14,'Criteria-Status-Tabel'!$A$5:$K$5,0))="verplicht")=TRUE,2,IF(INDEX('Criteria-Status-Tabel'!$A$5:$K$128,MATCH("2-"&'Invulscherm 1 - Weging'!$A22,'Criteria-Status-Tabel'!$A$5:$A$128,0),MATCH(10*$S$15+$S$14,'Criteria-Status-Tabel'!$A$5:$K$5,0))="extra belangrijk",3,1)),"1") -> 3 | P22: =IFERROR(IF(OR(INDEX('Criteria-Status-Tabel'!$A$5:$K$128,MATCH("2-"&'Invulscherm 1 - Weging'!$A22,'Criteria-Status-Tabel'!$A$5:$A$128,0),MATCH(10*$S$15+$S$14,'Criteria-Status-Tabel'!$A$5:$K$5,0))="relevant",INDEX('Criteria-Status-Tabel'!$A$5:$K$128,MATCH("2-"&'Invulscherm 1 - Weging'!$A22,'Criteria-Status-Tabel'!$A$5:$A$128,0),MATCH(10*$S$15+$S$14,'Criteria-Status-Tabel'!$A$5:$K$5,0))="verplicht")=TRUE,2,IF(INDEX('Criteria-Status-Tabel'!$A$5:$K$128,MATCH("2-"&'Invulscherm 1 - Weging'!$A22,'Criteria-Status-Tabel'!$A$5:$A$128,0),MATCH(10*$S$15+$S$14,'Criteria-Status-Tabel'!$A$5:$K$5,0))="extra belangrijk",3,1)),"1") -> 3 | Q22: 0 | R22: 0 | V22: =SUM($U$7+$V$7)/SUM($K$9:$L$29) -> 0.4
A23: MAN4.3 | C23: Collectief afvalmanagement | E23: =IF(K23=2,"verplicht","extra belangrijk") -> verplicht | F23: =IF(K23=2,SUM(U23+U23),(U23*3)) -> 0.8 | K23: =IFERROR(IF(OR(INDEX('Criteria-Status-Tabel'!$A$5:$K$128,MATCH("1-"&'Invulscherm 1 - Weging'!$A23,'Criteria-Status-Tabel'!$A$5:$A$128,0),MATCH(10*$S$15+$S$14,'Criteria-Status-Tabel'!$A$5:$K$5,0))="relevant",INDEX('Criteria-Status-Tabel'!$A$5:$K$128,MATCH("1-"&'Invulscherm 1 - Weging'!$A23,'Criteria-Status-Tabel'!$A$5:$A$128,0),MATCH(10*$S$15+$S$14,'Criteria-Status-Tabel'!$A$5:$K$5,0))="verplicht")=TRUE,2,IF(INDEX('Criteria-Status-Tabel'!$A$5:$K$128,MATCH("1-"&'Invulscherm 1 - Weging'!$A23,'Criteria-Status-Tabel'!$A$5:$A$128,0),MATCH(10*$S$15+$S$14,'Criteria-Status-Tabel'!$A$5:$K$5,0))="extra belangrijk",3,1)),"1") -> 2 | L23: =IFERROR(IF(OR(INDEX('Criteria-Status-Tabel'!$A$5:$K$128,MATCH("2-"&'Invulscherm 1 - Weging'!$A23,'Criteria-Status-Tabel'!$A$5:$A$128,0),MATCH(10*$S$15+$S$14,'Criteria-Status-Tabel'!$A$5:$K$5,0))="relevant",INDEX('Criteria-Status-Tabel'!$A$5:$K$128,MATCH("2-"&'Invulscherm 1 - Weging'!$A23,'Criteria-Status-Tabel'!$A$5:$A$128,0),MATCH(10*$S$15+$S$14,'Criteria-Status-Tabel'!$A$5:$K$5,0))="verplicht")=TRUE,2,IF(INDEX('Criteria-Status-Tabel'!$A$5:$K$128,MATCH("2-"&'Invulscherm 1 - Weging'!$A23,'Criteria-Status-Tabel'!$A$5:$A$128,0),MATCH(10*$S$15+$S$14,'Criteria-Status-Tabel'!$A$5:$K$5,0))="extra belangrijk",3,1)),"1") -> 1 | O23: =IFERROR(IF(OR(INDEX('Criteria-Status-Tabel'!$A$5:$K$128,MATCH("1-"&'Invulscherm 1 - Weging'!$A23,'Criteria-Status-Tabel'!$A$5:$A$128,0),MATCH(10*$S$15+$S$14,'Criteria-Status-Tabel'!$A$5:$K$5,0))="relevant",INDEX('Criteria-Status-Tabel'!$A$5:$K$128,MATCH("1-"&'Invulscherm 1 - Weging'!$A23,'Criteria-Status-Tabel'!$A$5:$A$128,0),MATCH(10*$S$15+$S$14,'Criteria-Status-Tabel'!$A$5:$K$5,0))="verplicht")=TRUE,2,IF(INDEX('Criteria-Status-Tabel'!$A$5:$K$128,MATCH("1-"&'Invulscherm 1 - Weging'!$A23,'Criteria-Status-Tabel'!$A$5:$A$128,0),MATCH(10*$S$15+$S$14,'Criteria-Status-Tabel'!$A$5:$K$5,0))="extra belangrijk",3,1)),"1") -> 2 | P23: =IFERROR(IF(OR(INDEX('Criteria-Status-Tabel'!$A$5:$K$128,MATCH("2-"&'Invulscherm 1 - Weging'!$A23,'Criteria-Status-Tabel'!$A$5:$A$128,0),MATCH(10*$S$15+$S$14,'Criteria-Status-Tabel'!$A$5:$K$5,0))="relevant",INDEX('Criteria-Status-Tabel'!$A$5:$K$128,MATCH("2-"&'Invulscherm 1 - Weging'!$A23,'Criteria-Status-Tabel'!$A$5:$A$128,0),MATCH(10*$S$15+$S$14,'Criteria-Status-Tabel'!$A$5:$K$5,0))="verplicht")=TRUE,2,IF(INDEX('Criteria-Status-Tabel'!$A$5:$K$128,MATCH("2-"&'Invulscherm 1 - Weging'!$A23,'Criteria-Status-Tabel'!$A$5:$A$128,0),MATCH(10*$S$15+$S$14,'Criteria-Status-Tabel'!$A$5:$K$5,0))="extra belangrijk",3,1)),"1") -> 1 | Q23: 0 | R23: 0 | U23: =SUM($U$7+$V$7)/SUM($K$9:$L$29) -> 0.4
A24: MAN4.4 | C24: Collectief beheer van groen | H24: =IF(L24=1,"minder belangrijk",IF(L24=2,"relevant",IF(L24=3,"extra belangrijk"))) -> extra belangrijk | I24: =IF(L24=1,V24,IF(L24=2,V24*2,IF(L24=3,V24*3))) -> 1.2 | L24: =IFERROR(IF(OR(INDEX('Criteria-Status-Tabel'!$A$5:$K$128,MATCH("2-"&'Invulscherm 1 - Weging'!$A24,'Criteria-Status-Tabel'!$A$5:$A$128,0),MATCH(10*$S$15+$S$14,'Criteria-Status-Tabel'!$A$5:$K$5,0))="relevant",INDEX('Criteria-Status-Tabel'!$A$5:$K$128,MATCH("2-"&'Invulscherm 1 - Weging'!$A24,'Criteria-Status-Tabel'!$A$5:$A$128,0),MATCH(10*$S$15+$S$14,'Criteria-Status-Tabel'!$A$5:$K$5,0))="verplicht")=TRUE,2,IF(INDEX('Criteria-Status-Tabel'!$A$5:$K$128,MATCH("2-"&'Invulscherm 1 - Weging'!$A24,'Criteria-Status-Tabel'!$A$5:$A$128,0),MATCH(10*$S$15+$S$14,'Criteria-Status-Tabel'!$A$5:$K$5,0))="extra belangrijk",3,1)),"1") -> 3 | P24: =IFERROR(IF(OR(INDEX('Criteria-Status-Tabel'!$A$5:$K$128,MATCH("2-"&'Invulscherm 1 - Weging'!$A24,'Criteria-Status-Tabel'!$A$5:$A$128,0),MATCH(10*$S$15+$S$14,'Criteria-Status-Tabel'!$A$5:$K$5,0))="relevant",INDEX('Criteria-Status-Tabel'!$A$5:$K$128,MATCH("2-"&'Invulscherm 1 - Weging'!$A24,'Criteria-Status-Tabel'!$A$5:$A$128,0),MATCH(10*$S$15+$S$14,'Criteria-Status-Tabel'!$A$5:$K$5,0))="verplicht")=TRUE,2,IF(INDEX('Criteria-Status-Tabel'!$A$5:$K$128,MATCH("2-"&'Invulscherm 1 - Weging'!$A24,'Criteria-Status-Tabel'!$A$5:$A$128,0),MATCH(10*$S$15+$S$14,'Criteria-Status-Tabel'!$A$5:$K$5,0))="extra belangrijk",3,1)),"1") -> 3 | Q24: 0 | R24: 0 | V24: =SUM($U$7+$V$7)/SUM($K$9:$L$29) -> 0.4
A25: MAN4.5 | C25: Collectieve mobiliteit | H25: extra belangrijk | I25: 1.2 | L25: =IFERROR(IF(OR(INDEX('Criteria-Status-Tabel'!$A$5:$K$128,MATCH("2-"&'Invulscherm 1 - Weging'!$A25,'Criteria-Status-Tabel'!$A$5:$A$128,0),MATCH(10*$S$15+$S$14,'Criteria-Status-Tabel'!$A$5:$K$5,0))="relevant",INDEX('Criteria-Status-Tabel'!$A$5:$K$128,MATCH("2-"&'Invulscherm 1 - Weging'!$A25,'Criteria-Status-Tabel'!$A$5:$A$128,0),MATCH(10*$S$15+$S$14,'Criteria-Status-Tabel'!$A$5:$K$5,0))="verplicht")=TRUE,2,IF(INDEX('Criteria-Status-Tabel'!$A$5:$K$128,MATCH("2-"&'Invulscherm 1 - Weging'!$A25,'Criteria-Status-Tabel'!$A$5:$A$128,0),MATCH(10*$S$15+$S$14,'Criteria-Status-Tabel'!$A$5:$K$5,0))="extra belangrijk",3,1)),"1") -> 3 | P25: =IFERROR(IF(OR(INDEX('Criteria-Status-Tabel'!$A$5:$K$128,MATCH("2-"&'Invulscherm 1 - Weging'!$A25,'Criteria-Status-Tabel'!$A$5:$A$128,0),MATCH(10*$S$15+$S$14,'Criteria-Status-Tabel'!$A$5:$K$5,0))="relevant",INDEX('Criteria-Status-Tabel'!$A$5:$K$128,MATCH("2-"&'Invulscherm 1 - Weging'!$A25,'Criteria-Status-Tabel'!$A$5:$A$128,0),MATCH(10*$S$15+$S$14,'Criteria-Status-Tabel'!$A$5:$K$5,0))="verplicht")=TRUE,2,IF(INDEX('Criteria-Status-Tabel'!$A$5:$K$128,MATCH("2-"&'Invulscherm 1 - Weging'!$A25,'Criteria-Status-Tabel'!$A$5:$A$128,0),MATCH(10*$S$15+$S$14,'Criteria-Status-Tabel'!$A$5:$K$5,0))="extra belangrijk",3,1)),"1") -> 3 | Q25: 0 | R25: 0 | V25: 0.4
A26: MAN4.6 | C26: Beveiliging | H26: relevant | I26: 0.8 | L26: =IFERROR(IF(OR(INDEX('Criteria-Status-Tabel'!$A$5:$K$128,MATCH("2-"&'Invulscherm 1 - Weging'!$A26,'Criteria-Status-Tabel'!$A$5:$A$128,0),MATCH(10*$S$15+$S$14,'Criteria-Status-Tabel'!$A$5:$K$5,0))="relevant",INDEX('Criteria-Status-Tabel'!$A$5:$K$128,MATCH("2-"&'Invulscherm 1 - Weging'!$A26,'Criteria-Status-Tabel'!$A$5:$A$128,0),MATCH(10*$S$15+$S$14,'Criteria-Status-Tabel'!$A$5:$K$5,0))="verplicht")=TRUE,2,IF(INDEX('Criteria-Status-Tabel'!$A$5:$K$128,MATCH("2-"&'Invulscherm 1 - Weging'!$A26,'Criteria-Status-Tabel'!$A$5:$A$128,0),MATCH(10*$S$15+$S$14,'Criteria-Status-Tabel'!$A$5:$K$5,0))="extra belangrijk",3,1)),"1") -> 2 | P26: =IFERROR(IF(OR(INDEX('Criteria-Status-Tabel'!$A$5:$K$128,MATCH("2-"&'Invulscherm 1 - Weging'!$A26,'Criteria-Status-Tabel'!$A$5:$A$128,0),MATCH(10*$S$15+$S$14,'Criteria-Status-Tabel'!$A$5:$K$5,0))="relevant",INDEX('Criteria-Status-Tabel'!$A$5:$K$128,MATCH("2-"&'Invulscherm 1 - Weging'!$A26,'Criteria-Status-Tabel'!$A$5:$A$128,0),MATCH(10*$S$15+$S$14,'Criteria-Status-Tabel'!$A$5:$K$5,0))="verplicht")=TRUE,2,IF(INDEX('Criteria-Status-Tabel'!$A$5:$K$128,MATCH("2-"&'Invulscherm 1 - Weging'!$A26,'Criteria-Status-Tabel'!$A$5:$A$128,0),MATCH(10*$S$15+$S$14,'Criteria-Status-Tabel'!$A$5:$K$5,0))="extra belangrijk",3,1)),"1") -> 2 | Q26: 0 | R26: 0 | V26: 0.4
A27: MAN4.7 | C27: Delen/Lenen/ Ruilen | H27: relevant | I27: 0.8 | L27: =IFERROR(IF(OR(INDEX('Criteria-Status-Tabel'!$A$5:$K$128,MATCH("2-"&'Invulscherm 1 - Weging'!$A27,'Criteria-Status-Tabel'!$A$5:$A$128,0),MATCH(10*$S$15+$S$14,'Criteria-Status-Tabel'!$A$5:$K$5,0))="relevant",INDEX('Criteria-Status-Tabel'!$A$5:$K$128,MATCH("2-"&'Invulscherm 1 - Weging'!$A27,'Criteria-Status-Tabel'!$A$5:$A$128,0),MATCH(10*$S$15+$S$14,'Criteria-Status-Tabel'!$A$5:$K$5,0))="verplicht")=TRUE,2,IF(INDEX('Criteria-Status-Tabel'!$A$5:$K$128,MATCH("2-"&'Invulscherm 1 - Weging'!$A27,'Criteria-Status-Tabel'!$A$5:$A$128,0),MATCH(10*$S$15+$S$14,'Criteria-Status-Tabel'!$A$5:$K$5,0))="extra belangrijk",3,1)),"1") -> 2 | P27: =IFERROR(IF(OR(INDEX('Criteria-Status-Tabel'!$A$5:$K$128,MATCH("2-"&'Invulscherm 1 - Weging'!$A27,'Criteria-Status-Tabel'!$A$5:$A$128,0),MATCH(10*$S$15+$S$14,'Criteria-Status-Tabel'!$A$5:$K$5,0))="relevant",INDEX('Criteria-Status-Tabel'!$A$5:$K$128,MATCH("2-"&'Invulscherm 1 - Weging'!$A27,'Criteria-Status-Tabel'!$A$5:$A$128,0),MATCH(10*$S$15+$S$14,'Criteria-Status-Tabel'!$A$5:$K$5,0))="verplicht")=TRUE,2,IF(INDEX('Criteria-Status-Tabel'!$A$5:$K$128,MATCH("2-"&'Invulscherm 1 - Weging'!$A27,'Criteria-Status-Tabel'!$A$5:$A$128,0),MATCH(10*$S$15+$S$14,'Criteria-Status-Tabel'!$A$5:$K$5,0))="extra belangrijk",3,1)),"1") -> 2 | Q27: 0 | R27: 0 | V27: 0.4
A28: MAN4.8 | C28: Lokaal voedsel | H28: relevant | I28: 0.8 | L28: =IFERROR(IF(OR(INDEX('Criteria-Status-Tabel'!$A$5:$K$128,MATCH("2-"&'Invulscherm 1 - Weging'!$A28,'Criteria-Status-Tabel'!$A$5:$A$128,0),MATCH(10*$S$15+$S$14,'Criteria-Status-Tabel'!$A$5:$K$5,0))="relevant",INDEX('Criteria-Status-Tabel'!$A$5:$K$128,MATCH("2-"&'Invulscherm 1 - Weging'!$A28,'Criteria-Status-Tabel'!$A$5:$A$128,0),MATCH(10*$S$15+$S$14,'Criteria-Status-Tabel'!$A$5:$K$5,0))="verplicht")=TRUE,2,IF(INDEX('Criteria-Status-Tabel'!$A$5:$K$128,MATCH("2-"&'Invulscherm 1 - Weging'!$A28,'Criteria-Status-Tabel'!$A$5:$A$128,0),MATCH(10*$S$15+$S$14,'Criteria-Status-Tabel'!$A$5:$K$5,0))="extra belangrijk",3,1)),"1") -> 2 | P28: =IFERROR(IF(OR(INDEX('Criteria-Status-Tabel'!$A$5:$K$128,MATCH("2-"&'Invulscherm 1 - Weging'!$A28,'Criteria-Status-Tabel'!$A$5:$A$128,0),MATCH(10*$S$15+$S$14,'Criteria-Status-Tabel'!$A$5:$K$5,0))="relevant",INDEX('Criteria-Status-Tabel'!$A$5:$K$128,MATCH("2-"&'Invulscherm 1 - Weging'!$A28,'Criteria-Status-Tabel'!$A$5:$A$128,0),MATCH(10*$S$15+$S$14,'Criteria-Status-Tabel'!$A$5:$K$5,0))="verplicht")=TRUE,2,IF(INDEX('Criteria-Status-Tabel'!$A$5:$K$128,MATCH("2-"&'Invulscherm 1 - Weging'!$A28,'Criteria-Status-Tabel'!$A$5:$A$128,0),MATCH(10*$S$15+$S$14,'Criteria-Status-Tabel'!$A$5:$K$5,0))="extra belangrijk",3,1)),"1") -> 2 | Q28: 0 | R28: 0 | V28: 0.4
A29: MAN4.9 | C29: Overgang van ontwikkelaar naar beheerder | H29: relevant | I29: 0.8 | L29: =IFERROR(IF(OR(INDEX('Criteria-Status-Tabel'!$A$5:$K$128,MATCH("2-"&'Invulscherm 1 - Weging'!$A29,'Criteria-Status-Tabel'!$A$5:$A$128,0),MATCH(10*$S$15+$S$14,'Criteria-Status-Tabel'!$A$5:$K$5,0))="relevant",INDEX('Criteria-Status-Tabel'!$A$5:$K$128,MATCH("2-"&'Invulscherm 1 - Weging'!$A29,'Criteria-Status-Tabel'!$A$5:$A$128,0),MATCH(10*$S$15+$S$14,'Criteria-Status-Tabel'!$A$5:$K$5,0))="verplicht")=TRUE,2,IF(INDEX('Criteria-Status-Tabel'!$A$5:$K$128,MATCH("2-"&'Invulscherm 1 - Weging'!$A29,'Criteria-Status-Tabel'!$A$5:$A$128,0),MATCH(10*$S$15+$S$14,'Criteria-Status-Tabel'!$A$5:$K$5,0))="extra belangrijk",3,1)),"1") -> 2 | P29: =IFERROR(IF(OR(INDEX('Criteria-Status-Tabel'!$A$5:$K$128,MATCH("2-"&'Invulscherm 1 - Weging'!$A29,'Criteria-Status-Tabel'!$A$5:$A$128,0),MATCH(10*$S$15+$S$14,'Criteria-Status-Tabel'!$A$5:$K$5,0))="relevant",INDEX('Criteria-Status-Tabel'!$A$5:$K$128,MATCH("2-"&'Invulscherm 1 - Weging'!$A29,'Criteria-Status-Tabel'!$A$5:$A$128,0),MATCH(10*$S$15+$S$14,'Criteria-Status-Tabel'!$A$5:$K$5,0))="verplicht")=TRUE,2,IF(INDEX('Criteria-Status-Tabel'!$A$5:$K$128,MATCH("2-"&'Invulscherm 1 - Weging'!$A29,'Criteria-Status-Tabel'!$A$5:$A$128,0),MATCH(10*$S$15+$S$14,'Criteria-Status-Tabel'!$A$5:$K$5,0))="extra belangrijk",3,1)),"1") -> 2 | Q29: 0 | R29: 0 | V29: 0.4
A30: SEW | B30: 2. SOCIAAL & ECONOMISCH WELZIJN (15%) | D30: =IF(SUM(Q33:R44)=0,"U heeft nog geen wijzigingen in dit thema doorgevoerd",IF(SUM(Q33:R44)=1,"Let op! U kunt nog 2 wijziging binnen dit thema doorvoeren",IF(SUM(Q33:R44)=2,"Let op! U kunt nog 1 wijziging voor dit thema doorvoeren",IF(SUM(Q33:R44)=3,"LET OP! U mag geen wijzigingen meer doorvoeren binnen dit thema","STOP! U heeft te veel wijzigingen doorgevoerd. Klik op de knop 'basiswaarden' om te resetten")))) -> U heeft nog geen wijzigingen in dit thema doorgevoerd | J30: =SUM(I31+F31) -> 15
F31: =SUM(F33:F44) -> 4.8 | I31: =SUM(I33:I44) -> 10.2 | Q31: =IF(K31<>O31,1,0) -> 0 | R31: =IF(L31<>P31,1,0) -> 0 | U31: 7 | V31: 8
A32: SEW1.1 | B32: Fysisch Milieu & Gezondheid | Q32: 0 | R32: 0
A33: SEW1.1 | C33: Geluidsoverlast | H33: =IF(L33=2,"verplicht","extra belangrijk") -> extra belangrijk | I33: =IF(L33=1,V33,IF(L33=2,V33*2,IF(L33=3,V33*3))) -> 1.8 | L33: =IFERROR(IF(OR(INDEX('Criteria-Status-Tabel'!$A$5:$K$128,MATCH("2-"&'Invulscherm 1 - Weging'!$A33,'Criteria-Status-Tabel'!$A$5:$A$128,0),MATCH(10*$S$15+$S$14,'Criteria-Status-Tabel'!$A$5:$K$5,0))="relevant",INDEX('Criteria-Status-Tabel'!$A$5:$K$128,MATCH("2-"&'Invulscherm 1 - Weging'!$A33,'Criteria-Status-Tabel'!$A$5:$A$128,0),MATCH(10*$S$15+$S$14,'Criteria-Status-Tabel'!$A$5:$K$5,0))="verplicht")=TRUE,2,IF(INDEX('Criteria-Status-Tabel'!$A$5:$K$128,MATCH("2-"&'Invulscherm 1 - Weging'!$A33,'Criteria-Status-Tabel'!$A$5:$A$128,0),MATCH(10*$S$15+$S$14,'Criteria-Status-Tabel'!$A$5:$K$5,0))="extra belangrijk",3,1)),"1") -> 3 | P33: =IFERROR(IF(OR(INDEX('Criteria-Status-Tabel'!$A$5:$K$128,MATCH("2-"&'Invulscherm 1 - Weging'!$A33,'Criteria-Status-Tabel'!$A$5:$A$128,0),MATCH(10*$S$15+$S$14,'Criteria-Status-Tabel'!$A$5:$K$5,0))="relevant",INDEX('Criteria-Status-Tabel'!$A$5:$K$128,MATCH("2-"&'Invulscherm 1 - Weging'!$A33,'Criteria-Status-Tabel'!$A$5:$A$128,0),MATCH(10*$S$15+$S$14,'Criteria-Status-Tabel'!$A$5:$K$5,0))="verplicht")=TRUE,2,IF(INDEX('Criteria-Status-Tabel'!$A$5:$K$128,MATCH("2-"&'Invulscherm 1 - Weging'!$A33,'Criteria-Status-Tabel'!$A$5:$A$128,0),MATCH(10*$S$15+$S$14,'Criteria-Status-Tabel'!$A$5:$K$5,0))="extra belangrijk",3,1)),"1") -> 3 | Q33: 0 | R33: 0 | V33: =SUM($U$31+$V$31)/SUM($K$33:$L$44) -> 0.6
A34: SEW1.2 | C34: Lichthinder | H34: =IF(L34=1,"minder belangrijk",IF(L34=2,"relevant",IF(L34=3,"extra belangrijk"))) -> relevant | I34: =IF(L34=1,V34,IF(L34=2,V34*2,IF(L34=3,V34*3))) -> 1.2 | L34: =IFERROR(IF(OR(INDEX('Criteria-Status-Tabel'!$A$5:$K$128,MATCH("2-"&'Invulscherm 1 - Weging'!$A34,'Criteria-Status-Tabel'!$A$5:$A$128,0),MATCH(10*$S$15+$S$14,'Criteria-Status-Tabel'!$A$5:$K$5,0))="relevant",INDEX('Criteria-Status-Tabel'!$A$5:$K$128,MATCH("2-"&'Invulscherm 1 - Weging'!$A34,'Criteria-Status-Tabel'!$A$5:$A$128,0),MATCH(10*$S$15+$S$14,'Criteria-Status-Tabel'!$A$5:$K$5,0))="verplicht")=TRUE,2,IF(INDEX('Criteria-Status-Tabel'!$A$5:$K$128,MATCH("2-"&'Invulscherm 1 - Weging'!$A34,'Criteria-Status-Tabel'!$A$5:$A$128,0),MATCH(10*$S$15+$S$14,'Criteria-Status-Tabel'!$A$5:$K$5,0))="extra belangrijk",3,1)),"1") -> 2 | P34: =IFERROR(IF(OR(INDEX('Criteria-Status-Tabel'!$A$5:$K$128,MATCH("2-"&'Invulscherm 1 - Weging'!$A34,'Criteria-Status-Tabel'!$A$5:$A$128,0),MATCH(10*$S$15+$S$14,'Criteria-Status-Tabel'!$A$5:$K$5,0))="relevant",INDEX('Criteria-Status-Tabel'!$A$5:$K$128,MATCH("2-"&'Invulscherm 1 - Weging'!$A34,'Criteria-Status-Tabel'!$A$5:$A$128,0),MATCH(10*$S$15+$S$14,'Criteria-Status-Tabel'!$A$5:$K$5,0))="verplicht")=TRUE,2,IF(INDEX('Criteria-Status-Tabel'!$A$5:$K$128,MATCH("2-"&'Invulscherm 1 - Weging'!$A34,'Criteria-Status-Tabel'!$A$5:$A$128,0),MATCH(10*$S$15+$S$14,'Criteria-Status-Tabel'!$A$5:$K$5,0))="extra belangrijk",3,1)),"1") -> 2 | Q34: 0 | R34: 0 | V34: =SUM($U$31+$V$31)/SUM($K$33:$L$44) -> 0.6 | W34: Alleen uit bij 'bestaande terreinen' of als aangetoond kan worden
A35: SEW1.3 | C35: Luchtkwaliteit | H35: extra belangrijk | I35: =IF(L35=1,V35,IF(L35=2,V35*2,IF(L35=3,V35*3))) -> 1.8 | L35: =IFERROR(IF(OR(INDEX('Criteria-Status-Tabel'!$A$5:$K$128,MATCH("2-"&'Invulscherm 1 - Weging'!$A35,'Criteria-Status-Tabel'!$A$5:$A$128,0),MATCH(10*$S$15+$S$14,'Criteria-Status-Tabel'!$A$5:$K$5,0))="relevant",INDEX('Criteria-Status-Tabel'!$A$5:$K$128,MATCH("2-"&'Invulscherm 1 - Weging'!$A35,'Criteria-Status-Tabel'!$A$5:$A$128,0),MATCH(10*$S$15+$S$14,'Criteria-Status-Tabel'!$A$5:$K$5,0))="verplicht")=TRUE,2,IF(INDEX('Criteria-Status-Tabel'!$A$5:$K$128,MATCH("2-"&'Invulscherm 1 - Weging'!$A35,'Criteria-Status-Tabel'!$A$5:$A$128,0),MATCH(10*$S$15+$S$14,'Criteria-Status-Tabel'!$A$5:$K$5,0))="extra belangrijk",3,1)),"1") -> 3 | P35: =IFERROR(IF(OR(INDEX('Criteria-Status-Tabel'!$A$5:$K$128,MATCH("2-"&'Invulscherm 1 - Weging'!$A35,'Criteria-Status-Tabel'!$A$5:$A$128,0),MATCH(10*$S$15+$S$14,'Criteria-Status-Tabel'!$A$5:$K$5,0))="relevant",INDEX('Criteria-Status-Tabel'!$A$5:$K$128,MATCH("2-"&'Invulscherm 1 - Weging'!$A35,'Criteria-Status-Tabel'!$A$5:$A$128,0),MATCH(10*$S$15+$S$14,'Criteria-Status-Tabel'!$A$5:$K$5,0))="verplicht")=TRUE,2,IF(INDEX('Criteria-Status-Tabel'!$A$5:$K$128,MATCH("2-"&'Invulscherm 1 - Weging'!$A35,'Criteria-Status-Tabel'!$A$5:$A$128,0),MATCH(10*$S$15+$S$14,'Criteria-Status-Tabel'!$A$5:$K$5,0))="extra belangrijk",3,1)),"1") -> 3 | Q35: 0 | R35: 0 | V35: =SUM($U$31+$V$31)/SUM($K$33:$L$44) -> 0.6
A36: SEW1.4 | C36: Geuroverlast | H36: extra belangrijk | I36: =IF(L36=1,V36,IF(L36=2,V36*2,IF(L36=3,V36*3))) -> 1.8 | L36: =IFERROR(IF(OR(INDEX('Criteria-Status-Tabel'!$A$5:$K$128,MATCH("2-"&'Invulscherm 1 - Weging'!$A36,'Criteria-Status-Tabel'!$A$5:$A$128,0),MATCH(10*$S$15+$S$14,'Criteria-Status-Tabel'!$A$5:$K$5,0))="relevant",INDEX('Criteria-Status-Tabel'!$A$5:$K$128,MATCH("2-"&'Invulscherm 1 - Weging'!$A36,'Criteria-Status-Tabel'!$A$5:$A$128,0),MATCH(10*$S$15+$S$14,'Criteria-Status-Tabel'!$A$5:$K$5,0))="verplicht")=TRUE,2,IF(INDEX('Criteria-Status-Tabel'!$A$5:$K$128,MATCH("2-"&'Invulscherm 1 - Weging'!$A36,'Criteria-Status-Tabel'!$A$5:$A$128,0),MATCH(10*$S$15+$S$14,'Criteria-Status-Tabel'!$A$5:$K$5,0))="extra belangrijk",3,1)),"1") -> 3 | P36: =IFERROR(IF(OR(INDEX('Criteria-Status-Tabel'!$A$5:$K$128,MATCH("2-"&'Invulscherm 1 - Weging'!$A36,'Criteria-Status-Tabel'!$A$5:$A$128,0),MATCH(10*$S$15+$S$14,'Criteria-Status-Tabel'!$A$5:$K$5,0))="relevant",INDEX('Criteria-Status-Tabel'!$A$5:$K$128,MATCH("2-"&'Invulscherm 1 - Weging'!$A36,'Criteria-Status-Tabel'!$A$5:$A$128,0),MATCH(10*$S$15+$S$14,'Criteria-Status-Tabel'!$A$5:$K$5,0))="verplicht")=TRUE,2,IF(INDEX('Criteria-Status-Tabel'!$A$5:$K$128,MATCH("2-"&'Invulscherm 1 - Weging'!$A36,'Criteria-Status-Tabel'!$A$5:$A$128,0),MATCH(10*$S$15+$S$14,'Criteria-Status-Tabel'!$A$5:$K$5,0))="extra belangrijk",3,1)),"1") -> 3 | Q36: 0 | R36: 0 | V36: =SUM($U$31+$V$31)/SUM($K$33:$L$44) -> 0.6
A37: SEW2 | B37: Lokale economie | Q37: 0 | R37: 0
A38: SEW2.1 | C38: Economische impactstudie / werkgelegenheid | E38: =IF(K38=2,"verplicht","extra belangrijk") -> verplicht | F38: =IF(K38=1,U38,IF(K38=2,U38*2,IF(K38=3,U38*3))) -> 1.2 | K38: =IFERROR(IF(OR(INDEX('Criteria-Status-Tabel'!$A$5:$K$128,MATCH("1-"&'Invulscherm 1 - Weging'!$A38,'Criteria-Status-Tabel'!$A$5:$A$128,0),MATCH(10*$S$15+$S$14,'Criteria-Status-Tabel'!$A$5:$K$5,0))="relevant",INDEX('Criteria-Status-Tabel'!$A$5:$K$128,MATCH("1-"&'Invulscherm 1 - Weging'!$A38,'Criteria-Status-Tabel'!$A$5:$A$128,0),MATCH(10*$S$15+$S$14,'Criteria-Status-Tabel'!$A$5:$K$5,0))="verplicht")=TRUE,2,IF(INDEX('Criteria-Status-Tabel'!$A$5:$K$128,MATCH("1-"&'Invulscherm 1 - Weging'!$A38,'Criteria-Status-Tabel'!$A$5:$A$128,0),MATCH(10*$S$15+$S$14,'Criteria-Status-Tabel'!$A$5:$K$5,0))="extra belangrijk",3,1)),"1") -> 2 | O38: =IFERROR(IF(OR(INDEX('Criteria-Status-Tabel'!$A$5:$K$128,MATCH("1-"&'Invulscherm 1 - Weging'!$A38,'Criteria-Status-Tabel'!$A$5:$A$128,0),MATCH(10*$S$15+$S$14,'Criteria-Status-Tabel'!$A$5:$K$5,0))="relevant",INDEX('Criteria-Status-Tabel'!$A$5:$K$128,MATCH("1-"&'Invulscherm 1 - Weging'!$A38,'Criteria-Status-Tabel'!$A$5:$A$128,0),MATCH(10*$S$15+$S$14,'Criteria-Status-Tabel'!$A$5:$K$5,0))="verplicht")=TRUE,2,IF(INDEX('Criteria-Status-Tabel'!$A$5:$K$128,MATCH("1-"&'Invulscherm 1 - Weging'!$A38,'Criteria-Status-Tabel'!$A$5:$A$128,0),MATCH(10*$S$15+$S$14,'Criteria-Status-Tabel'!$A$5:$K$5,0))="extra belangrijk",3,1)),"1") -> 2 | Q38: 0 | R38: 0 | U38: =SUM($U$31+$V$31)/SUM($K$33:$L$44) -> 0.6
A39: SEW2.2 | C39: Lokale werkgelegenheid | E39: =IF(K39=1,"minder belangrijk",IF(K39=2,"relevant",IF(K39=3,"extra belangrijk"))) -> relevant | F39: =IF(K39=1,U39,IF(K39=2,U39*2,IF(K39=3,U39*3))) -> 1.2 | K39: =IFERROR(IF(OR(INDEX('Criteria-Status-Tabel'!$A$5:$K$128,MATCH("1-"&'Invulscherm 1 - Weging'!$A39,'Criteria-Status-Tabel'!$A$5:$A$128,0),MATCH(10*$S$15+$S$14,'Criteria-Status-Tabel'!$A$5:$K$5,0))="relevant",INDEX('Criteria-Status-Tabel'!$A$5:$K$128,MATCH("1-"&'Invulscherm 1 - Weging'!$A39,'Criteria-Status-Tabel'!$A$5:$A$128,0),MATCH(10*$S$15+$S$14,'Criteria-Status-Tabel'!$A$5:$K$5,0))="verplicht")=TRUE,2,IF(INDEX('Criteria-Status-Tabel'!$A$5:$K$128,MATCH("1-"&'Invulscherm 1 - Weging'!$A39,'Criteria-Status-Tabel'!$A$5:$A$128,0),MATCH(10*$S$15+$S$14,'Criteria-Status-Tabel'!$A$5:$K$5,0))="extra belangrijk",3,1)),"1") -> 2 | O39: =IFERROR(IF(OR(INDEX('Criteria-Status-Tabel'!$A$5:$K$128,MATCH("1-"&'Invulscherm 1 - Weging'!$A39,'Criteria-Status-Tabel'!$A$5:$A$128,0),MATCH(10*$S$15+$S$14,'Criteria-Status-Tabel'!$A$5:$K$5,0))="relevant",INDEX('Criteria-Status-Tabel'!$A$5:$K$128,MATCH("1-"&'Invulscherm 1 - Weging'!$A39,'Criteria-Status-Tabel'!$A$5:$A$128,0),MATCH(10*$S$15+$S$14,'Criteria-Status-Tabel'!$A$5:$K$5,0))="verplicht")=TRUE,2,IF(INDEX('Criteria-Status-Tabel'!$A$5:$K$128,MATCH("1-"&'Invulscherm 1 - Weging'!$A39,'Criteria-Status-Tabel'!$A$5:$A$128,0),MATCH(10*$S$15+$S$14,'Criteria-Status-Tabel'!$A$5:$K$5,0))="extra belangrijk",3,1)),"1") -> 2 | Q39: 0 | R39: 0 | U39: =SUM($U$31+$V$31)/SUM($K$33:$L$44) -> 0.6 | W39: Alleen uit bij 'bestaande terreinen' of als aangetoond kan worden
A40: SEW3 | B40: Sociale veiligheid | Q40: 0 | R40: 0
A41: SEW3.1 | C41: Nood- en hulpdiensten | E41: =IF(K41=2,"verplicht","extra belangrijk") -> verplicht | F41: =IF(K41=1,U41,IF(K41=2,U41*2,IF(K41=3,U41*3))) -> 1.2 | H41: =IF(L41=1,"minder belangrijk",IF(L41=2,"relevant",IF(L41=3,"extra belangrijk"))) -> relevant | I41: =IF(L41=1,V41,IF(L41=2,V41*2,IF(L41=3,V41*3))) -> 1.2 | K41: =IFERROR(IF(OR(INDEX('Criteria-Status-Tabel'!$A$5:$K$128,MATCH("1-"&'Invulscherm 1 - Weging'!$A41,'Criteria-Status-Tabel'!$A$5:$A$128,0),MATCH(10*$S$15+$S$14,'Criteria-Status-Tabel'!$A$5:$K$5,0))="relevant",INDEX('Criteria-Status-Tabel'!$A$5:$K$128,MATCH("1-"&'Invulscherm 1 - Weging'!$A41,'Criteria-Status-Tabel'!$A$5:$A$128,0),MATCH(10*$S$15+$S$14,'Criteria-Status-Tabel'!$A$5:$K$5,0))="verplicht")=TRUE,2,IF(INDEX('Criteria-Status-Tabel'!$A$5:$K$128,MATCH("1-"&'Invulscherm 1 - Weging'!$A41,'Criteria-Status-Tabel'!$A$5:$A$128,0),MATCH(10*$S$15+$S$14,'Criteria-Status-Tabel'!$A$5:$K$5,0))="extra belangrijk",3,1)),"1") -> 2 | L41: =IFERROR(IF(OR(INDEX('Criteria-Status-Tabel'!$A$5:$K$128,MATCH("2-"&'Invulscherm 1 - Weging'!$A41,'Criteria-Status-Tabel'!$A$5:$A$128,0),MATCH(10*$S$15+$S$14,'Criteria-Status-Tabel'!$A$5:$K$5,0))="relevant",INDEX('Criteria-Status-Tabel'!$A$5:$K$128,MATCH("2-"&'Invulscherm 1 - Weging'!$A41,'Criteria-Status-Tabel'!$A$5:$A$128,0),MATCH(10*$S$15+$S$14,'Criteria-Status-Tabel'!$A$5:$K$5,0))="verplicht")=TRUE,2,IF(INDEX('Criteria-Status-Tabel'!$A$5:$K$128,MATCH("2-"&'Invulscherm 1 - Weging'!$A41,'Criteria-Status-Tabel'!$A$5:$A$128,0),MATCH(10*$S$15+$S$14,'Criteria-Status-Tabel'!$A$5:$K$5,0))="extra belangrijk",3,1)),"1") -> 2 | O41: =IFERROR(IF(OR(INDEX('Criteria-Status-Tabel'!$A$5:$K$128,MATCH("1-"&'Invulscherm 1 - Weging'!$A41,'Criteria-Status-Tabel'!$A$5:$A$128,0),MATCH(10*$S$15+$S$14,'Criteria-Status-Tabel'!$A$5:$K$5,0))="relevant",INDEX('Criteria-Status-Tabel'!$A$5:$K$128,MATCH("1-"&'Invulscherm 1 - Weging'!$A41,'Criteria-Status-Tabel'!$A$5:$A$128,0),MATCH(10*$S$15+$S$14,'Criteria-Status-Tabel'!$A$5:$K$5,0))="verplicht")=TRUE,2,IF(INDEX('Criteria-Status-Tabel'!$A$5:$K$128,MATCH("1-"&'Invulscherm 1 - Weging'!$A41,'Criteria-Status-Tabel'!$A$5:$A$128,0),MATCH(10*$S$15+$S$14,'Criteria-Status-Tabel'!$A$5:$K$5,0))="extra belangrijk",3,1)),"1") -> 2 | P41: =IFERROR(IF(OR(INDEX('Criteria-Status-Tabel'!$A$5:$K$128,MATCH("2-"&'Invulscherm 1 - Weging'!$A41,'Criteria-Status-Tabel'!$A$5:$A$128,0),MATCH(10*$S$15+$S$14,'Criteria-Status-Tabel'!$A$5:$K$5,0))="relevant",INDEX('Criteria-Status-Tabel'!$A$5:$K$128,MATCH("2-"&'Invulscherm 1 - Weging'!$A41,'Criteria-Status-Tabel'!$A$5:$A$128,0),MATCH(10*$S$15+$S$14,'Criteria-Status-Tabel'!$A$5:$K$5,0))="verplicht")=TRUE,2,IF(INDEX('Criteria-Status-Tabel'!$A$5:$K$128,MATCH("2-"&'Invulscherm 1 - Weging'!$A41,'Criteria-Status-Tabel'!$A$5:$A$128,0),MATCH(10*$S$15+$S$14,'Criteria-Status-Tabel'!$A$5:$K$5,0))="extra belangrijk",3,1)),"1") -> 2 | Q41: 0 | R41: 0 | U41: =SUM($U$31+$V$31)/SUM($K$33:$L$44) -> 0.6 | V41: =SUM($U$31+$V$31)/SUM($K$33:$L$44) -> 0.6 | W41: Alleen uit bij 'bestaande terreinen' of als aangetoond kan worden
A42: SEW3.2 | C42: Sociale controle | H42: relevant | I42: =IF(L42=1,V42,IF(L42=2,V42*2,IF(L42=3,V42*3))) -> 1.2 | L42: =IFERROR(IF(OR(INDEX('Criteria-Status-Tabel'!$A$5:$K$128,MATCH("2-"&'Invulscherm 1 - Weging'!$A42,'Criteria-Status-Tabel'!$A$5:$A$128,0),MATCH(10*$S$15+$S$14,'Criteria-Status-Tabel'!$A$5:$K$5,0))="relevant",INDEX('Criteria-Status-Tabel'!$A$5:$K$128,MATCH("2-"&'Invulscherm 1 - Weging'!$A42,'Criteria-Status-Tabel'!$A$5:$A$128,0),MATCH(10*$S$15+$S$14,'Criteria-Status-Tabel'!$A$5:$K$5,0))="verplicht")=TRUE,2,IF(INDEX('Criteria-Status-Tabel'!$A$5:$K$128,MATCH("2-"&'Invulscherm 1 - Weging'!$A42,'Criteria-Status-Tabel'!$A$5:$A$128,0),MATCH(10*$S$15+$S$14,'Criteria-Status-Tabel'!$A$5:$K$5,0))="extra belangrijk",3,1)),"1") -> 2 | P42: =IFERROR(IF(OR(INDEX('Criteria-Status-Tabel'!$A$5:$K$128,MATCH("2-"&'Invulscherm 1 - Weging'!$A42,'Criteria-Status-Tabel'!$A$5:$A$128,0),MATCH(10*$S$15+$S$14,'Criteria-Status-Tabel'!$A$5:$K$5,0))="relevant",INDEX('Criteria-Status-Tabel'!$A$5:$K$128,MATCH("2-"&'Invulscherm 1 - Weging'!$A42,'Criteria-Status-Tabel'!$A$5:$A$128,0),MATCH(10*$S$15+$S$14,'Criteria-Status-Tabel'!$A$5:$K$5,0))="verplicht")=TRUE,2,IF(INDEX('Criteria-Status-Tabel'!$A$5:$K$128,MATCH("2-"&'Invulscherm 1 - Weging'!$A42,'Criteria-Status-Tabel'!$A$5:$A$128,0),MATCH(10*$S$15+$S$14,'Criteria-Status-Tabel'!$A$5:$K$5,0))="extra belangrijk",3,1)),"1") -> 2 | Q42: 0 | R42: 0 | V42: =SUM($U$31+$V$31)/SUM($K$33:$L$44) -> 0.6
A43: SEW4 | B43: Voorzieningen | Q43: 0 | R43: 0
A44: SEW4.1 | B44: Voorzieningen | E44: =IF(K44=2,"verplicht","extra belangrijk") -> verplicht | F44: =IF(K44=1,U44,IF(K44=2,U44*2,IF(K44=3,U44*3))) -> 1.2 | H44: =IF(L44=1,"minder belangrijk",IF(L44=2,"relevant",IF(L44=3,"extra belangrijk"))) -> relevant | I44: =IF(L44=1,V44,IF(L44=2,V44*2,IF(L44=3,V44*3))) -> 1.2 | K44: =IFERROR(IF(OR(INDEX('Criteria-Status-Tabel'!$A$5:$K$128,MATCH("1-"&'Invulscherm 1 - Weging'!$A44,'Criteria-Status-Tabel'!$A$5:$A$128,0),MATCH(10*$S$15+$S$14,'Criteria-Status-Tabel'!$A$5:$K$5,0))="relevant",INDEX('Criteria-Status-Tabel'!$A$5:$K$128,MATCH("1-"&'Invulscherm 1 - Weging'!$A44,'Criteria-Status-Tabel'!$A$5:$A$128,0),MATCH(10*$S$15+$S$14,'Criteria-Status-Tabel'!$A$5:$K$5,0))="verplicht")=TRUE,2,IF(INDEX('Criteria-Status-Tabel'!$A$5:$K$128,MATCH("1-"&'Invulscherm 1 - Weging'!$A44,'Criteria-Status-Tabel'!$A$5:$A$128,0),MATCH(10*$S$15+$S$14,'Criteria-Status-Tabel'!$A$5:$K$5,0))="extra belangrijk",3,1)),"1") -> 2 | L44: =IFERROR(IF(OR(INDEX('Criteria-Status-Tabel'!$A$5:$K$128,MATCH("2-"&'Invulscherm 1 - Weging'!$A44,'Criteria-Status-Tabel'!$A$5:$A$128,0),MATCH(10*$S$15+$S$14,'Criteria-Status-Tabel'!$A$5:$K$5,0))="relevant",INDEX('Criteria-Status-Tabel'!$A$5:$K$128,MATCH("2-"&'Invulscherm 1 - Weging'!$A44,'Criteria-Status-Tabel'!$A$5:$A$128,0),MATCH(10*$S$15+$S$14,'Criteria-Status-Tabel'!$A$5:$K$5,0))="verplicht")=TRUE,2,IF(INDEX('Criteria-Status-Tabel'!$A$5:$K$128,MATCH("2-"&'Invulscherm 1 - Weging'!$A44,'Criteria-Status-Tabel'!$A$5:$A$128,0),MATCH(10*$S$15+$S$14,'Criteria-Status-Tabel'!$A$5:$K$5,0))="extra belangrijk",3,1)),"1") -> 2 | O44: =IFERROR(IF(OR(INDEX('Criteria-Status-Tabel'!$A$5:$K$128,MATCH("1-"&'Invulscherm 1 - Weging'!$A44,'Criteria-Status-Tabel'!$A$5:$A$128,0),MATCH(10*$S$15+$S$14,'Criteria-Status-Tabel'!$A$5:$K$5,0))="relevant",INDEX('Criteria-Status-Tabel'!$A$5:$K$128,MATCH("1-"&'Invulscherm 1 - Weging'!$A44,'Criteria-Status-Tabel'!$A$5:$A$128,0),MATCH(10*$S$15+$S$14,'Criteria-Status-Tabel'!$A$5:$K$5,0))="verplicht")=TRUE,2,IF(INDEX('Criteria-Status-Tabel'!$A$5:$K$128,MATCH("1-"&'Invulscherm 1 - Weging'!$A44,'Criteria-Status-Tabel'!$A$5:$A$128,0),MATCH(10*$S$15+$S$14,'Criteria-Status-Tabel'!$A$5:$K$5,0))="extra belangrijk",3,1)),"1") -> 2 | P44: =IFERROR(IF(OR(INDEX('Criteria-Status-Tabel'!$A$5:$K$128,MATCH("2-"&'Invulscherm 1 - Weging'!$A44,'Criteria-Status-Tabel'!$A$5:$A$128,0),MATCH(10*$S$15+$S$14,'Criteria-Status-Tabel'!$A$5:$K$5,0))="relevant",INDEX('Criteria-Status-Tabel'!$A$5:$K$128,MATCH("2-"&'Invulscherm 1 - Weging'!$A44,'Criteria-Status-Tabel'!$A$5:$A$128,0),MATCH(10*$S$15+$S$14,'Criteria-Status-Tabel'!$A$5:$K$5,0))="verplicht")=TRUE,2,IF(INDEX('Criteria-Status-Tabel'!$A$5:$K$128,MATCH("2-"&'Invulscherm 1 - Weging'!$A44,'Criteria-Status-Tabel'!$A$5:$A$128,0),MATCH(10*$S$15+$S$14,'Criteria-Status-Tabel'!$A$5:$K$5,0))="extra belangrijk",3,1)),"1") -> 2 | Q44: 0 | R44: 0 | U44: =SUM($U$31+$V$31)/SUM($K$33:$L$44) -> 0.6 | V44: =SUM($U$31+$V$31)/SUM($K$33:$L$44) -> 0.6 | W44: Alleen uit bij 'bestaande terreinen' of als aangetoond kan worden
A45: IOR | B45: 3. INFRASTRUCTUUR & OPENBARE RUIMTE (15%) | D45: =IF(SUM(Q48:R57)=0,"U heeft nog geen wijzigingen in dit thema doorgevoerd",IF(SUM(Q48:R57)=1,"Let op! U kunt nog 2 wijziging binnen dit thema doorvoeren",IF(SUM(Q48:R57)=2,"Let op! U kunt nog 1 wijziging voor dit thema doorvoeren",IF(SUM(Q48:R57)=3,"LET OP! U mag geen wijzigingen meer doorvoeren binnen dit thema","STOP! U heeft te veel wijzigingen doorgevoerd. Klik op de knop 'basiswaarden' om te resetten")))) -> U heeft nog geen wijzigingen in dit thema doorgevoerd | J45: =SUM(I46+F46) -> 15
F46: =SUM(F48:F52) -> 4.615384615 | I46: =SUM(I48:I57) -> 10.38461538 | Q46: =IF(K46<>O46,1,0) -> 0 | R46: =IF(L46<>P46,1,0) -> 0 | U46: 3 | V46: 12
A47: IOR1 | B47: Beleving | Q47: 0 | R47: 0
A48: IOR1.1 | C48: Verweving met omgeving | E48: =IF(K48=2,"verplicht","extra belangrijk") -> verplicht | F48: =IF(K48=1,U48,IF(K48=2,U48*2,IF(K48=3,U48*3))) -> 1.153846154 | H48: =IF(L48=1,"minder belangrijk",IF(L48=2,"relevant",IF(L48=3,"extra belangrijk"))) -> relevant | I48: =IF(L48=1,V48,IF(L48=2,V48*2,IF(L48=3,V48*3))) -> 1.153846154 | K48: =IFERROR(IF(OR(INDEX('Criteria-Status-Tabel'!$A$5:$K$128,MATCH("1-"&'Invulscherm 1 - Weging'!$A48,'Criteria-Status-Tabel'!$A$5:$A$128,0),MATCH(10*$S$15+$S$14,'Criteria-Status-Tabel'!$A$5:$K$5,0))="relevant",INDEX('Criteria-Status-Tabel'!$A$5:$K$128,MATCH("1-"&'Invulscherm 1 - Weging'!$A48,'Criteria-Status-Tabel'!$A$5:$A$128,0),MATCH(10*$S$15+$S$14,'Criteria-Status-Tabel'!$A$5:$K$5,0))="verplicht")=TRUE,2,IF(INDEX('Criteria-Status-Tabel'!$A$5:$K$128,MATCH("1-"&'Invulscherm 1 - Weging'!$A48,'Criteria-Status-Tabel'!$A$5:$A$128,0),MATCH(10*$S$15+$S$14,'Criteria-Status-Tabel'!$A$5:$K$5,0))="extra belangrijk",3,1)),"1") -> 2 | L48: =IFERROR(IF(OR(INDEX('Criteria-Status-Tabel'!$A$5:$K$128,MATCH("2-"&'Invulscherm 1 - Weging'!$A48,'Criteria-Status-Tabel'!$A$5:$A$128,0),MATCH(10*$S$15+$S$14,'Criteria-Status-Tabel'!$A$5:$K$5,0))="relevant",INDEX('Criteria-Status-Tabel'!$A$5:$K$128,MATCH("2-"&'Invulscherm 1 - Weging'!$A48,'Criteria-Status-Tabel'!$A$5:$A$128,0),MATCH(10*$S$15+$S$14,'Criteria-Status-Tabel'!$A$5:$K$5,0))="verplicht")=TRUE,2,IF(INDEX('Criteria-Status-Tabel'!$A$5:$K$128,MATCH("2-"&'Invulscherm 1 - Weging'!$A48,'Criteria-Status-Tabel'!$A$5:$A$128,0),MATCH(10*$S$15+$S$14,'Criteria-Status-Tabel'!$A$5:$K$5,0))="extra belangrijk",3,1)),"1") -> 2 | O48: =IFERROR(IF(OR(INDEX('Criteria-Status-Tabel'!$A$5:$K$128,MATCH("1-"&'Invulscherm 1 - Weging'!$A48,'Criteria-Status-Tabel'!$A$5:$A$128,0),MATCH(10*$S$15+$S$14,'Criteria-Status-Tabel'!$A$5:$K$5,0))="relevant",INDEX('Criteria-Status-Tabel'!$A$5:$K$128,MATCH("1-"&'Invulscherm 1 - Weging'!$A48,'Criteria-Status-Tabel'!$A$5:$A$128,0),MATCH(10*$S$15+$S$14,'Criteria-Status-Tabel'!$A$5:$K$5,0))="verplicht")=TRUE,2,IF(INDEX('Criteria-Status-Tabel'!$A$5:$K$128,MATCH("1-"&'Invulscherm 1 - Weging'!$A48,'Criteria-Status-Tabel'!$A$5:$A$128,0),MATCH(10*$S$15+$S$14,'Criteria-Status-Tabel'!$A$5:$K$5,0))="extra belangrijk",3,1)),"1") -> 2 | P48: =IFERROR(IF(OR(INDEX('Criteria-Status-Tabel'!$A$5:$K$128,MATCH("2-"&'Invulscherm 1 - Weging'!$A48,'Criteria-Status-Tabel'!$A$5:$A$128,0),MATCH(10*$S$15+$S$14,'Criteria-Status-Tabel'!$A$5:$K$5,0))="relevant",INDEX('Criteria-Status-Tabel'!$A$5:$K$128,MATCH("2-"&'Invulscherm 1 - Weging'!$A48,'Criteria-Status-Tabel'!$A$5:$A$128,0),MATCH(10*$S$15+$S$14,'Criteria-Status-Tabel'!$A$5:$K$5,0))="verplicht")=TRUE,2,IF(INDEX('Criteria-Status-Tabel'!$A$5:$K$128,MATCH("2-"&'Invulscherm 1 - Weging'!$A48,'Criteria-Status-Tabel'!$A$5:$A$128,0),MATCH(10*$S$15+$S$14,'Criteria-Status-Tabel'!$A$5:$K$5,0))="extra belangrijk",3,1)),"1") -> 2 | Q48: 0 | R48: 0 | U48: =SUM($U$46+$V$46)/SUM($K$48:$L$57) -> 0.5769230769 | V48: =SUM($U$46+$V$46)/SUM($K$48:$L$57) -> 0.5769230769
A49: IOR1.2 | C49: Beeldvorming | E49: =IF(K49=1,"minder belangrijk",IF(K49=2,"relevant",IF(K49=3,"extra belangrijk"))) -> relevant | F49: =IF(K49=1,U49,IF(K49=2,U49*2,IF(K49=3,U49*3))) -> 1.153846154 | H49: relevant | I49: =IF(L49=1,V49,IF(L49=2,V49*2,IF(L49=3,V49*3))) -> 1.153846154 | K49: =IFERROR(IF(OR(INDEX('Criteria-Status-Tabel'!$A$5:$K$128,MATCH("1-"&'Invulscherm 1 - Weging'!$A49,'Criteria-Status-Tabel'!$A$5:$A$128,0),MATCH(10*$S$15+$S$14,'Criteria-Status-Tabel'!$A$5:$K$5,0))="relevant",INDEX('Criteria-Status-Tabel'!$A$5:$K$128,MATCH("1-"&'Invulscherm 1 - Weging'!$A49,'Criteria-Status-Tabel'!$A$5:$A$128,0),MATCH(10*$S$15+$S$14,'Criteria-Status-Tabel'!$A$5:$K$5,0))="verplicht")=TRUE,2,IF(INDEX('Criteria-Status-Tabel'!$A$5:$K$128,MATCH("1-"&'Invulscherm 1 - Weging'!$A49,'Criteria-Status-Tabel'!$A$5:$A$128,0),MATCH(10*$S$15+$S$14,'Criteria-Status-Tabel'!$A$5:$K$5,0))="extra belangrijk",3,1)),"1") -> 2 | L49: =IFERROR(IF(OR(INDEX('Criteria-Status-Tabel'!$A$5:$K$128,MATCH("2-"&'Invulscherm 1 - Weging'!$A49,'Criteria-Status-Tabel'!$A$5:$A$128,0),MATCH(10*$S$15+$S$14,'Criteria-Status-Tabel'!$A$5:$K$5,0))="relevant",INDEX('Criteria-Status-Tabel'!$A$5:$K$128,MATCH("2-"&'Invulscherm 1 - Weging'!$A49,'Criteria-Status-Tabel'!$A$5:$A$128,0),MATCH(10*$S$15+$S$14,'Criteria-Status-Tabel'!$A$5:$K$5,0))="verplicht")=TRUE,2,IF(INDEX('Criteria-Status-Tabel'!$A$5:$K$128,MATCH("2-"&'Invulscherm 1 - Weging'!$A49,'Criteria-Status-Tabel'!$A$5:$A$128,0),MATCH(10*$S$15+$S$14,'Criteria-Status-Tabel'!$A$5:$K$5,0))="extra belangrijk",3,1)),"1") -> 2 | O49: =IFERROR(IF(OR(INDEX('Criteria-Status-Tabel'!$A$5:$K$128,MATCH("1-"&'Invulscherm 1 - Weging'!$A49,'Criteria-Status-Tabel'!$A$5:$A$128,0),MATCH(10*$S$15+$S$14,'Criteria-Status-Tabel'!$A$5:$K$5,0))="relevant",INDEX('Criteria-Status-Tabel'!$A$5:$K$128,MATCH("1-"&'Invulscherm 1 - Weging'!$A49,'Criteria-Status-Tabel'!$A$5:$A$128,0),MATCH(10*$S$15+$S$14,'Criteria-Status-Tabel'!$A$5:$K$5,0))="verplicht")=TRUE,2,IF(INDEX('Criteria-Status-Tabel'!$A$5:$K$128,MATCH("1-"&'Invulscherm 1 - Weging'!$A49,'Criteria-Status-Tabel'!$A$5:$A$128,0),MATCH(10*$S$15+$S$14,'Criteria-Status-Tabel'!$A$5:$K$5,0))="extra belangrijk",3,1)),"1") -> 2 | P49: =IFERROR(IF(OR(INDEX('Criteria-Status-Tabel'!$A$5:$K$128,MATCH("2-"&'Invulscherm 1 - Weging'!$A49,'Criteria-Status-Tabel'!$A$5:$A$128,0),MATCH(10*$S$15+$S$14,'Criteria-Status-Tabel'!$A$5:$K$5,0))="relevant",INDEX('Criteria-Status-Tabel'!$A$5:$K$128,MATCH("2-"&'Invulscherm 1 - Weging'!$A49,'Criteria-Status-Tabel'!$A$5:$A$128,0),MATCH(10*$S$15+$S$14,'Criteria-Status-Tabel'!$A$5:$K$5,0))="verplicht")=TRUE,2,IF(INDEX('Criteria-Status-Tabel'!$A$5:$K$128,MATCH("2-"&'Invulscherm 1 - Weging'!$A49,'Criteria-Status-Tabel'!$A$5:$A$128,0),MATCH(10*$S$15+$S$14,'Criteria-Status-Tabel'!$A$5:$K$5,0))="extra belangrijk",3,1)),"1") -> 2 | Q49: 0 | R49: 0 | U49: =SUM($U$46+$V$46)/SUM($K$48:$L$57) -> 0.5769230769 | V49: =SUM($U$46+$V$46)/SUM($K$48:$L$57) -> 0.5769230769
A50: IOR2 | B50: Infrastructuur & Gebouwen | Q50: 0 | R50: 0
A51: IOR2.1 | C51: Bestaande bebouwing | E51: =IF(K51=2,"verplicht","extra belangrijk") -> verplicht | F51: =IF(K51=1,U51,IF(K51=2,U51*2,IF(K51=3,U51*3))) -> 1.153846154 | H51: =IF(L51=1,"minder belangrijk",IF(L51=2,"relevant",IF(L51=3,"extra belangrijk"))) -> relevant | I51: =IF(L51=1,V51,IF(L51=2,V51*2,IF(L51=3,V51*3))) -> 1.153846154 | K51: =IFERROR(IF(OR(INDEX('Criteria-Status-Tabel'!$A$5:$K$128,MATCH("1-"&'Invulscherm 1 - Weging'!$A51,'Criteria-Status-Tabel'!$A$5:$A$128,0),MATCH(10*$S$15+$S$14,'Criteria-Status-Tabel'!$A$5:$K$5,0))="relevant",INDEX('Criteria-Status-Tabel'!$A$5:$K$128,MATCH("1-"&'Invulscherm 1 - Weging'!$A51,'Criteria-Status-Tabel'!$A$5:$A$128,0),MATCH(10*$S$15+$S$14,'Criteria-Status-Tabel'!$A$5:$K$5,0))="verplicht")=TRUE,2,IF(INDEX('Criteria-Status-Tabel'!$A$5:$K$128,MATCH("1-"&'Invulscherm 1 - Weging'!$A51,'Criteria-Status-Tabel'!$A$5:$A$128,0),MATCH(10*$S$15+$S$14,'Criteria-Status-Tabel'!$A$5:$K$5,0))="extra belangrijk",3,1)),"1") -> 2 | L51: =IFERROR(IF(OR(INDEX('Criteria-Status-Tabel'!$A$5:$K$128,MATCH("2-"&'Invulscherm 1 - Weging'!$A51,'Criteria-Status-Tabel'!$A$5:$A$128,0),MATCH(10*$S$15+$S$14,'Criteria-Status-Tabel'!$A$5:$K$5,0))="relevant",INDEX('Criteria-Status-Tabel'!$A$5:$K$128,MATCH("2-"&'Invulscherm 1 - Weging'!$A51,'Criteria-Status-Tabel'!$A$5:$A$128,0),MATCH(10*$S$15+$S$14,'Criteria-Status-Tabel'!$A$5:$K$5,0))="verplicht")=TRUE,2,IF(INDEX('Criteria-Status-Tabel'!$A$5:$K$128,MATCH("2-"&'Invulscherm 1 - Weging'!$A51,'Criteria-Status-Tabel'!$A$5:$A$128,0),MATCH(10*$S$15+$S$14,'Criteria-Status-Tabel'!$A$5:$K$5,0))="extra belangrijk",3,1)),"1") -> 2 | O51: =IFERROR(IF(OR(INDEX('Criteria-Status-Tabel'!$A$5:$K$128,MATCH("1-"&'Invulscherm 1 - Weging'!$A51,'Criteria-Status-Tabel'!$A$5:$A$128,0),MATCH(10*$S$15+$S$14,'Criteria-Status-Tabel'!$A$5:$K$5,0))="relevant",INDEX('Criteria-Status-Tabel'!$A$5:$K$128,MATCH("1-"&'Invulscherm 1 - Weging'!$A51,'Criteria-Status-Tabel'!$A$5:$A$128,0),MATCH(10*$S$15+$S$14,'Criteria-Status-Tabel'!$A$5:$K$5,0))="verplicht")=TRUE,2,IF(INDEX('Criteria-Status-Tabel'!$A$5:$K$128,MATCH("1-"&'Invulscherm 1 - Weging'!$A51,'Criteria-Status-Tabel'!$A$5:$A$128,0),MATCH(10*$S$15+$S$14,'Criteria-Status-Tabel'!$A$5:$K$5,0))="extra belangrijk",3,1)),"1") -> 2 | P51: =IFERROR(IF(OR(INDEX('Criteria-Status-Tabel'!$A$5:$K$128,MATCH("2-"&'Invulscherm 1 - Weging'!$A51,'Criteria-Status-Tabel'!$A$5:$A$128,0),MATCH(10*$S$15+$S$14,'Criteria-Status-Tabel'!$A$5:$K$5,0))="relevant",INDEX('Criteria-Status-Tabel'!$A$5:$K$128,MATCH("2-"&'Invulscherm 1 - Weging'!$A51,'Criteria-Status-Tabel'!$A$5:$A$128,0),MATCH(10*$S$15+$S$14,'Criteria-Status-Tabel'!$A$5:$K$5,0))="verplicht")=TRUE,2,IF(INDEX('Criteria-Status-Tabel'!$A$5:$K$128,MATCH("2-"&'Invulscherm 1 - Weging'!$A51,'Criteria-Status-Tabel'!$A$5:$A$128,0),MATCH(10*$S$15+$S$14,'Criteria-Status-Tabel'!$A$5:$K$5,0))="extra belangrijk",3,1)),"1") -> 2 | Q51: 0 | R51: 0 | U51: =SUM($U$46+$V$46)/SUM($K$48:$L$57) -> 0.5769230769 | V51: =SUM($U$46+$V$46)/SUM($K$48:$L$57) -> 0.5769230769
A52: IOR2.2 | C52: Bestaande infrastructuur | E52: verplicht | F52: =IF(K52=1,U52,IF(K52=2,U52*2,IF(K52=3,U52*3))) -> 1.153846154 | H52: relevant | I52: =IF(L52=1,V52,IF(L52=2,V52*2,IF(L52=3,V52*3))) -> 1.153846154 | K52: =IFERROR(IF(OR(INDEX('Criteria-Status-Tabel'!$A$5:$K$128,MATCH("1-"&'Invulscherm 1 - Weging'!$A52,'Criteria-Status-Tabel'!$A$5:$A$128,0),MATCH(10*$S$15+$S$14,'Criteria-Status-Tabel'!$A$5:$K$5,0))="relevant",INDEX('Criteria-Status-Tabel'!$A$5:$K$128,MATCH("1-"&'Invulscherm 1 - Weging'!$A52,'Criteria-Status-Tabel'!$A$5:$A$128,0),MATCH(10*$S$15+$S$14,'Criteria-Status-Tabel'!$A$5:$K$5,0))="verplicht")=TRUE,2,IF(INDEX('Criteria-Status-Tabel'!$A$5:$K$128,MATCH("1-"&'Invulscherm 1 - Weging'!$A52,'Criteria-Status-Tabel'!$A$5:$A$128,0),MATCH(10*$S$15+$S$14,'Criteria-Status-Tabel'!$A$5:$K$5,0))="extra belangrijk",3,1)),"1") -> 2 | L52: =IFERROR(IF(OR(INDEX('Criteria-Status-Tabel'!$A$5:$K$128,MATCH("2-"&'Invulscherm 1 - Weging'!$A52,'Criteria-Status-Tabel'!$A$5:$A$128,0),MATCH(10*$S$15+$S$14,'Criteria-Status-Tabel'!$A$5:$K$5,0))="relevant",INDEX('Criteria-Status-Tabel'!$A$5:$K$128,MATCH("2-"&'Invulscherm 1 - Weging'!$A52,'Criteria-Status-Tabel'!$A$5:$A$128,0),MATCH(10*$S$15+$S$14,'Criteria-Status-Tabel'!$A$5:$K$5,0))="verplicht")=TRUE,2,IF(INDEX('Criteria-Status-Tabel'!$A$5:$K$128,MATCH("2-"&'Invulscherm 1 - Weging'!$A52,'Criteria-Status-Tabel'!$A$5:$A$128,0),MATCH(10*$S$15+$S$14,'Criteria-Status-Tabel'!$A$5:$K$5,0))="extra belangrijk",3,1)),"1") -> 2 | O52: =IFERROR(IF(OR(INDEX('Criteria-Status-Tabel'!$A$5:$K$128,MATCH("1-"&'Invulscherm 1 - Weging'!$A52,'Criteria-Status-Tabel'!$A$5:$A$128,0),MATCH(10*$S$15+$S$14,'Criteria-Status-Tabel'!$A$5:$K$5,0))="relevant",INDEX('Criteria-Status-Tabel'!$A$5:$K$128,MATCH("1-"&'Invulscherm 1 - Weging'!$A52,'Criteria-Status-Tabel'!$A$5:$A$128,0),MATCH(10*$S$15+$S$14,'Criteria-Status-Tabel'!$A$5:$K$5,0))="verplicht")=TRUE,2,IF(INDEX('Criteria-Status-Tabel'!$A$5:$K$128,MATCH("1-"&'Invulscherm 1 - Weging'!$A52,'Criteria-Status-Tabel'!$A$5:$A$128,0),MATCH(10*$S$15+$S$14,'Criteria-Status-Tabel'!$A$5:$K$5,0))="extra belangrijk",3,1)),"1") -> 2 | P52: =IFERROR(IF(OR(INDEX('Criteria-Status-Tabel'!$A$5:$K$128,MATCH("2-"&'Invulscherm 1 - Weging'!$A52,'Criteria-Status-Tabel'!$A$5:$A$128,0),MATCH(10*$S$15+$S$14,'Criteria-Status-Tabel'!$A$5:$K$5,0))="relevant",INDEX('Criteria-Status-Tabel'!$A$5:$K$128,MATCH("2-"&'Invulscherm 1 - Weging'!$A52,'Criteria-Status-Tabel'!$A$5:$A$128,0),MATCH(10*$S$15+$S$14,'Criteria-Status-Tabel'!$A$5:$K$5,0))="verplicht")=TRUE,2,IF(INDEX('Criteria-Status-Tabel'!$A$5:$K$128,MATCH("2-"&'Invulscherm 1 - Weging'!$A52,'Criteria-Status-Tabel'!$A$5:$A$128,0),MATCH(10*$S$15+$S$14,'Criteria-Status-Tabel'!$A$5:$K$5,0))="extra belangrijk",3,1)),"1") -> 2 | Q52: 0 | R52: 0 | U52: =SUM($U$46+$V$46)/SUM($K$48:$L$57) -> 0.5769230769 | V52: =SUM($U$46+$V$46)/SUM($K$48:$L$57) -> 0.5769230769
A53: IOR2.3 | C53: Nieuwbouw | H53: relevant | I53: =IF(L53=1,V53,IF(L53=2,V53*2,IF(L53=3,V53*3))) -> 1.153846154 | L53: =IFERROR(IF(OR(INDEX('Criteria-Status-Tabel'!$A$5:$K$128,MATCH("2-"&'Invulscherm 1 - Weging'!$A53,'Criteria-Status-Tabel'!$A$5:$A$128,0),MATCH(10*$S$15+$S$14,'Criteria-Status-Tabel'!$A$5:$K$5,0))="relevant",INDEX('Criteria-Status-Tabel'!$A$5:$K$128,MATCH("2-"&'Invulscherm 1 - Weging'!$A53,'Criteria-Status-Tabel'!$A$5:$A$128,0),MATCH(10*$S$15+$S$14,'Criteria-Status-Tabel'!$A$5:$K$5,0))="verplicht")=TRUE,2,IF(INDEX('Criteria-Status-Tabel'!$A$5:$K$128,MATCH("2-"&'Invulscherm 1 - Weging'!$A53,'Criteria-Status-Tabel'!$A$5:$A$128,0),MATCH(10*$S$15+$S$14,'Criteria-Status-Tabel'!$A$5:$K$5,0))="extra belangrijk",3,1)),"1") -> 2 | P53: =IFERROR(IF(OR(INDEX('Criteria-Status-Tabel'!$A$5:$K$128,MATCH("2-"&'Invulscherm 1 - Weging'!$A53,'Criteria-Status-Tabel'!$A$5:$A$128,0),MATCH(10*$S$15+$S$14,'Criteria-Status-Tabel'!$A$5:$K$5,0))="relevant",INDEX('Criteria-Status-Tabel'!$A$5:$K$128,MATCH("2-"&'Invulscherm 1 - Weging'!$A53,'Criteria-Status-Tabel'!$A$5:$A$128,0),MATCH(10*$S$15+$S$14,'Criteria-Status-Tabel'!$A$5:$K$5,0))="verplicht")=TRUE,2,IF(INDEX('Criteria-Status-Tabel'!$A$5:$K$128,MATCH("2-"&'Invulscherm 1 - Weging'!$A53,'Criteria-Status-Tabel'!$A$5:$A$128,0),MATCH(10*$S$15+$S$14,'Criteria-Status-Tabel'!$A$5:$K$5,0))="extra belangrijk",3,1)),"1") -> 2 | Q53: 0 | R53: 0 | V53: =SUM($U$46+$V$46)/SUM($K$48:$L$57) -> 0.5769230769 | W53: Alleen uit bij 'bestaande terreinen' of als aangetoond kan worden
A54: IOR3 | B54: Openbare ruimte | Q54: 0 | R54: 0
A55: IOR3.1 | C55: Materiaalgebruik | H55: =IF(L55=1,"minder belangrijk",IF(L55=2,"relevant",IF(L55=3,"extra belangrijk"))) -> extra belangrijk | I55: =IF(L55=1,V55,IF(L55=2,V55*2,IF(L55=3,V55*3))) -> 1.730769231 | L55: =IFERROR(IF(OR(INDEX('Criteria-Status-Tabel'!$A$5:$K$128,MATCH("2-"&'Invulscherm 1 - Weging'!$A55,'Criteria-Status-Tabel'!$A$5:$A$128,0),MATCH(10*$S$15+$S$14,'Criteria-Status-Tabel'!$A$5:$K$5,0))="relevant",INDEX('Criteria-Status-Tabel'!$A$5:$K$128,MATCH("2-"&'Invulscherm 1 - Weging'!$A55,'Criteria-Status-Tabel'!$A$5:$A$128,0),MATCH(10*$S$15+$S$14,'Criteria-Status-Tabel'!$A$5:$K$5,0))="verplicht")=TRUE,2,IF(INDEX('Criteria-Status-Tabel'!$A$5:$K$128,MATCH("2-"&'Invulscherm 1 - Weging'!$A55,'Criteria-Status-Tabel'!$A$5:$A$128,0),MATCH(10*$S$15+$S$14,'Criteria-Status-Tabel'!$A$5:$K$5,0))="extra belangrijk",3,1)),"1") -> 3 | P55: =IFERROR(IF(OR(INDEX('Criteria-Status-Tabel'!$A$5:$K$128,MATCH("2-"&'Invulscherm 1 - Weging'!$A55,'Criteria-Status-Tabel'!$A$5:$A$128,0),MATCH(10*$S$15+$S$14,'Criteria-Status-Tabel'!$A$5:$K$5,0))="relevant",INDEX('Criteria-Status-Tabel'!$A$5:$K$128,MATCH("2-"&'Invulscherm 1 - Weging'!$A55,'Criteria-Status-Tabel'!$A$5:$A$128,0),MATCH(10*$S$15+$S$14,'Criteria-Status-Tabel'!$A$5:$K$5,0))="verplicht")=TRUE,2,IF(INDEX('Criteria-Status-Tabel'!$A$5:$K$128,MATCH("2-"&'Invulscherm 1 - Weging'!$A55,'Criteria-Status-Tabel'!$A$5:$A$128,0),MATCH(10*$S$15+$S$14,'Criteria-Status-Tabel'!$A$5:$K$5,0))="extra belangrijk",3,1)),"1") -> 3 | Q55: 0 | R55: 0 | V55: =SUM($U$46+$V$46)/SUM($K$48:$L$57) -> 0.5769230769 | W55: Alleen uit bij 'bestaande terreinen' of als aangetoond kan worden
A56: IOR3.2 | C56: Onderhoud | H56: =IF(L56=2,"verplicht","extra belangrijk") -> verplicht | I56: =IF(L56=1,V56,IF(L56=2,V56*2,IF(L56=3,V56*3))) -> 1.153846154 | L56: =IFERROR(IF(OR(INDEX('Criteria-Status-Tabel'!$A$5:$K$128,MATCH("2-"&'Invulscherm 1 - Weging'!$A56,'Criteria-Status-Tabel'!$A$5:$A$128,0),MATCH(10*$S$15+$S$14,'Criteria-Status-Tabel'!$A$5:$K$5,0))="relevant",INDEX('Criteria-Status-Tabel'!$A$5:$K$128,MATCH("2-"&'Invulscherm 1 - Weging'!$A56,'Criteria-Status-Tabel'!$A$5:$A$128,0),MATCH(10*$S$15+$S$14,'Criteria-Status-Tabel'!$A$5:$K$5,0))="verplicht")=TRUE,2,IF(INDEX('Criteria-Status-Tabel'!$A$5:$K$128,MATCH("2-"&'Invulscherm 1 - Weging'!$A56,'Criteria-Status-Tabel'!$A$5:$A$128,0),MATCH(10*$S$15+$S$14,'Criteria-Status-Tabel'!$A$5:$K$5,0))="extra belangrijk",3,1)),"1") -> 2 | P56: =IFERROR(IF(OR(INDEX('Criteria-Status-Tabel'!$A$5:$K$128,MATCH("2-"&'Invulscherm 1 - Weging'!$A56,'Criteria-Status-Tabel'!$A$5:$A$128,0),MATCH(10*$S$15+$S$14,'Criteria-Status-Tabel'!$A$5:$K$5,0))="relevant",INDEX('Criteria-Status-Tabel'!$A$5:$K$128,MATCH("2-"&'Invulscherm 1 - Weging'!$A56,'Criteria-Status-Tabel'!$A$5:$A$128,0),MATCH(10*$S$15+$S$14,'Criteria-Status-Tabel'!$A$5:$K$5,0))="verplicht")=TRUE,2,IF(INDEX('Criteria-Status-Tabel'!$A$5:$K$128,MATCH("2-"&'Invulscherm 1 - Weging'!$A56,'Criteria-Status-Tabel'!$A$5:$A$128,0),MATCH(10*$S$15+$S$14,'Criteria-Status-Tabel'!$A$5:$K$5,0))="extra belangrijk",3,1)),"1") -> 2 | Q56: 0 | R56: 0 | V56: =SUM($U$46+$V$46)/SUM($K$48:$L$57) -> 0.5769230769
A57: IOR3.3 | C57: Kabels & Leidingen / Nutsvoorzieningen | H57: =IF(L57=1,"minder belangrijk",IF(L57=2,"relevant",IF(L57=3,"extra belangrijk"))) -> extra belangrijk | I57: =IF(L57=1,V57,IF(L57=2,V57*2,IF(L57=3,V57*3))) -> 1.730769231 | L57: =IFERROR(IF(OR(INDEX('Criteria-Status-Tabel'!$A$5:$K$128,MATCH("2-"&'Invulscherm 1 - Weging'!$A57,'Criteria-Status-Tabel'!$A$5:$A$128,0),MATCH(10*$S$15+$S$14,'Criteria-Status-Tabel'!$A$5:$K$5,0))="relevant",INDEX('Criteria-Status-Tabel'!$A$5:$K$128,MATCH("2-"&'Invulscherm 1 - Weging'!$A57,'Criteria-Status-Tabel'!$A$5:$A$128,0),MATCH(10*$S$15+$S$14,'Criteria-Status-Tabel'!$A$5:$K$5,0))="verplicht")=TRUE,2,IF(INDEX('Criteria-Status-Tabel'!$A$5:$K$128,MATCH("2-"&'Invulscherm 1 - Weging'!$A57,'Criteria-Status-Tabel'!$A$5:$A$128,0),MATCH(10*$S$15+$S$14,'Criteria-Status-Tabel'!$A$5:$K$5,0))="extra belangrijk",3,1)),"1") -> 3 | P57: =IFERROR(IF(OR(INDEX('Criteria-Status-Tabel'!$A$5:$K$128,MATCH("2-"&'Invulscherm 1 - Weging'!$A57,'Criteria-Status-Tabel'!$A$5:$A$128,0),MATCH(10*$S$15+$S$14,'Criteria-Status-Tabel'!$A$5:$K$5,0))="relevant",INDEX('Criteria-Status-Tabel'!$A$5:$K$128,MATCH("2-"&'Invulscherm 1 - Weging'!$A57,'Criteria-Status-Tabel'!$A$5:$A$128,0),MATCH(10*$S$15+$S$14,'Criteria-Status-Tabel'!$A$5:$K$5,0))="verplicht")=TRUE,2,IF(INDEX('Criteria-Status-Tabel'!$A$5:$K$128,MATCH("2-"&'Invulscherm 1 - Weging'!$A57,'Criteria-Status-Tabel'!$A$5:$A$128,0),MATCH(10*$S$15+$S$14,'Criteria-Status-Tabel'!$A$5:$K$5,0))="extra belangrijk",3,1)),"1") -> 3 | Q57: 0 | R57: 0 | V57: =SUM($U$46+$V$46)/SUM($K$48:$L$57) -> 0.5769230769 | W57: Allen uit bij 'bestaande terreinen'
A58: BRE | B58: 4. BRONNEN & ENERGIE (15%) | D58: =IF(SUM(Q61:R68)=0,"U heeft nog geen wijzigingen in dit thema doorgevoerd",IF(SUM(Q61:R68)=1,"Let op! U kunt nog 2 wijziging binnen dit thema doorvoeren",IF(SUM(Q61:R68)=2,"Let op! U kunt nog 1 wijziging voor dit thema doorvoeren",IF(SUM(Q61:R68)=3,"LET OP! U mag geen wijzigingen meer doorvoeren binnen dit thema","STOP! U heeft te veel wijzigingen doorgevoerd. Klik op de knop 'basiswaarden' om te resetten")))) -> U heeft nog geen wijzigingen in dit thema doorgevoerd | J58: =SUM(I59+F59) -> 15
F59: =SUM(F61:F68) -> 8.035714286 | I59: =SUM(I61:I68) -> 6.964285714 | Q59: =IF(K59<>O59,1,0) -> 0 | R59: =IF(L59<>P59,1,0) -> 0 | U59: 5 | V59: 10
A60: BRE1 | B60: Energie | Q60: 0 | R60: 0
A61: BRE1.1 | B61: Rationeel Energie Gebruik (REG) | E61: =IF(K61=2,"verplicht","extra belangrijk") -> extra belangrijk | F61: =IF(K61=1,U61,IF(K61=2,U61*2,IF(K61=3,U61*3))) -> 1.607142857 | H61: =IF(L61=1,"minder belangrijk",IF(L61=2,"relevant",IF(L61=3,"extra belangrijk"))) -> extra belangrijk | I61: =IF(L61=1,V61,IF(L61=2,V61*2,IF(L61=3,V61*3))) -> 1.607142857 | K61: =IFERROR(IF(OR(INDEX('Criteria-Status-Tabel'!$A$5:$K$128,MATCH("1-"&'Invulscherm 1 - Weging'!$A61,'Criteria-Status-Tabel'!$A$5:$A$128,0),MATCH(10*$S$15+$S$14,'Criteria-Status-Tabel'!$A$5:$K$5,0))="relevant",INDEX('Criteria-Status-Tabel'!$A$5:$K$128,MATCH("1-"&'Invulscherm 1 - Weging'!$A61,'Criteria-Status-Tabel'!$A$5:$A$128,0),MATCH(10*$S$15+$S$14,'Criteria-Status-Tabel'!$A$5:$K$5,0))="verplicht")=TRUE,2,IF(INDEX('Criteria-Status-Tabel'!$A$5:$K$128,MATCH("1-"&'Invulscherm 1 - Weging'!$A61,'Criteria-Status-Tabel'!$A$5:$A$128,0),MATCH(10*$S$15+$S$14,'Criteria-Status-Tabel'!$A$5:$K$5,0))="extra belangrijk",3,1)),"1") -> 3 | L61: =IFERROR(IF(OR(INDEX('Criteria-Status-Tabel'!$A$5:$K$128,MATCH("2-"&'Invulscherm 1 - Weging'!$A61,'Criteria-Status-Tabel'!$A$5:$A$128,0),MATCH(10*$S$15+$S$14,'Criteria-Status-Tabel'!$A$5:$K$5,0))="relevant",INDEX('Criteria-Status-Tabel'!$A$5:$K$128,MATCH("2-"&'Invulscherm 1 - Weging'!$A61,'Criteria-Status-Tabel'!$A$5:$A$128,0),MATCH(10*$S$15+$S$14,'Criteria-Status-Tabel'!$A$5:$K$5,0))="verplicht")=TRUE,2,IF(INDEX('Criteria-Status-Tabel'!$A$5:$K$128,MATCH("2-"&'Invulscherm 1 - Weging'!$A61,'Criteria-Status-Tabel'!$A$5:$A$128,0),MATCH(10*$S$15+$S$14,'Criteria-Status-Tabel'!$A$5:$K$5,0))="extra belangrijk",3,1)),"1") -> 3 | O61: =IFERROR(IF(OR(INDEX('Criteria-Status-Tabel'!$A$5:$K$128,MATCH("1-"&'Invulscherm 1 - Weging'!$A61,'Criteria-Status-Tabel'!$A$5:$A$128,0),MATCH(10*$S$15+$S$14,'Criteria-Status-Tabel'!$A$5:$K$5,0))="relevant",INDEX('Criteria-Status-Tabel'!$A$5:$K$128,MATCH("1-"&'Invulscherm 1 - Weging'!$A61,'Criteria-Status-Tabel'!$A$5:$A$128,0),MATCH(10*$S$15+$S$14,'Criteria-Status-Tabel'!$A$5:$K$5,0))="verplicht")=TRUE,2,IF(INDEX('Criteria-Status-Tabel'!$A$5:$K$128,MATCH("1-"&'Invulscherm 1 - Weging'!$A61,'Criteria-Status-Tabel'!$A$5:$A$128,0),MATCH(10*$S$15+$S$14,'Criteria-Status-Tabel'!$A$5:$K$5,0))="extra belangrijk",3,1)),"1") -> 3 | P61: =IFERROR(IF(OR(INDEX('Criteria-Status-Tabel'!$A$5:$K$128,MATCH("2-"&'Invulscherm 1 - Weging'!$A61,'Criteria-Status-Tabel'!$A$5:$A$128,0),MATCH(10*$S$15+$S$14,'Criteria-Status-Tabel'!$A$5:$K$5,0))="relevant",INDEX('Criteria-Status-Tabel'!$A$5:$K$128,MATCH("2-"&'Invulscherm 1 - Weging'!$A61,'Criteria-Status-Tabel'!$A$5:$A$128,0),MATCH(10*$S$15+$S$14,'Criteria-Status-Tabel'!$A$5:$K$5,0))="verplicht")=TRUE,2,IF(INDEX('Criteria-Status-Tabel'!$A$5:$K$128,MATCH("2-"&'Invulscherm 1 - Weging'!$A61,'Criteria-Status-Tabel'!$A$5:$A$128,0),MATCH(10*$S$15+$S$14,'Criteria-Status-Tabel'!$A$5:$K$5,0))="extra belangrijk",3,1)),"1") -> 3 | Q61: 0 | R61: 0 | U61: =SUM(15)/(SUM($K$61:$L$68)) -> 0.5357142857 | V61: =SUM(15)/(SUM($K$61:$L$68)) -> 0.5357142857
A62: BRE1.2 | B62: Restwarmte en -koude | E62: extra belangrijk | F62: =IF(K62=1,U62,IF(K62=2,U62*2,IF(K62=3,U62*3))) -> 1.607142857 | H62: relevant | I62: =IF(L62=1,V62,IF(L62=2,V62*2,IF(L62=3,V62*3))) -> 1.071428571 | K62: =IFERROR(IF(OR(INDEX('Criteria-Status-Tabel'!$A$5:$K$128,MATCH("1-"&'Invulscherm 1 - Weging'!$A62,'Criteria-Status-Tabel'!$A$5:$A$128,0),MATCH(10*$S$15+$S$14,'Criteria-Status-Tabel'!$A$5:$K$5,0))="relevant",INDEX('Criteria-Status-Tabel'!$A$5:$K$128,MATCH("1-"&'Invulscherm 1 - Weging'!$A62,'Criteria-Status-Tabel'!$A$5:$A$128,0),MATCH(10*$S$15+$S$14,'Criteria-Status-Tabel'!$A$5:$K$5,0))="verplicht")=TRUE,2,IF(INDEX('Criteria-Status-Tabel'!$A$5:$K$128,MATCH("1-"&'Invulscherm 1 - Weging'!$A62,'Criteria-Status-Tabel'!$A$5:$A$128,0),MATCH(10*$S$15+$S$14,'Criteria-Status-Tabel'!$A$5:$K$5,0))="extra belangrijk",3,1)),"1") -> 3 | L62: =IFERROR(IF(OR(INDEX('Criteria-Status-Tabel'!$A$5:$K$128,MATCH("2-"&'Invulscherm 1 - Weging'!$A62,'Criteria-Status-Tabel'!$A$5:$A$128,0),MATCH(10*$S$15+$S$14,'Criteria-Status-Tabel'!$A$5:$K$5,0))="relevant",INDEX('Criteria-Status-Tabel'!$A$5:$K$128,MATCH("2-"&'Invulscherm 1 - Weging'!$A62,'Criteria-Status-Tabel'!$A$5:$A$128,0),MATCH(10*$S$15+$S$14,'Criteria-Status-Tabel'!$A$5:$K$5,0))="verplicht")=TRUE,2,IF(INDEX('Criteria-Status-Tabel'!$A$5:$K$128,MATCH("2-"&'Invulscherm 1 - Weging'!$A62,'Criteria-Status-Tabel'!$A$5:$A$128,0),MATCH(10*$S$15+$S$14,'Criteria-Status-Tabel'!$A$5:$K$5,0))="extra belangrijk",3,1)),"1") -> 2 | O62: =IFERROR(IF(OR(INDEX('Criteria-Status-Tabel'!$A$5:$K$128,MATCH("1-"&'Invulscherm 1 - Weging'!$A62,'Criteria-Status-Tabel'!$A$5:$A$128,0),MATCH(10*$S$15+$S$14,'Criteria-Status-Tabel'!$A$5:$K$5,0))="relevant",INDEX('Criteria-Status-Tabel'!$A$5:$K$128,MATCH("1-"&'Invulscherm 1 - Weging'!$A62,'Criteria-Status-Tabel'!$A$5:$A$128,0),MATCH(10*$S$15+$S$14,'Criteria-Status-Tabel'!$A$5:$K$5,0))="verplicht")=TRUE,2,IF(INDEX('Criteria-Status-Tabel'!$A$5:$K$128,MATCH("1-"&'Invulscherm 1 - Weging'!$A62,'Criteria-Status-Tabel'!$A$5:$A$128,0),MATCH(10*$S$15+$S$14,'Criteria-Status-Tabel'!$A$5:$K$5,0))="extra belangrijk",3,1)),"1") -> 3 | P62: =IFERROR(IF(OR(INDEX('Criteria-Status-Tabel'!$A$5:$K$128,MATCH("2-"&'Invulscherm 1 - Weging'!$A62,'Criteria-Status-Tabel'!$A$5:$A$128,0),MATCH(10*$S$15+$S$14,'Criteria-Status-Tabel'!$A$5:$K$5,0))="relevant",INDEX('Criteria-Status-Tabel'!$A$5:$K$128,MATCH("2-"&'Invulscherm 1 - Weging'!$A62,'Criteria-Status-Tabel'!$A$5:$A$128,0),MATCH(10*$S$15+$S$14,'Criteria-Status-Tabel'!$A$5:$K$5,0))="verplicht")=TRUE,2,IF(INDEX('Criteria-Status-Tabel'!$A$5:$K$128,MATCH("2-"&'Invulscherm 1 - Weging'!$A62,'Criteria-Status-Tabel'!$A$5:$A$128,0),MATCH(10*$S$15+$S$14,'Criteria-Status-Tabel'!$A$5:$K$5,0))="extra belangrijk",3,1)),"1") -> 2 | Q62: 0 | R62: 0 | U62: 0.5357142857 | V62: 0.5357142857
A63: BRE1.3 | B63: Duurzame energie | E63: verplicht | F63: =IF(K63=1,U63,IF(K63=2,U63*2,IF(K63=3,U63*3))) -> 1.071428571 | H63: relevant | I63: =IF(L63=1,V63,IF(L63=2,V63*2,IF(L63=3,V63*3))) -> 1.071428571 | K63: =IFERROR(IF(OR(INDEX('Criteria-Status-Tabel'!$A$5:$K$128,MATCH("1-"&'Invulscherm 1 - Weging'!$A63,'Criteria-Status-Tabel'!$A$5:$A$128,0),MATCH(10*$S$15+$S$14,'Criteria-Status-Tabel'!$A$5:$K$5,0))="relevant",INDEX('Criteria-Status-Tabel'!$A$5:$K$128,MATCH("1-"&'Invulscherm 1 - Weging'!$A63,'Criteria-Status-Tabel'!$A$5:$A$128,0),MATCH(10*$S$15+$S$14,'Criteria-Status-Tabel'!$A$5:$K$5,0))="verplicht")=TRUE,2,IF(INDEX('Criteria-Status-Tabel'!$A$5:$K$128,MATCH("1-"&'Invulscherm 1 - Weging'!$A63,'Criteria-Status-Tabel'!$A$5:$A$128,0),MATCH(10*$S$15+$S$14,'Criteria-Status-Tabel'!$A$5:$K$5,0))="extra belangrijk",3,1)),"1") -> 2 | L63: =IFERROR(IF(OR(INDEX('Criteria-Status-Tabel'!$A$5:$K$128,MATCH("2-"&'Invulscherm 1 - Weging'!$A63,'Criteria-Status-Tabel'!$A$5:$A$128,0),MATCH(10*$S$15+$S$14,'Criteria-Status-Tabel'!$A$5:$K$5,0))="relevant",INDEX('Criteria-Status-Tabel'!$A$5:$K$128,MATCH("2-"&'Invulscherm 1 - Weging'!$A63,'Criteria-Status-Tabel'!$A$5:$A$128,0),MATCH(10*$S$15+$S$14,'Criteria-Status-Tabel'!$A$5:$K$5,0))="verplicht")=TRUE,2,IF(INDEX('Criteria-Status-Tabel'!$A$5:$K$128,MATCH("2-"&'Invulscherm 1 - Weging'!$A63,'Criteria-Status-Tabel'!$A$5:$A$128,0),MATCH(10*$S$15+$S$14,'Criteria-Status-Tabel'!$A$5:$K$5,0))="extra belangrijk",3,1)),"1") -> 2 | O63: =IFERROR(IF(OR(INDEX('Criteria-Status-Tabel'!$A$5:$K$128,MATCH("1-"&'Invulscherm 1 - Weging'!$A63,'Criteria-Status-Tabel'!$A$5:$A$128,0),MATCH(10*$S$15+$S$14,'Criteria-Status-Tabel'!$A$5:$K$5,0))="relevant",INDEX('Criteria-Status-Tabel'!$A$5:$K$128,MATCH("1-"&'Invulscherm 1 - Weging'!$A63,'Criteria-Status-Tabel'!$A$5:$A$128,0),MATCH(10*$S$15+$S$14,'Criteria-Status-Tabel'!$A$5:$K$5,0))="verplicht")=TRUE,2,IF(INDEX('Criteria-Status-Tabel'!$A$5:$K$128,MATCH("1-"&'Invulscherm 1 - Weging'!$A63,'Criteria-Status-Tabel'!$A$5:$A$128,0),MATCH(10*$S$15+$S$14,'Criteria-Status-Tabel'!$A$5:$K$5,0))="extra belangrijk",3,1)),"1") -> 2 | P63: =IFERROR(IF(OR(INDEX('Criteria-Status-Tabel'!$A$5:$K$128,MATCH("2-"&'Invulscherm 1 - Weging'!$A63,'Criteria-Status-Tabel'!$A$5:$A$128,0),MATCH(10*$S$15+$S$14,'Criteria-Status-Tabel'!$A$5:$K$5,0))="relevant",INDEX('Criteria-Status-Tabel'!$A$5:$K$128,MATCH("2-"&'Invulscherm 1 - Weging'!$A63,'Criteria-Status-Tabel'!$A$5:$A$128,0),MATCH(10*$S$15+$S$14,'Criteria-Status-Tabel'!$A$5:$K$5,0))="verplicht")=TRUE,2,IF(INDEX('Criteria-Status-Tabel'!$A$5:$K$128,MATCH("2-"&'Invulscherm 1 - Weging'!$A63,'Criteria-Status-Tabel'!$A$5:$A$128,0),MATCH(10*$S$15+$S$14,'Criteria-Status-Tabel'!$A$5:$K$5,0))="extra belangrijk",3,1)),"1") -> 2 | Q63: 0 | R63: 0 | S63: =IF($S$15=1,2,1) -> 2 | U63: 0.5357142857 | V63: 0.5357142857 | W63: Bestaande terreinen belangrijk - Nieuwe terreinen extra belangrijk!
A64: BRE1.4 | B64: SMART-Grid | E64: verplicht | F64: =IF(K64=1,U64,IF(K64=2,U64*2,IF(K64=3,U64*3))) -> 1.071428571 | H64: relevant | I64: =IF(L64=1,V64,IF(L64=2,V64*2,IF(L64=3,V64*3))) -> 1.071428571 | K64: =IFERROR(IF(OR(INDEX('Criteria-Status-Tabel'!$A$5:$K$128,MATCH("1-"&'Invulscherm 1 - Weging'!$A64,'Criteria-Status-Tabel'!$A$5:$A$128,0),MATCH(10*$S$15+$S$14,'Criteria-Status-Tabel'!$A$5:$K$5,0))="relevant",INDEX('Criteria-Status-Tabel'!$A$5:$K$128,MATCH("1-"&'Invulscherm 1 - Weging'!$A64,'Criteria-Status-Tabel'!$A$5:$A$128,0),MATCH(10*$S$15+$S$14,'Criteria-Status-Tabel'!$A$5:$K$5,0))="verplicht")=TRUE,2,IF(INDEX('Criteria-Status-Tabel'!$A$5:$K$128,MATCH("1-"&'Invulscherm 1 - Weging'!$A64,'Criteria-Status-Tabel'!$A$5:$A$128,0),MATCH(10*$S$15+$S$14,'Criteria-Status-Tabel'!$A$5:$K$5,0))="extra belangrijk",3,1)),"1") -> 2 | L64: =IFERROR(IF(OR(INDEX('Criteria-Status-Tabel'!$A$5:$K$128,MATCH("2-"&'Invulscherm 1 - Weging'!$A64,'Criteria-Status-Tabel'!$A$5:$A$128,0),MATCH(10*$S$15+$S$14,'Criteria-Status-Tabel'!$A$5:$K$5,0))="relevant",INDEX('Criteria-Status-Tabel'!$A$5:$K$128,MATCH("2-"&'Invulscherm 1 - Weging'!$A64,'Criteria-Status-Tabel'!$A$5:$A$128,0),MATCH(10*$S$15+$S$14,'Criteria-Status-Tabel'!$A$5:$K$5,0))="verplicht")=TRUE,2,IF(INDEX('Criteria-Status-Tabel'!$A$5:$K$128,MATCH("2-"&'Invulscherm 1 - Weging'!$A64,'Criteria-Status-Tabel'!$A$5:$A$128,0),MATCH(10*$S$15+$S$14,'Criteria-Status-Tabel'!$A$5:$K$5,0))="extra belangrijk",3,1)),"1") -> 2 | O64: =IFERROR(IF(OR(INDEX('Criteria-Status-Tabel'!$A$5:$K$128,MATCH("1-"&'Invulscherm 1 - Weging'!$A64,'Criteria-Status-Tabel'!$A$5:$A$128,0),MATCH(10*$S$15+$S$14,'Criteria-Status-Tabel'!$A$5:$K$5,0))="relevant",INDEX('Criteria-Status-Tabel'!$A$5:$K$128,MATCH("1-"&'Invulscherm 1 - Weging'!$A64,'Criteria-Status-Tabel'!$A$5:$A$128,0),MATCH(10*$S$15+$S$14,'Criteria-Status-Tabel'!$A$5:$K$5,0))="verplicht")=TRUE,2,IF(INDEX('Criteria-Status-Tabel'!$A$5:$K$128,MATCH("1-"&'Invulscherm 1 - Weging'!$A64,'Criteria-Status-Tabel'!$A$5:$A$128,0),MATCH(10*$S$15+$S$14,'Criteria-Status-Tabel'!$A$5:$K$5,0))="extra belangrijk",3,1)),"1") -> 2 | P64: =IFERROR(IF(OR(INDEX('Criteria-Status-Tabel'!$A$5:$K$128,MATCH("2-"&'Invulscherm 1 - Weging'!$A64,'Criteria-Status-Tabel'!$A$5:$A$128,0),MATCH(10*$S$15+$S$14,'Criteria-Status-Tabel'!$A$5:$K$5,0))="relevant",INDEX('Criteria-Status-Tabel'!$A$5:$K$128,MATCH("2-"&'Invulscherm 1 - Weging'!$A64,'Criteria-Status-Tabel'!$A$5:$A$128,0),MATCH(10*$S$15+$S$14,'Criteria-Status-Tabel'!$A$5:$K$5,0))="verplicht")=TRUE,2,IF(INDEX('Criteria-Status-Tabel'!$A$5:$K$128,MATCH("2-"&'Invulscherm 1 - Weging'!$A64,'Criteria-Status-Tabel'!$A$5:$A$128,0),MATCH(10*$S$15+$S$14,'Criteria-Status-Tabel'!$A$5:$K$5,0))="extra belangrijk",3,1)),"1") -> 2 | Q64: 0 | R64: 0 | U64: 0.5357142857 | V64: 0.5357142857
A65: BRE2 | B65: Afval & Materiaalbeheer | Q65: 0 | R65: 0
A66: BRE2.1 | B66: Afval & Materiaalbeheer | E66: =IF(K66=1,"minder belangrijk",IF(K66=2,"relevant",IF(K66=3,"extra belangrijk"))) -> extra belangrijk | F66: =IF(K66=1,U66,IF(K66=2,U66*2,IF(K66=3,U66*3))) -> 1.607142857 | H66: =IF(L66=1,"minder belangrijk",IF(L66=2,"relevant",IF(L66=3,"extra belangrijk"))) -> relevant | I66: =IF(L66=1,V66,IF(L66=2,V66*2,IF(L66=3,V66*3))) -> 1.071428571 | K66: =IFERROR(IF(OR(INDEX('Criteria-Status-Tabel'!$A$5:$K$128,MATCH("1-"&'Invulscherm 1 - Weging'!$A66,'Criteria-Status-Tabel'!$A$5:$A$128,0),MATCH(10*$S$15+$S$14,'Criteria-Status-Tabel'!$A$5:$K$5,0))="relevant",INDEX('Criteria-Status-Tabel'!$A$5:$K$128,MATCH("1-"&'Invulscherm 1 - Weging'!$A66,'Criteria-Status-Tabel'!$A$5:$A$128,0),MATCH(10*$S$15+$S$14,'Criteria-Status-Tabel'!$A$5:$K$5,0))="verplicht")=TRUE,2,IF(INDEX('Criteria-Status-Tabel'!$A$5:$K$128,MATCH("1-"&'Invulscherm 1 - Weging'!$A66,'Criteria-Status-Tabel'!$A$5:$A$128,0),MATCH(10*$S$15+$S$14,'Criteria-Status-Tabel'!$A$5:$K$5,0))="extra belangrijk",3,1)),"1") -> 3 | L66: =IFERROR(IF(OR(INDEX('Criteria-Status-Tabel'!$A$5:$K$128,MATCH("2-"&'Invulscherm 1 - Weging'!$A66,'Criteria-Status-Tabel'!$A$5:$A$128,0),MATCH(10*$S$15+$S$14,'Criteria-Status-Tabel'!$A$5:$K$5,0))="relevant",INDEX('Criteria-Status-Tabel'!$A$5:$K$128,MATCH("2-"&'Invulscherm 1 - Weging'!$A66,'Criteria-Status-Tabel'!$A$5:$A$128,0),MATCH(10*$S$15+$S$14,'Criteria-Status-Tabel'!$A$5:$K$5,0))="verplicht")=TRUE,2,IF(INDEX('Criteria-Status-Tabel'!$A$5:$K$128,MATCH("2-"&'Invulscherm 1 - Weging'!$A66,'Criteria-Status-Tabel'!$A$5:$A$128,0),MATCH(10*$S$15+$S$14,'Criteria-Status-Tabel'!$A$5:$K$5,0))="extra belangrijk",3,1)),"1") -> 2 | O66: =IFERROR(IF(OR(INDEX('Criteria-Status-Tabel'!$A$5:$K$128,MATCH("1-"&'Invulscherm 1 - Weging'!$A66,'Criteria-Status-Tabel'!$A$5:$A$128,0),MATCH(10*$S$15+$S$14,'Criteria-Status-Tabel'!$A$5:$K$5,0))="relevant",INDEX('Criteria-Status-Tabel'!$A$5:$K$128,MATCH("1-"&'Invulscherm 1 - Weging'!$A66,'Criteria-Status-Tabel'!$A$5:$A$128,0),MATCH(10*$S$15+$S$14,'Criteria-Status-Tabel'!$A$5:$K$5,0))="verplicht")=TRUE,2,IF(INDEX('Criteria-Status-Tabel'!$A$5:$K$128,MATCH("1-"&'Invulscherm 1 - Weging'!$A66,'Criteria-Status-Tabel'!$A$5:$A$128,0),MATCH(10*$S$15+$S$14,'Criteria-Status-Tabel'!$A$5:$K$5,0))="extra belangrijk",3,1)),"1") -> 3 | P66: =IFERROR(IF(OR(INDEX('Criteria-Status-Tabel'!$A$5:$K$128,MATCH("2-"&'Invulscherm 1 - Weging'!$A66,'Criteria-Status-Tabel'!$A$5:$A$128,0),MATCH(10*$S$15+$S$14,'Criteria-Status-Tabel'!$A$5:$K$5,0))="relevant",INDEX('Criteria-Status-Tabel'!$A$5:$K$128,MATCH("2-"&'Invulscherm 1 - Weging'!$A66,'Criteria-Status-Tabel'!$A$5:$A$128,0),MATCH(10*$S$15+$S$14,'Criteria-Status-Tabel'!$A$5:$K$5,0))="verplicht")=TRUE,2,IF(INDEX('Criteria-Status-Tabel'!$A$5:$K$128,MATCH("2-"&'Invulscherm 1 - Weging'!$A66,'Criteria-Status-Tabel'!$A$5:$A$128,0),MATCH(10*$S$15+$S$14,'Criteria-Status-Tabel'!$A$5:$K$5,0))="extra belangrijk",3,1)),"1") -> 2 | Q66: 0 | R66: 0 | U66: 0.5357142857 | V66: 0.5357142857 | W66: Allen uit bij 'bestaande terreinen'
A67: BRE3.1 | B67: Water | Q67: 0 | R67: 0
A68: BRE3.1 | B68: Water (water als bron) | E68: =IF(K68=2,"verplicht","extra belangrijk") -> verplicht | F68: =IF(K68=1,U68,IF(K68=2,U68*2,IF(K68=3,U68*3))) -> 1.071428571 | H68: =IF(L68=1,"minder belangrijk",IF(L68=2,"relevant",IF(L68=3,"extra belangrijk"))) -> relevant | I68: =IF(L68=1,V68,IF(L68=2,V68*2,IF(L68=3,V68*3))) -> 1.071428571 | K68: =IFERROR(IF(OR(INDEX('Criteria-Status-Tabel'!$A$5:$K$128,MATCH("1-"&'Invulscherm 1 - Weging'!$A68,'Criteria-Status-Tabel'!$A$5:$A$128,0),MATCH(10*$S$15+$S$14,'Criteria-Status-Tabel'!$A$5:$K$5,0))="relevant",INDEX('Criteria-Status-Tabel'!$A$5:$K$128,MATCH("1-"&'Invulscherm 1 - Weging'!$A68,'Criteria-Status-Tabel'!$A$5:$A$128,0),MATCH(10*$S$15+$S$14,'Criteria-Status-Tabel'!$A$5:$K$5,0))="verplicht")=TRUE,2,IF(INDEX('Criteria-Status-Tabel'!$A$5:$K$128,MATCH("1-"&'Invulscherm 1 - Weging'!$A68,'Criteria-Status-Tabel'!$A$5:$A$128,0),MATCH(10*$S$15+$S$14,'Criteria-Status-Tabel'!$A$5:$K$5,0))="extra belangrijk",3,1)),"1") -> 2 | L68: =IFERROR(IF(OR(INDEX('Criteria-Status-Tabel'!$A$5:$K$128,MATCH("2-"&'Invulscherm 1 - Weging'!$A68,'Criteria-Status-Tabel'!$A$5:$A$128,0),MATCH(10*$S$15+$S$14,'Criteria-Status-Tabel'!$A$5:$K$5,0))="relevant",INDEX('Criteria-Status-Tabel'!$A$5:$K$128,MATCH("2-"&'Invulscherm 1 - Weging'!$A68,'Criteria-Status-Tabel'!$A$5:$A$128,0),MATCH(10*$S$15+$S$14,'Criteria-Status-Tabel'!$A$5:$K$5,0))="verplicht")=TRUE,2,IF(INDEX('Criteria-Status-Tabel'!$A$5:$K$128,MATCH("2-"&'Invulscherm 1 - Weging'!$A68,'Criteria-Status-Tabel'!$A$5:$A$128,0),MATCH(10*$S$15+$S$14,'Criteria-Status-Tabel'!$A$5:$K$5,0))="extra belangrijk",3,1)),"1") -> 2 | O68: =IFERROR(IF(OR(INDEX('Criteria-Status-Tabel'!$A$5:$K$128,MATCH("1-"&'Invulscherm 1 - Weging'!$A68,'Criteria-Status-Tabel'!$A$5:$A$128,0),MATCH(10*$S$15+$S$14,'Criteria-Status-Tabel'!$A$5:$K$5,0))="relevant",INDEX('Criteria-Status-Tabel'!$A$5:$K$128,MATCH("1-"&'Invulscherm 1 - Weging'!$A68,'Criteria-Status-Tabel'!$A$5:$A$128,0),MATCH(10*$S$15+$S$14,'Criteria-Status-Tabel'!$A$5:$K$5,0))="verplicht")=TRUE,2,IF(INDEX('Criteria-Status-Tabel'!$A$5:$K$128,MATCH("1-"&'Invulscherm 1 - Weging'!$A68,'Criteria-Status-Tabel'!$A$5:$A$128,0),MATCH(10*$S$15+$S$14,'Criteria-Status-Tabel'!$A$5:$K$5,0))="extra belangrijk",3,1)),"1") -> 2 | P68: =IFERROR(IF(OR(INDEX('Criteria-Status-Tabel'!$A$5:$K$128,MATCH("2-"&'Invulscherm 1 - Weging'!$A68,'Criteria-Status-Tabel'!$A$5:$A$128,0),MATCH(10*$S$15+$S$14,'Criteria-Status-Tabel'!$A$5:$K$5,0))="relevant",INDEX('Criteria-Status-Tabel'!$A$5:$K$128,MATCH("2-"&'Invulscherm 1 - Weging'!$A68,'Criteria-Status-Tabel'!$A$5:$A$128,0),MATCH(10*$S$15+$S$14,'Criteria-Status-Tabel'!$A$5:$K$5,0))="verplicht")=TRUE,2,IF(INDEX('Criteria-Status-Tabel'!$A$5:$K$128,MATCH("2-"&'Invulscherm 1 - Weging'!$A68,'Criteria-Status-Tabel'!$A$5:$A$128,0),MATCH(10*$S$15+$S$14,'Criteria-Status-Tabel'!$A$5:$K$5,0))="extra belangrijk",3,1)),"1") -> 2 | Q68: 0 | R68: 0 | U68: 0.5357142857 | V68: 0.5357142857 | W68: Allen uit bij 'bestaande terreinen'
A69: EDL | B69: 5. ECOLOGIE & DUURZAAM LANDGEBRUIK (20%) | D69: =IF(SUM(Q72:R85)=0,"U heeft nog geen wijzigingen in dit thema doorgevoerd",IF(SUM(Q72:R85)=1,"Let op! U kunt nog 2 wijziging binnen dit thema doorvoeren",IF(SUM(Q72:R85)=2,"Let op! U kunt nog 1 wijziging voor dit thema doorvoeren",IF(SUM(Q72:R85)=3,"LET OP! U mag geen wijzigingen meer doorvoeren binnen dit thema","STOP! U heeft te veel wijzigingen doorgevoerd. Klik op de knop 'basiswaarden' om te resetten")))) -> U heeft nog geen wijzigingen in dit thema doorgevoerd | J69: =SUM(I70+F70) -> 20
F70: =SUM(F72:F85) -> 8.421052632 | I70: =SUM(I72:I85) -> 11.57894737 | Q70: =IF(K70<>O70,1,0) -> 0 | R70: =IF(L70<>P70,1,0) -> 0 | U70: 11 | V70: 9
A71: EDL1 | B71: Karakter | Q71: 0 | R71: 0
A72: EDL1.1 | B72: Karakter van het landschap | E72: =IF(K72=2,"verplicht","extra belangrijk") -> verplicht | F72: =IF(K72=1,U72,IF(K72=2,U72*2,IF(K72=3,U72*3))) -> 1.052631579 | H72: =IF(L72=1,"minder belangrijk",IF(L72=2,"relevant",IF(L72=3,"extra belangrijk"))) -> relevant | I72: =IF(L72=1,V72,IF(L72=2,V72*2,IF(L72=3,V72*3))) -> 1.052631579 | K72: =IFERROR(IF(OR(INDEX('Criteria-Status-Tabel'!$A$5:$K$128,MATCH("1-"&'Invulscherm 1 - Weging'!$A72,'Criteria-Status-Tabel'!$A$5:$A$128,0),MATCH(10*$S$15+$S$14,'Criteria-Status-Tabel'!$A$5:$K$5,0))="relevant",INDEX('Criteria-Status-Tabel'!$A$5:$K$128,MATCH("1-"&'Invulscherm 1 - Weging'!$A72,'Criteria-Status-Tabel'!$A$5:$A$128,0),MATCH(10*$S$15+$S$14,'Criteria-Status-Tabel'!$A$5:$K$5,0))="verplicht")=TRUE,2,IF(INDEX('Criteria-Status-Tabel'!$A$5:$K$128,MATCH("1-"&'Invulscherm 1 - Weging'!$A72,'Criteria-Status-Tabel'!$A$5:$A$128,0),MATCH(10*$S$15+$S$14,'Criteria-Status-Tabel'!$A$5:$K$5,0))="extra belangrijk",3,1)),"1") -> 2 | L72: =IFERROR(IF(OR(INDEX('Criteria-Status-Tabel'!$A$5:$K$128,MATCH("2-"&'Invulscherm 1 - Weging'!$A72,'Criteria-Status-Tabel'!$A$5:$A$128,0),MATCH(10*$S$15+$S$14,'Criteria-Status-Tabel'!$A$5:$K$5,0))="relevant",INDEX('Criteria-Status-Tabel'!$A$5:$K$128,MATCH("2-"&'Invulscherm 1 - Weging'!$A72,'Criteria-Status-Tabel'!$A$5:$A$128,0),MATCH(10*$S$15+$S$14,'Criteria-Status-Tabel'!$A$5:$K$5,0))="verplicht")=TRUE,2,IF(INDEX('Criteria-Status-Tabel'!$A$5:$K$128,MATCH("2-"&'Invulscherm 1 - Weging'!$A72,'Criteria-Status-Tabel'!$A$5:$A$128,0),MATCH(10*$S$15+$S$14,'Criteria-Status-Tabel'!$A$5:$K$5,0))="extra belangrijk",3,1)),"1") -> 2 | O72: =IFERROR(IF(OR(INDEX('Criteria-Status-Tabel'!$A$5:$K$128,MATCH("1-"&'Invulscherm 1 - Weging'!$A72,'Criteria-Status-Tabel'!$A$5:$A$128,0),MATCH(10*$S$15+$S$14,'Criteria-Status-Tabel'!$A$5:$K$5,0))="relevant",INDEX('Criteria-Status-Tabel'!$A$5:$K$128,MATCH("1-"&'Invulscherm 1 - Weging'!$A72,'Criteria-Status-Tabel'!$A$5:$A$128,0),MATCH(10*$S$15+$S$14,'Criteria-Status-Tabel'!$A$5:$K$5,0))="verplicht")=TRUE,2,IF(INDEX('Criteria-Status-Tabel'!$A$5:$K$128,MATCH("1-"&'Invulscherm 1 - Weging'!$A72,'Criteria-Status-Tabel'!$A$5:$A$128,0),MATCH(10*$S$15+$S$14,'Criteria-Status-Tabel'!$A$5:$K$5,0))="extra belangrijk",3,1)),"1") -> 2 | P72: =IFERROR(IF(OR(INDEX('Criteria-Status-Tabel'!$A$5:$K$128,MATCH("2-"&'Invulscherm 1 - Weging'!$A72,'Criteria-Status-Tabel'!$A$5:$A$128,0),MATCH(10*$S$15+$S$14,'Criteria-Status-Tabel'!$A$5:$K$5,0))="relevant",INDEX('Criteria-Status-Tabel'!$A$5:$K$128,MATCH("2-"&'Invulscherm 1 - Weging'!$A72,'Criteria-Status-Tabel'!$A$5:$A$128,0),MATCH(10*$S$15+$S$14,'Criteria-Status-Tabel'!$A$5:$K$5,0))="verplicht")=TRUE,2,IF(INDEX('Criteria-Status-Tabel'!$A$5:$K$128,MATCH("2-"&'Invulscherm 1 - Weging'!$A72,'Criteria-Status-Tabel'!$A$5:$A$128,0),MATCH(10*$S$15+$S$14,'Criteria-Status-Tabel'!$A$5:$K$5,0))="extra belangrijk",3,1)),"1") -> 2 | Q72: 0 | R72: 0 | U72: =SUM(20)/SUM($K$72:$L$85) -> 0.5263157895 | V72: =SUM($U$70+$V$70)/SUM($K$72:$L$85) -> 0.5263157895 | W72: Allen uit bij 'bestaande terreinen'
A73: EDL2 | B73: Landgebruik | Q73: 0 | R73: 0
A74: EDL2.1 | C74: Positionering & landgebruik | E74: =IF(K74=1,"minder belangrijk",IF(K74=2,"relevant",IF(K74=3,"extra belangrijk"))) -> relevant | F74: =IF(K74=1,U74,IF(K74=2,U74*2,IF(K74=3,U74*3))) -> 1.052631579 | H74: =IF(L74=1,"minder belangrijk",IF(L74=2,"relevant",IF(L74=3,"extra belangrijk"))) -> relevant | I74: =IF(L74=1,V74,IF(L74=2,V74*2,IF(L74=3,V74*3))) -> 1.052631579 | K74: =IFERROR(IF(OR(INDEX('Criteria-Status-Tabel'!$A$5:$K$128,MATCH("1-"&'Invulscherm 1 - Weging'!$A74,'Criteria-Status-Tabel'!$A$5:$A$128,0),MATCH(10*$S$15+$S$14,'Criteria-Status-Tabel'!$A$5:$K$5,0))="relevant",INDEX('Criteria-Status-Tabel'!$A$5:$K$128,MATCH("1-"&'Invulscherm 1 - Weging'!$A74,'Criteria-Status-Tabel'!$A$5:$A$128,0),MATCH(10*$S$15+$S$14,'Criteria-Status-Tabel'!$A$5:$K$5,0))="verplicht")=TRUE,2,IF(INDEX('Criteria-Status-Tabel'!$A$5:$K$128,MATCH("1-"&'Invulscherm 1 - Weging'!$A74,'Criteria-Status-Tabel'!$A$5:$A$128,0),MATCH(10*$S$15+$S$14,'Criteria-Status-Tabel'!$A$5:$K$5,0))="extra belangrijk",3,1)),"1") -> 2 | L74: =IFERROR(IF(OR(INDEX('Criteria-Status-Tabel'!$A$5:$K$128,MATCH("2-"&'Invulscherm 1 - Weging'!$A74,'Criteria-Status-Tabel'!$A$5:$A$128,0),MATCH(10*$S$15+$S$14,'Criteria-Status-Tabel'!$A$5:$K$5,0))="relevant",INDEX('Criteria-Status-Tabel'!$A$5:$K$128,MATCH("2-"&'Invulscherm 1 - Weging'!$A74,'Criteria-Status-Tabel'!$A$5:$A$128,0),MATCH(10*$S$15+$S$14,'Criteria-Status-Tabel'!$A$5:$K$5,0))="verplicht")=TRUE,2,IF(INDEX('Criteria-Status-Tabel'!$A$5:$K$128,MATCH("2-"&'Invulscherm 1 - Weging'!$A74,'Criteria-Status-Tabel'!$A$5:$A$128,0),MATCH(10*$S$15+$S$14,'Criteria-Status-Tabel'!$A$5:$K$5,0))="extra belangrijk",3,1)),"1") -> 2 | O74: =IFERROR(IF(OR(INDEX('Criteria-Status-Tabel'!$A$5:$K$128,MATCH("1-"&'Invulscherm 1 - Weging'!$A74,'Criteria-Status-Tabel'!$A$5:$A$128,0),MATCH(10*$S$15+$S$14,'Criteria-Status-Tabel'!$A$5:$K$5,0))="relevant",INDEX('Criteria-Status-Tabel'!$A$5:$K$128,MATCH("1-"&'Invulscherm 1 - Weging'!$A74,'Criteria-Status-Tabel'!$A$5:$A$128,0),MATCH(10*$S$15+$S$14,'Criteria-Status-Tabel'!$A$5:$K$5,0))="verplicht")=TRUE,2,IF(INDEX('Criteria-Status-Tabel'!$A$5:$K$128,MATCH("1-"&'Invulscherm 1 - Weging'!$A74,'Criteria-Status-Tabel'!$A$5:$A$128,0),MATCH(10*$S$15+$S$14,'Criteria-Status-Tabel'!$A$5:$K$5,0))="extra belangrijk",3,1)),"1") -> 2 | P74: =IFERROR(IF(OR(INDEX('Criteria-Status-Tabel'!$A$5:$K$128,MATCH("2-"&'Invulscherm 1 - Weging'!$A74,'Criteria-Status-Tabel'!$A$5:$A$128,0),MATCH(10*$S$15+$S$14,'Criteria-Status-Tabel'!$A$5:$K$5,0))="relevant",INDEX('Criteria-Status-Tabel'!$A$5:$K$128,MATCH("2-"&'Invulscherm 1 - Weging'!$A74,'Criteria-Status-Tabel'!$A$5:$A$128,0),MATCH(10*$S$15+$S$14,'Criteria-Status-Tabel'!$A$5:$K$5,0))="verplicht")=TRUE,2,IF(INDEX('Criteria-Status-Tabel'!$A$5:$K$128,MATCH("2-"&'Invulscherm 1 - Weging'!$A74,'Criteria-Status-Tabel'!$A$5:$A$128,0),MATCH(10*$S$15+$S$14,'Criteria-Status-Tabel'!$A$5:$K$5,0))="extra belangrijk",3,1)),"1") -> 2 | Q74: 0 | R74: 0 | U74: =SUM($U$70+$V$70)/SUM($K$72:$L$85) -> 0.5263157895 | V74: 0.5263157895 | W74: Allen uit bij 'bestaande terreinen'
A75: EDL2.2 | C75: Flexibiliteit | E75: =IF(K75=2,"verplicht","extra belangrijk") -> verplicht | F75: =IF(K75=1,U75,IF(K75=2,U75*2,IF(K75=3,U75*3))) -> 1.052631579 | H75: relevant | I75: =IF(L75=1,V75,IF(L75=2,V75*2,IF(L75=3,V75*3))) -> 1.052631579 | K75: =IFERROR(IF(OR(INDEX('Criteria-Status-Tabel'!$A$5:$K$128,MATCH("1-"&'Invulscherm 1 - Weging'!$A75,'Criteria-Status-Tabel'!$A$5:$A$128,0),MATCH(10*$S$15+$S$14,'Criteria-Status-Tabel'!$A$5:$K$5,0))="relevant",INDEX('Criteria-Status-Tabel'!$A$5:$K$128,MATCH("1-"&'Invulscherm 1 - Weging'!$A75,'Criteria-Status-Tabel'!$A$5:$A$128,0),MATCH(10*$S$15+$S$14,'Criteria-Status-Tabel'!$A$5:$K$5,0))="verplicht")=TRUE,2,IF(INDEX('Criteria-Status-Tabel'!$A$5:$K$128,MATCH("1-"&'Invulscherm 1 - Weging'!$A75,'Criteria-Status-Tabel'!$A$5:$A$128,0),MATCH(10*$S$15+$S$14,'Criteria-Status-Tabel'!$A$5:$K$5,0))="extra belangrijk",3,1)),"1") -> 2 | L75: =IFERROR(IF(OR(INDEX('Criteria-Status-Tabel'!$A$5:$K$128,MATCH("2-"&'Invulscherm 1 - Weging'!$A75,'Criteria-Status-Tabel'!$A$5:$A$128,0),MATCH(10*$S$15+$S$14,'Criteria-Status-Tabel'!$A$5:$K$5,0))="relevant",INDEX('Criteria-Status-Tabel'!$A$5:$K$128,MATCH("2-"&'Invulscherm 1 - Weging'!$A75,'Criteria-Status-Tabel'!$A$5:$A$128,0),MATCH(10*$S$15+$S$14,'Criteria-Status-Tabel'!$A$5:$K$5,0))="verplicht")=TRUE,2,IF(INDEX('Criteria-Status-Tabel'!$A$5:$K$128,MATCH("2-"&'Invulscherm 1 - Weging'!$A75,'Criteria-Status-Tabel'!$A$5:$A$128,0),MATCH(10*$S$15+$S$14,'Criteria-Status-Tabel'!$A$5:$K$5,0))="extra belangrijk",3,1)),"1") -> 2 | O75: =IFERROR(IF(OR(INDEX('Criteria-Status-Tabel'!$A$5:$K$128,MATCH("1-"&'Invulscherm 1 - Weging'!$A75,'Criteria-Status-Tabel'!$A$5:$A$128,0),MATCH(10*$S$15+$S$14,'Criteria-Status-Tabel'!$A$5:$K$5,0))="relevant",INDEX('Criteria-Status-Tabel'!$A$5:$K$128,MATCH("1-"&'Invulscherm 1 - Weging'!$A75,'Criteria-Status-Tabel'!$A$5:$A$128,0),MATCH(10*$S$15+$S$14,'Criteria-Status-Tabel'!$A$5:$K$5,0))="verplicht")=TRUE,2,IF(INDEX('Criteria-Status-Tabel'!$A$5:$K$128,MATCH("1-"&'Invulscherm 1 - Weging'!$A75,'Criteria-Status-Tabel'!$A$5:$A$128,0),MATCH(10*$S$15+$S$14,'Criteria-Status-Tabel'!$A$5:$K$5,0))="extra belangrijk",3,1)),"1") -> 2 | P75: =IFERROR(IF(OR(INDEX('Criteria-Status-Tabel'!$A$5:$K$128,MATCH("2-"&'Invulscherm 1 - Weging'!$A75,'Criteria-Status-Tabel'!$A$5:$A$128,0),MATCH(10*$S$15+$S$14,'Criteria-Status-Tabel'!$A$5:$K$5,0))="relevant",INDEX('Criteria-Status-Tabel'!$A$5:$K$128,MATCH("2-"&'Invulscherm 1 - Weging'!$A75,'Criteria-Status-Tabel'!$A$5:$A$128,0),MATCH(10*$S$15+$S$14,'Criteria-Status-Tabel'!$A$5:$K$5,0))="verplicht")=TRUE,2,IF(INDEX('Criteria-Status-Tabel'!$A$5:$K$128,MATCH("2-"&'Invulscherm 1 - Weging'!$A75,'Criteria-Status-Tabel'!$A$5:$A$128,0),MATCH(10*$S$15+$S$14,'Criteria-Status-Tabel'!$A$5:$K$5,0))="extra belangrijk",3,1)),"1") -> 2 | Q75: 0 | R75: 0 | U75: 0.5263157895 | V75: 0.5263157895 | W75: Allen uit bij 'bestaande terreinen'
A76: EDL2.3 | C76: Hittestress | E76: =IF(K76=1,"minder belangrijk",IF(K76=2,"relevant",IF(K76=3,"extra belangrijk"))) -> relevant | F76: =IF(K76=1,U76,IF(K76=2,U76*2,IF(K76=3,U76*3))) -> 1.052631579 | H76: relevant | I76: =IF(L76=1,V76,IF(L76=2,V76*2,IF(L76=3,V76*3))) -> 1.052631579 | K76: =IFERROR(IF(OR(INDEX('Criteria-Status-Tabel'!$A$5:$K$128,MATCH("1-"&'Invulscherm 1 - Weging'!$A76,'Criteria-Status-Tabel'!$A$5:$A$128,0),MATCH(10*$S$15+$S$14,'Criteria-Status-Tabel'!$A$5:$K$5,0))="relevant",INDEX('Criteria-Status-Tabel'!$A$5:$K$128,MATCH("1-"&'Invulscherm 1 - Weging'!$A76,'Criteria-Status-Tabel'!$A$5:$A$128,0),MATCH(10*$S$15+$S$14,'Criteria-Status-Tabel'!$A$5:$K$5,0))="verplicht")=TRUE,2,IF(INDEX('Criteria-Status-Tabel'!$A$5:$K$128,MATCH("1-"&'Invulscherm 1 - Weging'!$A76,'Criteria-Status-Tabel'!$A$5:$A$128,0),MATCH(10*$S$15+$S$14,'Criteria-Status-Tabel'!$A$5:$K$5,0))="extra belangrijk",3,1)),"1") -> 2 | L76: =IFERROR(IF(OR(INDEX('Criteria-Status-Tabel'!$A$5:$K$128,MATCH("2-"&'Invulscherm 1 - Weging'!$A76,'Criteria-Status-Tabel'!$A$5:$A$128,0),MATCH(10*$S$15+$S$14,'Criteria-Status-Tabel'!$A$5:$K$5,0))="relevant",INDEX('Criteria-Status-Tabel'!$A$5:$K$128,MATCH("2-"&'Invulscherm 1 - Weging'!$A76,'Criteria-Status-Tabel'!$A$5:$A$128,0),MATCH(10*$S$15+$S$14,'Criteria-Status-Tabel'!$A$5:$K$5,0))="verplicht")=TRUE,2,IF(INDEX('Criteria-Status-Tabel'!$A$5:$K$128,MATCH("2-"&'Invulscherm 1 - Weging'!$A76,'Criteria-Status-Tabel'!$A$5:$A$128,0),MATCH(10*$S$15+$S$14,'Criteria-Status-Tabel'!$A$5:$K$5,0))="extra belangrijk",3,1)),"1") -> 2 | O76: =IFERROR(IF(OR(INDEX('Criteria-Status-Tabel'!$A$5:$K$128,MATCH("1-"&'Invulscherm 1 - Weging'!$A76,'Criteria-Status-Tabel'!$A$5:$A$128,0),MATCH(10*$S$15+$S$14,'Criteria-Status-Tabel'!$A$5:$K$5,0))="relevant",INDEX('Criteria-Status-Tabel'!$A$5:$K$128,MATCH("1-"&'Invulscherm 1 - Weging'!$A76,'Criteria-Status-Tabel'!$A$5:$A$128,0),MATCH(10*$S$15+$S$14,'Criteria-Status-Tabel'!$A$5:$K$5,0))="verplicht")=TRUE,2,IF(INDEX('Criteria-Status-Tabel'!$A$5:$K$128,MATCH("1-"&'Invulscherm 1 - Weging'!$A76,'Criteria-Status-Tabel'!$A$5:$A$128,0),MATCH(10*$S$15+$S$14,'Criteria-Status-Tabel'!$A$5:$K$5,0))="extra belangrijk",3,1)),"1") -> 2 | P76: =IFERROR(IF(OR(INDEX('Criteria-Status-Tabel'!$A$5:$K$128,MATCH("2-"&'Invulscherm 1 - Weging'!$A76,'Criteria-Status-Tabel'!$A$5:$A$128,0),MATCH(10*$S$15+$S$14,'Criteria-Status-Tabel'!$A$5:$K$5,0))="relevant",INDEX('Criteria-Status-Tabel'!$A$5:$K$128,MATCH("2-"&'Invulscherm 1 - Weging'!$A76,'Criteria-Status-Tabel'!$A$5:$A$128,0),MATCH(10*$S$15+$S$14,'Criteria-Status-Tabel'!$A$5:$K$5,0))="verplicht")=TRUE,2,IF(INDEX('Criteria-Status-Tabel'!$A$5:$K$128,MATCH("2-"&'Invulscherm 1 - Weging'!$A76,'Criteria-Status-Tabel'!$A$5:$A$128,0),MATCH(10*$S$15+$S$14,'Criteria-Status-Tabel'!$A$5:$K$5,0))="extra belangrijk",3,1)),"1") -> 2 | Q76: 0 | R76: 0 | U76: 0.5263157895 | V76: 0.5263157895 | W76: Allen uit bij 'bestaande terreinen'
A77: EDL2.4 | C77: Bouwrijp maken (grondbalans / peilhoogten) | H77: relevant | I77: =IF(L77=1,V77,IF(L77=2,V77*2,IF(L77=3,V77*3))) -> 1.052631579 | L77: =IFERROR(IF(OR(INDEX('Criteria-Status-Tabel'!$A$5:$K$128,MATCH("2-"&'Invulscherm 1 - Weging'!$A77,'Criteria-Status-Tabel'!$A$5:$A$128,0),MATCH(10*$S$15+$S$14,'Criteria-Status-Tabel'!$A$5:$K$5,0))="relevant",INDEX('Criteria-Status-Tabel'!$A$5:$K$128,MATCH("2-"&'Invulscherm 1 - Weging'!$A77,'Criteria-Status-Tabel'!$A$5:$A$128,0),MATCH(10*$S$15+$S$14,'Criteria-Status-Tabel'!$A$5:$K$5,0))="verplicht")=TRUE,2,IF(INDEX('Criteria-Status-Tabel'!$A$5:$K$128,MATCH("2-"&'Invulscherm 1 - Weging'!$A77,'Criteria-Status-Tabel'!$A$5:$A$128,0),MATCH(10*$S$15+$S$14,'Criteria-Status-Tabel'!$A$5:$K$5,0))="extra belangrijk",3,1)),"1") -> 2 | P77: =IFERROR(IF(OR(INDEX('Criteria-Status-Tabel'!$A$5:$K$128,MATCH("2-"&'Invulscherm 1 - Weging'!$A77,'Criteria-Status-Tabel'!$A$5:$A$128,0),MATCH(10*$S$15+$S$14,'Criteria-Status-Tabel'!$A$5:$K$5,0))="relevant",INDEX('Criteria-Status-Tabel'!$A$5:$K$128,MATCH("2-"&'Invulscherm 1 - Weging'!$A77,'Criteria-Status-Tabel'!$A$5:$A$128,0),MATCH(10*$S$15+$S$14,'Criteria-Status-Tabel'!$A$5:$K$5,0))="verplicht")=TRUE,2,IF(INDEX('Criteria-Status-Tabel'!$A$5:$K$128,MATCH("2-"&'Invulscherm 1 - Weging'!$A77,'Criteria-Status-Tabel'!$A$5:$A$128,0),MATCH(10*$S$15+$S$14,'Criteria-Status-Tabel'!$A$5:$K$5,0))="extra belangrijk",3,1)),"1") -> 2 | Q77: 0 | R77: 0 | V77: =SUM($U$70+$V$70)/SUM($K$72:$L$85) -> 0.5263157895 | W77: Allen uit bij 'bestaande terreinen'
A78: EDL2.5 | C78: Bodemverontreiniging | E78: =IF(K78=1,"minder belangrijk",IF(K78=2,"relevant",IF(K78=3,"extra belangrijk"))) -> relevant | F78: =IF(K78=1,U78,IF(K78=2,U78*2,IF(K78=3,U78*3))) -> 1.052631579 | H78: relevant | I78: =IF(L78=1,V78,IF(L78=2,V78*2,IF(L78=3,V78*3))) -> 1.052631579 | K78: =IFERROR(IF(OR(INDEX('Criteria-Status-Tabel'!$A$5:$K$128,MATCH("1-"&'Invulscherm 1 - Weging'!$A78,'Criteria-Status-Tabel'!$A$5:$A$128,0),MATCH(10*$S$15+$S$14,'Criteria-Status-Tabel'!$A$5:$K$5,0))="relevant",INDEX('Criteria-Status-Tabel'!$A$5:$K$128,MATCH("1-"&'Invulscherm 1 - Weging'!$A78,'Criteria-Status-Tabel'!$A$5:$A$128,0),MATCH(10*$S$15+$S$14,'Criteria-Status-Tabel'!$A$5:$K$5,0))="verplicht")=TRUE,2,IF(INDEX('Criteria-Status-Tabel'!$A$5:$K$128,MATCH("1-"&'Invulscherm 1 - Weging'!$A78,'Criteria-Status-Tabel'!$A$5:$A$128,0),MATCH(10*$S$15+$S$14,'Criteria-Status-Tabel'!$A$5:$K$5,0))="extra belangrijk",3,1)),"1") -> 2 | L78: =IFERROR(IF(OR(INDEX('Criteria-Status-Tabel'!$A$5:$K$128,MATCH("2-"&'Invulscherm 1 - Weging'!$A78,'Criteria-Status-Tabel'!$A$5:$A$128,0),MATCH(10*$S$15+$S$14,'Criteria-Status-Tabel'!$A$5:$K$5,0))="relevant",INDEX('Criteria-Status-Tabel'!$A$5:$K$128,MATCH("2-"&'Invulscherm 1 - Weging'!$A78,'Criteria-Status-Tabel'!$A$5:$A$128,0),MATCH(10*$S$15+$S$14,'Criteria-Status-Tabel'!$A$5:$K$5,0))="verplicht")=TRUE,2,IF(INDEX('Criteria-Status-Tabel'!$A$5:$K$128,MATCH("2-"&'Invulscherm 1 - Weging'!$A78,'Criteria-Status-Tabel'!$A$5:$A$128,0),MATCH(10*$S$15+$S$14,'Criteria-Status-Tabel'!$A$5:$K$5,0))="extra belangrijk",3,1)),"1") -> 2 | O78: =IFERROR(IF(OR(INDEX('Criteria-Status-Tabel'!$A$5:$K$128,MATCH("1-"&'Invulscherm 1 - Weging'!$A78,'Criteria-Status-Tabel'!$A$5:$A$128,0),MATCH(10*$S$15+$S$14,'Criteria-Status-Tabel'!$A$5:$K$5,0))="relevant",INDEX('Criteria-Status-Tabel'!$A$5:$K$128,MATCH("1-"&'Invulscherm 1 - Weging'!$A78,'Criteria-Status-Tabel'!$A$5:$A$128,0),MATCH(10*$S$15+$S$14,'Criteria-Status-Tabel'!$A$5:$K$5,0))="verplicht")=TRUE,2,IF(INDEX('Criteria-Status-Tabel'!$A$5:$K$128,MATCH("1-"&'Invulscherm 1 - Weging'!$A78,'Criteria-Status-Tabel'!$A$5:$A$128,0),MATCH(10*$S$15+$S$14,'Criteria-Status-Tabel'!$A$5:$K$5,0))="extra belangrijk",3,1)),"1") -> 2 | P78: =IFERROR(IF(OR(INDEX('Criteria-Status-Tabel'!$A$5:$K$128,MATCH("2-"&'Invulscherm 1 - Weging'!$A78,'Criteria-Status-Tabel'!$A$5:$A$128,0),MATCH(10*$S$15+$S$14,'Criteria-Status-Tabel'!$A$5:$K$5,0))="relevant",INDEX('Criteria-Status-Tabel'!$A$5:$K$128,MATCH("2-"&'Invulscherm 1 - Weging'!$A78,'Criteria-Status-Tabel'!$A$5:$A$128,0),MATCH(10*$S$15+$S$14,'Criteria-Status-Tabel'!$A$5:$K$5,0))="verplicht")=TRUE,2,IF(INDEX('Criteria-Status-Tabel'!$A$5:$K$128,MATCH("2-"&'Invulscherm 1 - Weging'!$A78,'Criteria-Status-Tabel'!$A$5:$A$128,0),MATCH(10*$S$15+$S$14,'Criteria-Status-Tabel'!$A$5:$K$5,0))="extra belangrijk",3,1)),"1") -> 2 | Q78: 0 | R78: 0 | U78: =SUM($U$70+$V$70)/SUM($K$72:$L$85) -> 0.5263157895 | V78: =SUM($U$70+$V$70)/SUM($K$72:$L$85) -> 0.5263157895 | W78: Allen uit bij 'bestaande terreinen'
A79: EDL3 | B79: Ecologie & biodiversiteit | Q79: 0 | R79: 0
A80: EDL3.1 | C80: Ecologie & biodiversiteit | E80: =IF(K80=2,"verplicht","extra belangrijk") -> verplicht | F80: =IF(K80=1,U80,IF(K80=2,U80*2,IF(K80=3,U80*3))) -> 1.052631579 | H80: =IF(L80=1,"minder belangrijk",IF(L80=2,"relevant",IF(L80=3,"extra belangrijk"))) -> relevant | I80: =IF(L80=1,V80,IF(L80=2,V80*2,IF(L80=3,V80*3))) -> 1.052631579 | K80: =IFERROR(IF(OR(INDEX('Criteria-Status-Tabel'!$A$5:$K$128,MATCH("1-"&'Invulscherm 1 - Weging'!$A80,'Criteria-Status-Tabel'!$A$5:$A$128,0),MATCH(10*$S$15+$S$14,'Criteria-Status-Tabel'!$A$5:$K$5,0))="relevant",INDEX('Criteria-Status-Tabel'!$A$5:$K$128,MATCH("1-"&'Invulscherm 1 - Weging'!$A80,'Criteria-Status-Tabel'!$A$5:$A$128,0),MATCH(10*$S$15+$S$14,'Criteria-Status-Tabel'!$A$5:$K$5,0))="verplicht")=TRUE,2,IF(INDEX('Criteria-Status-Tabel'!$A$5:$K$128,MATCH("1-"&'Invulscherm 1 - Weging'!$A80,'Criteria-Status-Tabel'!$A$5:$A$128,0),MATCH(10*$S$15+$S$14,'Criteria-Status-Tabel'!$A$5:$K$5,0))="extra belangrijk",3,1)),"1") -> 2 | L80: =IFERROR(IF(OR(INDEX('Criteria-Status-Tabel'!$A$5:$K$128,MATCH("2-"&'Invulscherm 1 - Weging'!$A80,'Criteria-Status-Tabel'!$A$5:$A$128,0),MATCH(10*$S$15+$S$14,'Criteria-Status-Tabel'!$A$5:$K$5,0))="relevant",INDEX('Criteria-Status-Tabel'!$A$5:$K$128,MATCH("2-"&'Invulscherm 1 - Weging'!$A80,'Criteria-Status-Tabel'!$A$5:$A$128,0),MATCH(10*$S$15+$S$14,'Criteria-Status-Tabel'!$A$5:$K$5,0))="verplicht")=TRUE,2,IF(INDEX('Criteria-Status-Tabel'!$A$5:$K$128,MATCH("2-"&'Invulscherm 1 - Weging'!$A80,'Criteria-Status-Tabel'!$A$5:$A$128,0),MATCH(10*$S$15+$S$14,'Criteria-Status-Tabel'!$A$5:$K$5,0))="extra belangrijk",3,1)),"1") -> 2 | O80: =IFERROR(IF(OR(INDEX('Criteria-Status-Tabel'!$A$5:$K$128,MATCH("1-"&'Invulscherm 1 - Weging'!$A80,'Criteria-Status-Tabel'!$A$5:$A$128,0),MATCH(10*$S$15+$S$14,'Criteria-Status-Tabel'!$A$5:$K$5,0))="relevant",INDEX('Criteria-Status-Tabel'!$A$5:$K$128,MATCH("1-"&'Invulscherm 1 - Weging'!$A80,'Criteria-Status-Tabel'!$A$5:$A$128,0),MATCH(10*$S$15+$S$14,'Criteria-Status-Tabel'!$A$5:$K$5,0))="verplicht")=TRUE,2,IF(INDEX('Criteria-Status-Tabel'!$A$5:$K$128,MATCH("1-"&'Invulscherm 1 - Weging'!$A80,'Criteria-Status-Tabel'!$A$5:$A$128,0),MATCH(10*$S$15+$S$14,'Criteria-Status-Tabel'!$A$5:$K$5,0))="extra belangrijk",3,1)),"1") -> 2 | P80: =IFERROR(IF(OR(INDEX('Criteria-Status-Tabel'!$A$5:$K$128,MATCH("2-"&'Invulscherm 1 - Weging'!$A80,'Criteria-Status-Tabel'!$A$5:$A$128,0),MATCH(10*$S$15+$S$14,'Criteria-Status-Tabel'!$A$5:$K$5,0))="relevant",INDEX('Criteria-Status-Tabel'!$A$5:$K$128,MATCH("2-"&'Invulscherm 1 - Weging'!$A80,'Criteria-Status-Tabel'!$A$5:$A$128,0),MATCH(10*$S$15+$S$14,'Criteria-Status-Tabel'!$A$5:$K$5,0))="verplicht")=TRUE,2,IF(INDEX('Criteria-Status-Tabel'!$A$5:$K$128,MATCH("2-"&'Invulscherm 1 - Weging'!$A80,'Criteria-Status-Tabel'!$A$5:$A$128,0),MATCH(10*$S$15+$S$14,'Criteria-Status-Tabel'!$A$5:$K$5,0))="extra belangrijk",3,1)),"1") -> 2 | Q80: 0 | R80: 0 | U80: =SUM($U$70+$V$70)/SUM($K$72:$L$85) -> 0.5263157895 | V80: =SUM($U$70+$V$70)/SUM($K$72:$L$85) -> 0.5263157895
A81: EDL3.2 | C81: Abiotische structuren | E81: verplicht | F81: =IF(K81=1,U81,IF(K81=2,U81*2,IF(K81=3,U81*3))) -> 1.052631579 | H81: relevant | I81: =IF(L81=1,V81,IF(L81=2,V81*2,IF(L81=3,V81*3))) -> 1.052631579 | K81: =IFERROR(IF(OR(INDEX('Criteria-Status-Tabel'!$A$5:$K$128,MATCH("1-"&'Invulscherm 1 - Weging'!$A81,'Criteria-Status-Tabel'!$A$5:$A$128,0),MATCH(10*$S$15+$S$14,'Criteria-Status-Tabel'!$A$5:$K$5,0))="relevant",INDEX('Criteria-Status-Tabel'!$A$5:$K$128,MATCH("1-"&'Invulscherm 1 - Weging'!$A81,'Criteria-Status-Tabel'!$A$5:$A$128,0),MATCH(10*$S$15+$S$14,'Criteria-Status-Tabel'!$A$5:$K$5,0))="verplicht")=TRUE,2,IF(INDEX('Criteria-Status-Tabel'!$A$5:$K$128,MATCH("1-"&'Invulscherm 1 - Weging'!$A81,'Criteria-Status-Tabel'!$A$5:$A$128,0),MATCH(10*$S$15+$S$14,'Criteria-Status-Tabel'!$A$5:$K$5,0))="extra belangrijk",3,1)),"1") -> 2 | L81: =IFERROR(IF(OR(INDEX('Criteria-Status-Tabel'!$A$5:$K$128,MATCH("2-"&'Invulscherm 1 - Weging'!$A81,'Criteria-Status-Tabel'!$A$5:$A$128,0),MATCH(10*$S$15+$S$14,'Criteria-Status-Tabel'!$A$5:$K$5,0))="relevant",INDEX('Criteria-Status-Tabel'!$A$5:$K$128,MATCH("2-"&'Invulscherm 1 - Weging'!$A81,'Criteria-Status-Tabel'!$A$5:$A$128,0),MATCH(10*$S$15+$S$14,'Criteria-Status-Tabel'!$A$5:$K$5,0))="verplicht")=TRUE,2,IF(INDEX('Criteria-Status-Tabel'!$A$5:$K$128,MATCH("2-"&'Invulscherm 1 - Weging'!$A81,'Criteria-Status-Tabel'!$A$5:$A$128,0),MATCH(10*$S$15+$S$14,'Criteria-Status-Tabel'!$A$5:$K$5,0))="extra belangrijk",3,1)),"1") -> 2 | O81: =IFERROR(IF(OR(INDEX('Criteria-Status-Tabel'!$A$5:$K$128,MATCH("1-"&'Invulscherm 1 - Weging'!$A81,'Criteria-Status-Tabel'!$A$5:$A$128,0),MATCH(10*$S$15+$S$14,'Criteria-Status-Tabel'!$A$5:$K$5,0))="relevant",INDEX('Criteria-Status-Tabel'!$A$5:$K$128,MATCH("1-"&'Invulscherm 1 - Weging'!$A81,'Criteria-Status-Tabel'!$A$5:$A$128,0),MATCH(10*$S$15+$S$14,'Criteria-Status-Tabel'!$A$5:$K$5,0))="verplicht")=TRUE,2,IF(INDEX('Criteria-Status-Tabel'!$A$5:$K$128,MATCH("1-"&'Invulscherm 1 - Weging'!$A81,'Criteria-Status-Tabel'!$A$5:$A$128,0),MATCH(10*$S$15+$S$14,'Criteria-Status-Tabel'!$A$5:$K$5,0))="extra belangrijk",3,1)),"1") -> 2 | P81: =IFERROR(IF(OR(INDEX('Criteria-Status-Tabel'!$A$5:$K$128,MATCH("2-"&'Invulscherm 1 - Weging'!$A81,'Criteria-Status-Tabel'!$A$5:$A$128,0),MATCH(10*$S$15+$S$14,'Criteria-Status-Tabel'!$A$5:$K$5,0))="relevant",INDEX('Criteria-Status-Tabel'!$A$5:$K$128,MATCH("2-"&'Invulscherm 1 - Weging'!$A81,'Criteria-Status-Tabel'!$A$5:$A$128,0),MATCH(10*$S$15+$S$14,'Criteria-Status-Tabel'!$A$5:$K$5,0))="verplicht")=TRUE,2,IF(INDEX('Criteria-Status-Tabel'!$A$5:$K$128,MATCH("2-"&'Invulscherm 1 - Weging'!$A81,'Criteria-Status-Tabel'!$A$5:$A$128,0),MATCH(10*$S$15+$S$14,'Criteria-Status-Tabel'!$A$5:$K$5,0))="extra belangrijk",3,1)),"1") -> 2 | Q81: 0 | R81: 0 | U81: =SUM($U$70+$V$70)/SUM($K$72:$L$85) -> 0.5263157895 | V81: =SUM($U$70+$V$70)/SUM($K$72:$L$85) -> 0.5263157895
A82: EDL3.3 | C82: Vergroening | H82: =IF(L82=2,"verplicht","extra belangrijk") -> verplicht | I82: =IF(L82=1,V82,IF(L82=2,V82*2,IF(L82=3,V82*3))) -> 1.052631579 | L82: =IFERROR(IF(OR(INDEX('Criteria-Status-Tabel'!$A$5:$K$128,MATCH("2-"&'Invulscherm 1 - Weging'!$A82,'Criteria-Status-Tabel'!$A$5:$A$128,0),MATCH(10*$S$15+$S$14,'Criteria-Status-Tabel'!$A$5:$K$5,0))="relevant",INDEX('Criteria-Status-Tabel'!$A$5:$K$128,MATCH("2-"&'Invulscherm 1 - Weging'!$A82,'Criteria-Status-Tabel'!$A$5:$A$128,0),MATCH(10*$S$15+$S$14,'Criteria-Status-Tabel'!$A$5:$K$5,0))="verplicht")=TRUE,2,IF(INDEX('Criteria-Status-Tabel'!$A$5:$K$128,MATCH("2-"&'Invulscherm 1 - Weging'!$A82,'Criteria-Status-Tabel'!$A$5:$A$128,0),MATCH(10*$S$15+$S$14,'Criteria-Status-Tabel'!$A$5:$K$5,0))="extra belangrijk",3,1)),"1") -> 2 | P82: =IFERROR(IF(OR(INDEX('Criteria-Status-Tabel'!$A$5:$K$128,MATCH("2-"&'Invulscherm 1 - Weging'!$A82,'Criteria-Status-Tabel'!$A$5:$A$128,0),MATCH(10*$S$15+$S$14,'Criteria-Status-Tabel'!$A$5:$K$5,0))="relevant",INDEX('Criteria-Status-Tabel'!$A$5:$K$128,MATCH("2-"&'Invulscherm 1 - Weging'!$A82,'Criteria-Status-Tabel'!$A$5:$A$128,0),MATCH(10*$S$15+$S$14,'Criteria-Status-Tabel'!$A$5:$K$5,0))="verplicht")=TRUE,2,IF(INDEX('Criteria-Status-Tabel'!$A$5:$K$128,MATCH("2-"&'Invulscherm 1 - Weging'!$A82,'Criteria-Status-Tabel'!$A$5:$A$128,0),MATCH(10*$S$15+$S$14,'Criteria-Status-Tabel'!$A$5:$K$5,0))="extra belangrijk",3,1)),"1") -> 2 | Q82: 0 | R82: 0 | V82: =SUM($U$70+$V$70)/SUM($K$72:$L$85) -> 0.5263157895
A83: EDL4 | B83: Water | Q83: 0 | R83: 0
A84: EDL4.1 | C84: Hoogwaterbescherming & klimaatadaptatie | E84: =IF(K84=2,"verplicht","extra belangrijk") -> verplicht | F84: =IF(K84=1,U84,IF(K84=2,U84*2,IF(K84=3,U84*3))) -> 1.052631579 | H84: =IF(L84=1,"minder belangrijk",IF(L84=2,"relevant",IF(L84=3,"extra belangrijk"))) -> relevant | I84: =IF(L84=1,V84,IF(L84=2,V84*2,IF(L84=3,V84*3))) -> 1.052631579 | K84: =IFERROR(IF(OR(INDEX('Criteria-Status-Tabel'!$A$5:$K$128,MATCH("1-"&'Invulscherm 1 - Weging'!$A84,'Criteria-Status-Tabel'!$A$5:$A$128,0),MATCH(10*$S$15+$S$14,'Criteria-Status-Tabel'!$A$5:$K$5,0))="relevant",INDEX('Criteria-Status-Tabel'!$A$5:$K$128,MATCH("1-"&'Invulscherm 1 - Weging'!$A84,'Criteria-Status-Tabel'!$A$5:$A$128,0),MATCH(10*$S$15+$S$14,'Criteria-Status-Tabel'!$A$5:$K$5,0))="verplicht")=TRUE,2,IF(INDEX('Criteria-Status-Tabel'!$A$5:$K$128,MATCH("1-"&'Invulscherm 1 - Weging'!$A84,'Criteria-Status-Tabel'!$A$5:$A$128,0),MATCH(10*$S$15+$S$14,'Criteria-Status-Tabel'!$A$5:$K$5,0))="extra belangrijk",3,1)),"1") -> 2 | L84: =IFERROR(IF(OR(INDEX('Criteria-Status-Tabel'!$A$5:$K$128,MATCH("2-"&'Invulscherm 1 - Weging'!$A84,'Criteria-Status-Tabel'!$A$5:$A$128,0),MATCH(10*$S$15+$S$14,'Criteria-Status-Tabel'!$A$5:$K$5,0))="relevant",INDEX('Criteria-Status-Tabel'!$A$5:$K$128,MATCH("2-"&'Invulscherm 1 - Weging'!$A84,'Criteria-Status-Tabel'!$A$5:$A$128,0),MATCH(10*$S$15+$S$14,'Criteria-Status-Tabel'!$A$5:$K$5,0))="verplicht")=TRUE,2,IF(INDEX('Criteria-Status-Tabel'!$A$5:$K$128,MATCH("2-"&'Invulscherm 1 - Weging'!$A84,'Criteria-Status-Tabel'!$A$5:$A$128,0),MATCH(10*$S$15+$S$14,'Criteria-Status-Tabel'!$A$5:$K$5,0))="extra belangrijk",3,1)),"1") -> 2 | O84: =IFERROR(IF(OR(INDEX('Criteria-Status-Tabel'!$A$5:$K$128,MATCH("1-"&'Invulscherm 1 - Weging'!$A84,'Criteria-Status-Tabel'!$A$5:$A$128,0),MATCH(10*$S$15+$S$14,'Criteria-Status-Tabel'!$A$5:$K$5,0))="relevant",INDEX('Criteria-Status-Tabel'!$A$5:$K$128,MATCH("1-"&'Invulscherm 1 - Weging'!$A84,'Criteria-Status-Tabel'!$A$5:$A$128,0),MATCH(10*$S$15+$S$14,'Criteria-Status-Tabel'!$A$5:$K$5,0))="verplicht")=TRUE,2,IF(INDEX('Criteria-Status-Tabel'!$A$5:$K$128,MATCH("1-"&'Invulscherm 1 - Weging'!$A84,'Criteria-Status-Tabel'!$A$5:$A$128,0),MATCH(10*$S$15+$S$14,'Criteria-Status-Tabel'!$A$5:$K$5,0))="extra belangrijk",3,1)),"1") -> 2 | P84: =IFERROR(IF(OR(INDEX('Criteria-Status-Tabel'!$A$5:$K$128,MATCH("2-"&'Invulscherm 1 - Weging'!$A84,'Criteria-Status-Tabel'!$A$5:$A$128,0),MATCH(10*$S$15+$S$14,'Criteria-Status-Tabel'!$A$5:$K$5,0))="relevant",INDEX('Criteria-Status-Tabel'!$A$5:$K$128,MATCH("2-"&'Invulscherm 1 - Weging'!$A84,'Criteria-Status-Tabel'!$A$5:$A$128,0),MATCH(10*$S$15+$S$14,'Criteria-Status-Tabel'!$A$5:$K$5,0))="verplicht")=TRUE,2,IF(INDEX('Criteria-Status-Tabel'!$A$5:$K$128,MATCH("2-"&'Invulscherm 1 - Weging'!$A84,'Criteria-Status-Tabel'!$A$5:$A$128,0),MATCH(10*$S$15+$S$14,'Criteria-Status-Tabel'!$A$5:$K$5,0))="extra belangrijk",3,1)),"1") -> 2 | Q84: 0 | R84: 0 | U84: =SUM($U$70+$V$70)/SUM($K$72:$L$85) -> 0.5263157895 | V84: =SUM($U$70+$V$70)/SUM($K$72:$L$85) -> 0.5263157895 | W84: Allen uit bij 'bestaande terreinen'
A85: EDL4.2 | C85: Waterkwaliteit | H85: relevant | I85: =IF(L85=1,V85,IF(L85=2,V85*2,IF(L85=3,V85*3))) -> 1.052631579 | L85: =IFERROR(IF(OR(INDEX('Criteria-Status-Tabel'!$A$5:$K$128,MATCH("2-"&'Invulscherm 1 - Weging'!$A85,'Criteria-Status-Tabel'!$A$5:$A$128,0),MATCH(10*$S$15+$S$14,'Criteria-Status-Tabel'!$A$5:$K$5,0))="relevant",INDEX('Criteria-Status-Tabel'!$A$5:$K$128,MATCH("2-"&'Invulscherm 1 - Weging'!$A85,'Criteria-Status-Tabel'!$A$5:$A$128,0),MATCH(10*$S$15+$S$14,'Criteria-Status-Tabel'!$A$5:$K$5,0))="verplicht")=TRUE,2,IF(INDEX('Criteria-Status-Tabel'!$A$5:$K$128,MATCH("2-"&'Invulscherm 1 - Weging'!$A85,'Criteria-Status-Tabel'!$A$5:$A$128,0),MATCH(10*$S$15+$S$14,'Criteria-Status-Tabel'!$A$5:$K$5,0))="extra belangrijk",3,1)),"1") -> 2 | P85: =IFERROR(IF(OR(INDEX('Criteria-Status-Tabel'!$A$5:$K$128,MATCH("2-"&'Invulscherm 1 - Weging'!$A85,'Criteria-Status-Tabel'!$A$5:$A$128,0),MATCH(10*$S$15+$S$14,'Criteria-Status-Tabel'!$A$5:$K$5,0))="relevant",INDEX('Criteria-Status-Tabel'!$A$5:$K$128,MATCH("2-"&'Invulscherm 1 - Weging'!$A85,'Criteria-Status-Tabel'!$A$5:$A$128,0),MATCH(10*$S$15+$S$14,'Criteria-Status-Tabel'!$A$5:$K$5,0))="verplicht")=TRUE,2,IF(INDEX('Criteria-Status-Tabel'!$A$5:$K$128,MATCH("2-"&'Invulscherm 1 - Weging'!$A85,'Criteria-Status-Tabel'!$A$5:$A$128,0),MATCH(10*$S$15+$S$14,'Criteria-Status-Tabel'!$A$5:$K$5,0))="extra belangrijk",3,1)),"1") -> 2 | Q85: 0 | R85: 0 | V85: =SUM($U$70+$V$70)/SUM($K$72:$L$85) -> 0.5263157895 | W85: Allen uit bij 'bestaande terreinen'
A86: TRA | B86: 6. TRANSPORT (15%) | D86: =IF(SUM(Q89:R103)=0,"U heeft nog geen wijzigingen in dit thema doorgevoerd",IF(SUM(Q89:R103)=1,"Let op! U kunt nog 2 wijziging binnen dit thema doorvoeren",IF(SUM(Q89:R103)=2,"Let op! U kunt nog 1 wijziging voor dit thema doorvoeren",IF(SUM(Q89:R103)=3,"LET OP! U mag geen wijzigingen meer doorvoeren binnen dit thema","STOP! U heeft te veel wijzigingen doorgevoerd. Klik op de knop 'basiswaarden' om te resetten")))) -> U heeft nog geen wijzigingen in dit thema doorgevoerd | J86: =SUM(I87+F87) -> 15
F87: =SUM(F89:F103) -> 8.414634146 | I87: =SUM(I89:I103) -> 6.585365854 | Q87: =IF(K87<>O87,1,0) -> 0 | R87: =IF(L87<>P87,1,0) -> 0 | U87: 7 | V87: 8
A88: TRA1 | B88: Non-gemotoriseerd verkeer | Q88: 0 | R88: 0
A89: TRA1.1 | B89: Inpassing voor fiets- en voetgangersverkeer | E89: =IF(K89=2,"verplicht","extra belangrijk") -> verplicht | F89: =IF(K89=1,U89,IF(K89=2,U89*2,IF(K89=3,U89*3))) -> 0.7317073171 | H89: =IF(L89=1,"minder belangrijk",IF(L89=2,"relevant",IF(L89=3,"extra belangrijk"))) -> relevant | I89: =IF(L89=1,V89,IF(L89=2,V89*2,IF(L89=3,V89*3))) -> 0.7317073171 | K89: =IFERROR(IF(OR(INDEX('Criteria-Status-Tabel'!$A$5:$K$128,MATCH("1-"&'Invulscherm 1 - Weging'!$A89,'Criteria-Status-Tabel'!$A$5:$A$128,0),MATCH(10*$S$15+$S$14,'Criteria-Status-Tabel'!$A$5:$K$5,0))="relevant",INDEX('Criteria-Status-Tabel'!$A$5:$K$128,MATCH("1-"&'Invulscherm 1 - Weging'!$A89,'Criteria-Status-Tabel'!$A$5:$A$128,0),MATCH(10*$S$15+$S$14,'Criteria-Status-Tabel'!$A$5:$K$5,0))="verplicht")=TRUE,2,IF(INDEX('Criteria-Status-Tabel'!$A$5:$K$128,MATCH("1-"&'Invulscherm 1 - Weging'!$A89,'Criteria-Status-Tabel'!$A$5:$A$128,0),MATCH(10*$S$15+$S$14,'Criteria-Status-Tabel'!$A$5:$K$5,0))="extra belangrijk",3,1)),"1") -> 2 | L89: =IFERROR(IF(OR(INDEX('Criteria-Status-Tabel'!$A$5:$K$128,MATCH("2-"&'Invulscherm 1 - Weging'!$A89,'Criteria-Status-Tabel'!$A$5:$A$128,0),MATCH(10*$S$15+$S$14,'Criteria-Status-Tabel'!$A$5:$K$5,0))="relevant",INDEX('Criteria-Status-Tabel'!$A$5:$K$128,MATCH("2-"&'Invulscherm 1 - Weging'!$A89,'Criteria-Status-Tabel'!$A$5:$A$128,0),MATCH(10*$S$15+$S$14,'Criteria-Status-Tabel'!$A$5:$K$5,0))="verplicht")=TRUE,2,IF(INDEX('Criteria-Status-Tabel'!$A$5:$K$128,MATCH("2-"&'Invulscherm 1 - Weging'!$A89,'Criteria-Status-Tabel'!$A$5:$A$128,0),MATCH(10*$S$15+$S$14,'Criteria-Status-Tabel'!$A$5:$K$5,0))="extra belangrijk",3,1)),"1") -> 2 | O89: =IFERROR(IF(OR(INDEX('Criteria-Status-Tabel'!$A$5:$K$128,MATCH("1-"&'Invulscherm 1 - Weging'!$A89,'Criteria-Status-Tabel'!$A$5:$A$128,0),MATCH(10*$S$15+$S$14,'Criteria-Status-Tabel'!$A$5:$K$5,0))="relevant",INDEX('Criteria-Status-Tabel'!$A$5:$K$128,MATCH("1-"&'Invulscherm 1 - Weging'!$A89,'Criteria-Status-Tabel'!$A$5:$A$128,0),MATCH(10*$S$15+$S$14,'Criteria-Status-Tabel'!$A$5:$K$5,0))="verplicht")=TRUE,2,IF(INDEX('Criteria-Status-Tabel'!$A$5:$K$128,MATCH("1-"&'Invulscherm 1 - Weging'!$A89,'Criteria-Status-Tabel'!$A$5:$A$128,0),MATCH(10*$S$15+$S$14,'Criteria-Status-Tabel'!$A$5:$K$5,0))="extra belangrijk",3,1)),"1") -> 2 | P89: =IFERROR(IF(OR(INDEX('Criteria-Status-Tabel'!$A$5:$K$128,MATCH("2-"&'Invulscherm 1 - Weging'!$A89,'Criteria-Status-Tabel'!$A$5:$A$128,0),MATCH(10*$S$15+$S$14,'Criteria-Status-Tabel'!$A$5:$K$5,0))="relevant",INDEX('Criteria-Status-Tabel'!$A$5:$K$128,MATCH("2-"&'Invulscherm 1 - Weging'!$A89,'Criteria-Status-Tabel'!$A$5:$A$128,0),MATCH(10*$S$15+$S$14,'Criteria-Status-Tabel'!$A$5:$K$5,0))="verplicht")=TRUE,2,IF(INDEX('Criteria-Status-Tabel'!$A$5:$K$128,MATCH("2-"&'Invulscherm 1 - Weging'!$A89,'Criteria-Status-Tabel'!$A$5:$A$128,0),MATCH(10*$S$15+$S$14,'Criteria-Status-Tabel'!$A$5:$K$5,0))="extra belangrijk",3,1)),"1") -> 2 | Q89: 0 | R89: 0 | U89: =15/SUM($K$89:$L$103) -> 0.3658536585 | V89: =15/SUM($K$89:$L$103) -> 0.3658536585 | W89: Allen uit bij 'bestaande terreinen'
A90: TRA1.2 | B90: Stimuleren fiets- en voetgangersverkeer | E90: verplicht | F90: =IF(K90=1,U90,IF(K90=2,U90*2,IF(K90=3,U90*3))) -> 0.7317073171 | H90: relevant | I90: =IF(L90=1,V90,IF(L90=2,V90*2,IF(L90=3,V90*3))) -> 0.7317073171 | K90: =IFERROR(IF(OR(INDEX('Criteria-Status-Tabel'!$A$5:$K$128,MATCH("1-"&'Invulscherm 1 - Weging'!$A90,'Criteria-Status-Tabel'!$A$5:$A$128,0),MATCH(10*$S$15+$S$14,'Criteria-Status-Tabel'!$A$5:$K$5,0))="relevant",INDEX('Criteria-Status-Tabel'!$A$5:$K$128,MATCH("1-"&'Invulscherm 1 - Weging'!$A90,'Criteria-Status-Tabel'!$A$5:$A$128,0),MATCH(10*$S$15+$S$14,'Criteria-Status-Tabel'!$A$5:$K$5,0))="verplicht")=TRUE,2,IF(INDEX('Criteria-Status-Tabel'!$A$5:$K$128,MATCH("1-"&'Invulscherm 1 - Weging'!$A90,'Criteria-Status-Tabel'!$A$5:$A$128,0),MATCH(10*$S$15+$S$14,'Criteria-Status-Tabel'!$A$5:$K$5,0))="extra belangrijk",3,1)),"1") -> 2 | L90: =IFERROR(IF(OR(INDEX('Criteria-Status-Tabel'!$A$5:$K$128,MATCH("2-"&'Invulscherm 1 - Weging'!$A90,'Criteria-Status-Tabel'!$A$5:$A$128,0),MATCH(10*$S$15+$S$14,'Criteria-Status-Tabel'!$A$5:$K$5,0))="relevant",INDEX('Criteria-Status-Tabel'!$A$5:$K$128,MATCH("2-"&'Invulscherm 1 - Weging'!$A90,'Criteria-Status-Tabel'!$A$5:$A$128,0),MATCH(10*$S$15+$S$14,'Criteria-Status-Tabel'!$A$5:$K$5,0))="verplicht")=TRUE,2,IF(INDEX('Criteria-Status-Tabel'!$A$5:$K$128,MATCH("2-"&'Invulscherm 1 - Weging'!$A90,'Criteria-Status-Tabel'!$A$5:$A$128,0),MATCH(10*$S$15+$S$14,'Criteria-Status-Tabel'!$A$5:$K$5,0))="extra belangrijk",3,1)),"1") -> 2 | O90: =IFERROR(IF(OR(INDEX('Criteria-Status-Tabel'!$A$5:$K$128,MATCH("1-"&'Invulscherm 1 - Weging'!$A90,'Criteria-Status-Tabel'!$A$5:$A$128,0),MATCH(10*$S$15+$S$14,'Criteria-Status-Tabel'!$A$5:$K$5,0))="relevant",INDEX('Criteria-Status-Tabel'!$A$5:$K$128,MATCH("1-"&'Invulscherm 1 - Weging'!$A90,'Criteria-Status-Tabel'!$A$5:$A$128,0),MATCH(10*$S$15+$S$14,'Criteria-Status-Tabel'!$A$5:$K$5,0))="verplicht")=TRUE,2,IF(INDEX('Criteria-Status-Tabel'!$A$5:$K$128,MATCH("1-"&'Invulscherm 1 - Weging'!$A90,'Criteria-Status-Tabel'!$A$5:$A$128,0),MATCH(10*$S$15+$S$14,'Criteria-Status-Tabel'!$A$5:$K$5,0))="extra belangrijk",3,1)),"1") -> 2 | P90: =IFERROR(IF(OR(INDEX('Criteria-Status-Tabel'!$A$5:$K$128,MATCH("2-"&'Invulscherm 1 - Weging'!$A90,'Criteria-Status-Tabel'!$A$5:$A$128,0),MATCH(10*$S$15+$S$14,'Criteria-Status-Tabel'!$A$5:$K$5,0))="relevant",INDEX('Criteria-Status-Tabel'!$A$5:$K$128,MATCH("2-"&'Invulscherm 1 - Weging'!$A90,'Criteria-Status-Tabel'!$A$5:$A$128,0),MATCH(10*$S$15+$S$14,'Criteria-Status-Tabel'!$A$5:$K$5,0))="verplicht")=TRUE,2,IF(INDEX('Criteria-Status-Tabel'!$A$5:$K$128,MATCH("2-"&'Invulscherm 1 - Weging'!$A90,'Criteria-Status-Tabel'!$A$5:$A$128,0),MATCH(10*$S$15+$S$14,'Criteria-Status-Tabel'!$A$5:$K$5,0))="extra belangrijk",3,1)),"1") -> 2 | Q90: 0 | R90: 0 | U90: =15/SUM($K$89:$L$103) -> 0.3658536585 | V90: =15/SUM($K$89:$L$103) -> 0.3658536585 | W90: Allen uit bij 'bestaande terreinen'
A91: TRA2 | B91: Openbaar vervoer | Q91: 0 | R91: 0
A92: TRA2.1 | B92: Stimuleren van openbaar & collectief vervoer | E92: =IF(K92=1,"minder belangrijk",IF(K92=2,"relevant",IF(K92=3,"extra belangrijk"))) -> relevant | F92: =IF(K92=1,U92,IF(K92=2,U92*2,IF(K92=3,U92*3))) -> 0.7317073171 | H92: =IF(L92=1,"minder belangrijk",IF(L92=2,"relevant",IF(L92=3,"extra belangrijk"))) -> relevant | I92: =IF(L92=1,V92,IF(L92=2,V92*2,IF(L92=3,V92*3))) -> 0.7317073171 | K92: =IFERROR(IF(OR(INDEX('Criteria-Status-Tabel'!$A$5:$K$128,MATCH("1-"&'Invulscherm 1 - Weging'!$A92,'Criteria-Status-Tabel'!$A$5:$A$128,0),MATCH(10*$S$15+$S$14,'Criteria-Status-Tabel'!$A$5:$K$5,0))="relevant",INDEX('Criteria-Status-Tabel'!$A$5:$K$128,MATCH("1-"&'Invulscherm 1 - Weging'!$A92,'Criteria-Status-Tabel'!$A$5:$A$128,0),MATCH(10*$S$15+$S$14,'Criteria-Status-Tabel'!$A$5:$K$5,0))="verplicht")=TRUE,2,IF(INDEX('Criteria-Status-Tabel'!$A$5:$K$128,MATCH("1-"&'Invulscherm 1 - Weging'!$A92,'Criteria-Status-Tabel'!$A$5:$A$128,0),MATCH(10*$S$15+$S$14,'Criteria-Status-Tabel'!$A$5:$K$5,0))="extra belangrijk",3,1)),"1") -> 2 | L92: =IFERROR(IF(OR(INDEX('Criteria-Status-Tabel'!$A$5:$K$128,MATCH("2-"&'Invulscherm 1 - Weging'!$A92,'Criteria-Status-Tabel'!$A$5:$A$128,0),MATCH(10*$S$15+$S$14,'Criteria-Status-Tabel'!$A$5:$K$5,0))="relevant",INDEX('Criteria-Status-Tabel'!$A$5:$K$128,MATCH("2-"&'Invulscherm 1 - Weging'!$A92,'Criteria-Status-Tabel'!$A$5:$A$128,0),MATCH(10*$S$15+$S$14,'Criteria-Status-Tabel'!$A$5:$K$5,0))="verplicht")=TRUE,2,IF(INDEX('Criteria-Status-Tabel'!$A$5:$K$128,MATCH("2-"&'Invulscherm 1 - Weging'!$A92,'Criteria-Status-Tabel'!$A$5:$A$128,0),MATCH(10*$S$15+$S$14,'Criteria-Status-Tabel'!$A$5:$K$5,0))="extra belangrijk",3,1)),"1") -> 2 | O92: =IFERROR(IF(OR(INDEX('Criteria-Status-Tabel'!$A$5:$K$128,MATCH("1-"&'Invulscherm 1 - Weging'!$A92,'Criteria-Status-Tabel'!$A$5:$A$128,0),MATCH(10*$S$15+$S$14,'Criteria-Status-Tabel'!$A$5:$K$5,0))="relevant",INDEX('Criteria-Status-Tabel'!$A$5:$K$128,MATCH("1-"&'Invulscherm 1 - Weging'!$A92,'Criteria-Status-Tabel'!$A$5:$A$128,0),MATCH(10*$S$15+$S$14,'Criteria-Status-Tabel'!$A$5:$K$5,0))="verplicht")=TRUE,2,IF(INDEX('Criteria-Status-Tabel'!$A$5:$K$128,MATCH("1-"&'Invulscherm 1 - Weging'!$A92,'Criteria-Status-Tabel'!$A$5:$A$128,0),MATCH(10*$S$15+$S$14,'Criteria-Status-Tabel'!$A$5:$K$5,0))="extra belangrijk",3,1)),"1") -> 2 | P92: =IFERROR(IF(OR(INDEX('Criteria-Status-Tabel'!$A$5:$K$128,MATCH("2-"&'Invulscherm 1 - Weging'!$A92,'Criteria-Status-Tabel'!$A$5:$A$128,0),MATCH(10*$S$15+$S$14,'Criteria-Status-Tabel'!$A$5:$K$5,0))="relevant",INDEX('Criteria-Status-Tabel'!$A$5:$K$128,MATCH("2-"&'Invulscherm 1 - Weging'!$A92,'Criteria-Status-Tabel'!$A$5:$A$128,0),MATCH(10*$S$15+$S$14,'Criteria-Status-Tabel'!$A$5:$K$5,0))="verplicht")=TRUE,2,IF(INDEX('Criteria-Status-Tabel'!$A$5:$K$128,MATCH("2-"&'Invulscherm 1 - Weging'!$A92,'Criteria-Status-Tabel'!$A$5:$A$128,0),MATCH(10*$S$15+$S$14,'Criteria-Status-Tabel'!$A$5:$K$5,0))="extra belangrijk",3,1)),"1") -> 2 | Q92: 0 | R92: 0 | U92: =15/SUM($K$89:$L$103) -> 0.3658536585 | V92: =15/SUM($K$89:$L$103) -> 0.3658536585 | W92: Allen uit bij 'bestaande terreinen'
A93: TRA3 | B93: Autoverkeer | Q93: 0 | R93: 0
A94: TRA3.1 | B94: Inpassing van autoverkeer | E94: =IF(K94=2,"verplicht","extra belangrijk") -> verplicht | F94: =IF(K94=1,U94,IF(K94=2,U94*2,IF(K94=3,U94*3))) -> 0.7317073171 | H94: =IF(L94=1,"minder belangrijk",IF(L94=2,"relevant",IF(L94=3,"extra belangrijk"))) -> relevant | I94: =IF(L94=1,V94,IF(L94=2,V94*2,IF(L94=3,V94*3))) -> 0.7317073171 | K94: =IFERROR(IF(OR(INDEX('Criteria-Status-Tabel'!$A$5:$K$128,MATCH("1-"&'Invulscherm 1 - Weging'!$A94,'Criteria-Status-Tabel'!$A$5:$A$128,0),MATCH(10*$S$15+$S$14,'Criteria-Status-Tabel'!$A$5:$K$5,0))="relevant",INDEX('Criteria-Status-Tabel'!$A$5:$K$128,MATCH("1-"&'Invulscherm 1 - Weging'!$A94,'Criteria-Status-Tabel'!$A$5:$A$128,0),MATCH(10*$S$15+$S$14,'Criteria-Status-Tabel'!$A$5:$K$5,0))="verplicht")=TRUE,2,IF(INDEX('Criteria-Status-Tabel'!$A$5:$K$128,MATCH("1-"&'Invulscherm 1 - Weging'!$A94,'Criteria-Status-Tabel'!$A$5:$A$128,0),MATCH(10*$S$15+$S$14,'Criteria-Status-Tabel'!$A$5:$K$5,0))="extra belangrijk",3,1)),"1") -> 2 | L94: =IFERROR(IF(OR(INDEX('Criteria-Status-Tabel'!$A$5:$K$128,MATCH("2-"&'Invulscherm 1 - Weging'!$A94,'Criteria-Status-Tabel'!$A$5:$A$128,0),MATCH(10*$S$15+$S$14,'Criteria-Status-Tabel'!$A$5:$K$5,0))="relevant",INDEX('Criteria-Status-Tabel'!$A$5:$K$128,MATCH("2-"&'Invulscherm 1 - Weging'!$A94,'Criteria-Status-Tabel'!$A$5:$A$128,0),MATCH(10*$S$15+$S$14,'Criteria-Status-Tabel'!$A$5:$K$5,0))="verplicht")=TRUE,2,IF(INDEX('Criteria-Status-Tabel'!$A$5:$K$128,MATCH("2-"&'Invulscherm 1 - Weging'!$A94,'Criteria-Status-Tabel'!$A$5:$A$128,0),MATCH(10*$S$15+$S$14,'Criteria-Status-Tabel'!$A$5:$K$5,0))="extra belangrijk",3,1)),"1") -> 2 | O94: =IFERROR(IF(OR(INDEX('Criteria-Status-Tabel'!$A$5:$K$128,MATCH("1-"&'Invulscherm 1 - Weging'!$A94,'Criteria-Status-Tabel'!$A$5:$A$128,0),MATCH(10*$S$15+$S$14,'Criteria-Status-Tabel'!$A$5:$K$5,0))="relevant",INDEX('Criteria-Status-Tabel'!$A$5:$K$128,MATCH("1-"&'Invulscherm 1 - Weging'!$A94,'Criteria-Status-Tabel'!$A$5:$A$128,0),MATCH(10*$S$15+$S$14,'Criteria-Status-Tabel'!$A$5:$K$5,0))="verplicht")=TRUE,2,IF(INDEX('Criteria-Status-Tabel'!$A$5:$K$128,MATCH("1-"&'Invulscherm 1 - Weging'!$A94,'Criteria-Status-Tabel'!$A$5:$A$128,0),MATCH(10*$S$15+$S$14,'Criteria-Status-Tabel'!$A$5:$K$5,0))="extra belangrijk",3,1)),"1") -> 2 | P94: =IFERROR(IF(OR(INDEX('Criteria-Status-Tabel'!$A$5:$K$128,MATCH("2-"&'Invulscherm 1 - Weging'!$A94,'Criteria-Status-Tabel'!$A$5:$A$128,0),MATCH(10*$S$15+$S$14,'Criteria-Status-Tabel'!$A$5:$K$5,0))="relevant",INDEX('Criteria-Status-Tabel'!$A$5:$K$128,MATCH("2-"&'Invulscherm 1 - Weging'!$A94,'Criteria-Status-Tabel'!$A$5:$A$128,0),MATCH(10*$S$15+$S$14,'Criteria-Status-Tabel'!$A$5:$K$5,0))="verplicht")=TRUE,2,IF(INDEX('Criteria-Status-Tabel'!$A$5:$K$128,MATCH("2-"&'Invulscherm 1 - Weging'!$A94,'Criteria-Status-Tabel'!$A$5:$A$128,0),MATCH(10*$S$15+$S$14,'Criteria-Status-Tabel'!$A$5:$K$5,0))="extra belangrijk",3,1)),"1") -> 2 | Q94: 0 | R94: 0 | U94: =15/SUM($K$89:$L$103) -> 0.3658536585 | V94: 0.3658536585
A95: TRA3.2 | B95: Het reduceren van autogebruik | E95: verplicht | F95: =IF(K95=1,U95,IF(K95=2,U95*2,IF(K95=3,U95*3))) -> 0.7317073171 | H95: relevant | I95: =IF(L95=1,V95,IF(L95=2,V95*2,IF(L95=3,V95*3))) -> 0.7317073171 | K95: =IFERROR(IF(OR(INDEX('Criteria-Status-Tabel'!$A$5:$K$128,MATCH("1-"&'Invulscherm 1 - Weging'!$A95,'Criteria-Status-Tabel'!$A$5:$A$128,0),MATCH(10*$S$15+$S$14,'Criteria-Status-Tabel'!$A$5:$K$5,0))="relevant",INDEX('Criteria-Status-Tabel'!$A$5:$K$128,MATCH("1-"&'Invulscherm 1 - Weging'!$A95,'Criteria-Status-Tabel'!$A$5:$A$128,0),MATCH(10*$S$15+$S$14,'Criteria-Status-Tabel'!$A$5:$K$5,0))="verplicht")=TRUE,2,IF(INDEX('Criteria-Status-Tabel'!$A$5:$K$128,MATCH("1-"&'Invulscherm 1 - Weging'!$A95,'Criteria-Status-Tabel'!$A$5:$A$128,0),MATCH(10*$S$15+$S$14,'Criteria-Status-Tabel'!$A$5:$K$5,0))="extra belangrijk",3,1)),"1") -> 2 | L95: =IFERROR(IF(OR(INDEX('Criteria-Status-Tabel'!$A$5:$K$128,MATCH("2-"&'Invulscherm 1 - Weging'!$A95,'Criteria-Status-Tabel'!$A$5:$A$128,0),MATCH(10*$S$15+$S$14,'Criteria-Status-Tabel'!$A$5:$K$5,0))="relevant",INDEX('Criteria-Status-Tabel'!$A$5:$K$128,MATCH("2-"&'Invulscherm 1 - Weging'!$A95,'Criteria-Status-Tabel'!$A$5:$A$128,0),MATCH(10*$S$15+$S$14,'Criteria-Status-Tabel'!$A$5:$K$5,0))="verplicht")=TRUE,2,IF(INDEX('Criteria-Status-Tabel'!$A$5:$K$128,MATCH("2-"&'Invulscherm 1 - Weging'!$A95,'Criteria-Status-Tabel'!$A$5:$A$128,0),MATCH(10*$S$15+$S$14,'Criteria-Status-Tabel'!$A$5:$K$5,0))="extra belangrijk",3,1)),"1") -> 2 | O95: =IFERROR(IF(OR(INDEX('Criteria-Status-Tabel'!$A$5:$K$128,MATCH("1-"&'Invulscherm 1 - Weging'!$A95,'Criteria-Status-Tabel'!$A$5:$A$128,0),MATCH(10*$S$15+$S$14,'Criteria-Status-Tabel'!$A$5:$K$5,0))="relevant",INDEX('Criteria-Status-Tabel'!$A$5:$K$128,MATCH("1-"&'Invulscherm 1 - Weging'!$A95,'Criteria-Status-Tabel'!$A$5:$A$128,0),MATCH(10*$S$15+$S$14,'Criteria-Status-Tabel'!$A$5:$K$5,0))="verplicht")=TRUE,2,IF(INDEX('Criteria-Status-Tabel'!$A$5:$K$128,MATCH("1-"&'Invulscherm 1 - Weging'!$A95,'Criteria-Status-Tabel'!$A$5:$A$128,0),MATCH(10*$S$15+$S$14,'Criteria-Status-Tabel'!$A$5:$K$5,0))="extra belangrijk",3,1)),"1") -> 2 | P95: =IFERROR(IF(OR(INDEX('Criteria-Status-Tabel'!$A$5:$K$128,MATCH("2-"&'Invulscherm 1 - Weging'!$A95,'Criteria-Status-Tabel'!$A$5:$A$128,0),MATCH(10*$S$15+$S$14,'Criteria-Status-Tabel'!$A$5:$K$5,0))="relevant",INDEX('Criteria-Status-Tabel'!$A$5:$K$128,MATCH("2-"&'Invulscherm 1 - Weging'!$A95,'Criteria-Status-Tabel'!$A$5:$A$128,0),MATCH(10*$S$15+$S$14,'Criteria-Status-Tabel'!$A$5:$K$5,0))="verplicht")=TRUE,2,IF(INDEX('Criteria-Status-Tabel'!$A$5:$K$128,MATCH("2-"&'Invulscherm 1 - Weging'!$A95,'Criteria-Status-Tabel'!$A$5:$A$128,0),MATCH(10*$S$15+$S$14,'Criteria-Status-Tabel'!$A$5:$K$5,0))="extra belangrijk",3,1)),"1") -> 2 | Q95: 0 | R95: 0 | U95: 0.3658536585 | V95: 0.3658536585 | W95: Als aangetoond kan worden dat het ontmoedigen van autoverkeer niet kan worden beïnvloed door het ontwerp (omdat er bijvoorbeeld geen ontwerp is).
A96: TRA3.3 | B96: Het faciliteren van auto's op alternatieve energiebronnen | E96: verplicht | F96: =IF(K96=1,U96,IF(K96=2,U96*2,IF(K96=3,U96*3))) -> 0.7317073171 | H96: relevant | I96: =IF(L96=1,V96,IF(L96=2,V96*2,IF(L96=3,V96*3))) -> 0.7317073171 | K96: =IFERROR(IF(OR(INDEX('Criteria-Status-Tabel'!$A$5:$K$128,MATCH("1-"&'Invulscherm 1 - Weging'!$A96,'Criteria-Status-Tabel'!$A$5:$A$128,0),MATCH(10*$S$15+$S$14,'Criteria-Status-Tabel'!$A$5:$K$5,0))="relevant",INDEX('Criteria-Status-Tabel'!$A$5:$K$128,MATCH("1-"&'Invulscherm 1 - Weging'!$A96,'Criteria-Status-Tabel'!$A$5:$A$128,0),MATCH(10*$S$15+$S$14,'Criteria-Status-Tabel'!$A$5:$K$5,0))="verplicht")=TRUE,2,IF(INDEX('Criteria-Status-Tabel'!$A$5:$K$128,MATCH("1-"&'Invulscherm 1 - Weging'!$A96,'Criteria-Status-Tabel'!$A$5:$A$128,0),MATCH(10*$S$15+$S$14,'Criteria-Status-Tabel'!$A$5:$K$5,0))="extra belangrijk",3,1)),"1") -> 2 | L96: =IFERROR(IF(OR(INDEX('Criteria-Status-Tabel'!$A$5:$K$128,MATCH("2-"&'Invulscherm 1 - Weging'!$A96,'Criteria-Status-Tabel'!$A$5:$A$128,0),MATCH(10*$S$15+$S$14,'Criteria-Status-Tabel'!$A$5:$K$5,0))="relevant",INDEX('Criteria-Status-Tabel'!$A$5:$K$128,MATCH("2-"&'Invulscherm 1 - Weging'!$A96,'Criteria-Status-Tabel'!$A$5:$A$128,0),MATCH(10*$S$15+$S$14,'Criteria-Status-Tabel'!$A$5:$K$5,0))="verplicht")=TRUE,2,IF(INDEX('Criteria-Status-Tabel'!$A$5:$K$128,MATCH("2-"&'Invulscherm 1 - Weging'!$A96,'Criteria-Status-Tabel'!$A$5:$A$128,0),MATCH(10*$S$15+$S$14,'Criteria-Status-Tabel'!$A$5:$K$5,0))="extra belangrijk",3,1)),"1") -> 2 | O96: =IFERROR(IF(OR(INDEX('Criteria-Status-Tabel'!$A$5:$K$128,MATCH("1-"&'Invulscherm 1 - Weging'!$A96,'Criteria-Status-Tabel'!$A$5:$A$128,0),MATCH(10*$S$15+$S$14,'Criteria-Status-Tabel'!$A$5:$K$5,0))="relevant",INDEX('Criteria-Status-Tabel'!$A$5:$K$128,MATCH("1-"&'Invulscherm 1 - Weging'!$A96,'Criteria-Status-Tabel'!$A$5:$A$128,0),MATCH(10*$S$15+$S$14,'Criteria-Status-Tabel'!$A$5:$K$5,0))="verplicht")=TRUE,2,IF(INDEX('Criteria-Status-Tabel'!$A$5:$K$128,MATCH("1-"&'Invulscherm 1 - Weging'!$A96,'Criteria-Status-Tabel'!$A$5:$A$128,0),MATCH(10*$S$15+$S$14,'Criteria-Status-Tabel'!$A$5:$K$5,0))="extra belangrijk",3,1)),"1") -> 2 | P96: =IFERROR(IF(OR(INDEX('Criteria-Status-Tabel'!$A$5:$K$128,MATCH("2-"&'Invulscherm 1 - Weging'!$A96,'Criteria-Status-Tabel'!$A$5:$A$128,0),MATCH(10*$S$15+$S$14,'Criteria-Status-Tabel'!$A$5:$K$5,0))="relevant",INDEX('Criteria-Status-Tabel'!$A$5:$K$128,MATCH("2-"&'Invulscherm 1 - Weging'!$A96,'Criteria-Status-Tabel'!$A$5:$A$128,0),MATCH(10*$S$15+$S$14,'Criteria-Status-Tabel'!$A$5:$K$5,0))="verplicht")=TRUE,2,IF(INDEX('Criteria-Status-Tabel'!$A$5:$K$128,MATCH("2-"&'Invulscherm 1 - Weging'!$A96,'Criteria-Status-Tabel'!$A$5:$A$128,0),MATCH(10*$S$15+$S$14,'Criteria-Status-Tabel'!$A$5:$K$5,0))="extra belangrijk",3,1)),"1") -> 2 | Q96: 0 | R96: 0 | U96: 0.3658536585 | V96: 0.3658536585
A97: TRA4 | B97: Vrachtverkeer | Q97: 0 | R97: 0
A98: TRA4.1 | B98: Inpassing en doorstroming van vrachtverkeer | E98: =IF(K98=1,"minder belangrijk",IF(K98=2,"relevant",IF(K98=3,"extra belangrijk"))) -> extra belangrijk | F98: =IF(K98=1,U98,IF(K98=2,U98*2,IF(K98=3,U98*3))) -> 1.097560976 | H98: =IF(L98=1,"minder belangrijk",IF(L98=2,"relevant",IF(L98=3,"extra belangrijk"))) -> relevant | I98: =IF(L98=1,V98,IF(L98=2,V98*2,IF(L98=3,V98*3))) -> 0.7317073171 | K98: =IFERROR(IF(OR(INDEX('Criteria-Status-Tabel'!$A$5:$K$128,MATCH("1-"&'Invulscherm 1 - Weging'!$A98,'Criteria-Status-Tabel'!$A$5:$A$128,0),MATCH(10*$S$15+$S$14,'Criteria-Status-Tabel'!$A$5:$K$5,0))="relevant",INDEX('Criteria-Status-Tabel'!$A$5:$K$128,MATCH("1-"&'Invulscherm 1 - Weging'!$A98,'Criteria-Status-Tabel'!$A$5:$A$128,0),MATCH(10*$S$15+$S$14,'Criteria-Status-Tabel'!$A$5:$K$5,0))="verplicht")=TRUE,2,IF(INDEX('Criteria-Status-Tabel'!$A$5:$K$128,MATCH("1-"&'Invulscherm 1 - Weging'!$A98,'Criteria-Status-Tabel'!$A$5:$A$128,0),MATCH(10*$S$15+$S$14,'Criteria-Status-Tabel'!$A$5:$K$5,0))="extra belangrijk",3,1)),"1") -> 3 | L98: =IFERROR(IF(OR(INDEX('Criteria-Status-Tabel'!$A$5:$K$128,MATCH("2-"&'Invulscherm 1 - Weging'!$A98,'Criteria-Status-Tabel'!$A$5:$A$128,0),MATCH(10*$S$15+$S$14,'Criteria-Status-Tabel'!$A$5:$K$5,0))="relevant",INDEX('Criteria-Status-Tabel'!$A$5:$K$128,MATCH("2-"&'Invulscherm 1 - Weging'!$A98,'Criteria-Status-Tabel'!$A$5:$A$128,0),MATCH(10*$S$15+$S$14,'Criteria-Status-Tabel'!$A$5:$K$5,0))="verplicht")=TRUE,2,IF(INDEX('Criteria-Status-Tabel'!$A$5:$K$128,MATCH("2-"&'Invulscherm 1 - Weging'!$A98,'Criteria-Status-Tabel'!$A$5:$A$128,0),MATCH(10*$S$15+$S$14,'Criteria-Status-Tabel'!$A$5:$K$5,0))="extra belangrijk",3,1)),"1") -> 2 | O98: =IFERROR(IF(OR(INDEX('Criteria-Status-Tabel'!$A$5:$K$128,MATCH("1-"&'Invulscherm 1 - Weging'!$A98,'Criteria-Status-Tabel'!$A$5:$A$128,0),MATCH(10*$S$15+$S$14,'Criteria-Status-Tabel'!$A$5:$K$5,0))="relevant",INDEX('Criteria-Status-Tabel'!$A$5:$K$128,MATCH("1-"&'Invulscherm 1 - Weging'!$A98,'Criteria-Status-Tabel'!$A$5:$A$128,0),MATCH(10*$S$15+$S$14,'Criteria-Status-Tabel'!$A$5:$K$5,0))="verplicht")=TRUE,2,IF(INDEX('Criteria-Status-Tabel'!$A$5:$K$128,MATCH("1-"&'Invulscherm 1 - Weging'!$A98,'Criteria-Status-Tabel'!$A$5:$A$128,0),MATCH(10*$S$15+$S$14,'Criteria-Status-Tabel'!$A$5:$K$5,0))="extra belangrijk",3,1)),"1") -> 3 | P98: =IFERROR(IF(OR(INDEX('Criteria-Status-Tabel'!$A$5:$K$128,MATCH("2-"&'Invulscherm 1 - Weging'!$A98,'Criteria-Status-Tabel'!$A$5:$A$128,0),MATCH(10*$S$15+$S$14,'Criteria-Status-Tabel'!$A$5:$K$5,0))="relevant",INDEX('Criteria-Status-Tabel'!$A$5:$K$128,MATCH("2-"&'Invulscherm 1 - Weging'!$A98,'Criteria-Status-Tabel'!$A$5:$A$128,0),MATCH(10*$S$15+$S$14,'Criteria-Status-Tabel'!$A$5:$K$5,0))="verplicht")=TRUE,2,IF(INDEX('Criteria-Status-Tabel'!$A$5:$K$128,MATCH("2-"&'Invulscherm 1 - Weging'!$A98,'Criteria-Status-Tabel'!$A$5:$A$128,0),MATCH(10*$S$15+$S$14,'Criteria-Status-Tabel'!$A$5:$K$5,0))="extra belangrijk",3,1)),"1") -> 2 | Q98: 0 | R98: 0 | U98: =15/SUM($K$89:$L$103) -> 0.3658536585 | V98: =15/SUM($K$89:$L$103) -> 0.3658536585
A99: TRA4.2 | B99: Maatregelen voor het minimaliseren van hinder door vrachtverkeer | E99: extra belangrijk | F99: =IF(K99=1,U99,IF(K99=2,U99*2,IF(K99=3,U99*3))) -> 1.097560976 | H99: relevant | I99: =IF(L99=1,V99,IF(L99=2,V99*2,IF(L99=3,V99*3))) -> 0.7317073171 | K99: =IFERROR(IF(OR(INDEX('Criteria-Status-Tabel'!$A$5:$K$128,MATCH("1-"&'Invulscherm 1 - Weging'!$A99,'Criteria-Status-Tabel'!$A$5:$A$128,0),MATCH(10*$S$15+$S$14,'Criteria-Status-Tabel'!$A$5:$K$5,0))="relevant",INDEX('Criteria-Status-Tabel'!$A$5:$K$128,MATCH("1-"&'Invulscherm 1 - Weging'!$A99,'Criteria-Status-Tabel'!$A$5:$A$128,0),MATCH(10*$S$15+$S$14,'Criteria-Status-Tabel'!$A$5:$K$5,0))="verplicht")=TRUE,2,IF(INDEX('Criteria-Status-Tabel'!$A$5:$K$128,MATCH("1-"&'Invulscherm 1 - Weging'!$A99,'Criteria-Status-Tabel'!$A$5:$A$128,0),MATCH(10*$S$15+$S$14,'Criteria-Status-Tabel'!$A$5:$K$5,0))="extra belangrijk",3,1)),"1") -> 3 | L99: =IFERROR(IF(OR(INDEX('Criteria-Status-Tabel'!$A$5:$K$128,MATCH("2-"&'Invulscherm 1 - Weging'!$A99,'Criteria-Status-Tabel'!$A$5:$A$128,0),MATCH(10*$S$15+$S$14,'Criteria-Status-Tabel'!$A$5:$K$5,0))="relevant",INDEX('Criteria-Status-Tabel'!$A$5:$K$128,MATCH("2-"&'Invulscherm 1 - Weging'!$A99,'Criteria-Status-Tabel'!$A$5:$A$128,0),MATCH(10*$S$15+$S$14,'Criteria-Status-Tabel'!$A$5:$K$5,0))="verplicht")=TRUE,2,IF(INDEX('Criteria-Status-Tabel'!$A$5:$K$128,MATCH("2-"&'Invulscherm 1 - Weging'!$A99,'Criteria-Status-Tabel'!$A$5:$A$128,0),MATCH(10*$S$15+$S$14,'Criteria-Status-Tabel'!$A$5:$K$5,0))="extra belangrijk",3,1)),"1") -> 2 | O99: =IFERROR(IF(OR(INDEX('Criteria-Status-Tabel'!$A$5:$K$128,MATCH("1-"&'Invulscherm 1 - Weging'!$A99,'Criteria-Status-Tabel'!$A$5:$A$128,0),MATCH(10*$S$15+$S$14,'Criteria-Status-Tabel'!$A$5:$K$5,0))="relevant",INDEX('Criteria-Status-Tabel'!$A$5:$K$128,MATCH("1-"&'Invulscherm 1 - Weging'!$A99,'Criteria-Status-Tabel'!$A$5:$A$128,0),MATCH(10*$S$15+$S$14,'Criteria-Status-Tabel'!$A$5:$K$5,0))="verplicht")=TRUE,2,IF(INDEX('Criteria-Status-Tabel'!$A$5:$K$128,MATCH("1-"&'Invulscherm 1 - Weging'!$A99,'Criteria-Status-Tabel'!$A$5:$A$128,0),MATCH(10*$S$15+$S$14,'Criteria-Status-Tabel'!$A$5:$K$5,0))="extra belangrijk",3,1)),"1") -> 3 | P99: =IFERROR(IF(OR(INDEX('Criteria-Status-Tabel'!$A$5:$K$128,MATCH("2-"&'Invulscherm 1 - Weging'!$A99,'Criteria-Status-Tabel'!$A$5:$A$128,0),MATCH(10*$S$15+$S$14,'Criteria-Status-Tabel'!$A$5:$K$5,0))="relevant",INDEX('Criteria-Status-Tabel'!$A$5:$K$128,MATCH("2-"&'Invulscherm 1 - Weging'!$A99,'Criteria-Status-Tabel'!$A$5:$A$128,0),MATCH(10*$S$15+$S$14,'Criteria-Status-Tabel'!$A$5:$K$5,0))="verplicht")=TRUE,2,IF(INDEX('Criteria-Status-Tabel'!$A$5:$K$128,MATCH("2-"&'Invulscherm 1 - Weging'!$A99,'Criteria-Status-Tabel'!$A$5:$A$128,0),MATCH(10*$S$15+$S$14,'Criteria-Status-Tabel'!$A$5:$K$5,0))="extra belangrijk",3,1)),"1") -> 2 | Q99: 0 | R99: 0 | U99: 0.3658536585 | V99: 0.3658536585
A100: TRA4.3 | B100: Onderzoeken van alternatieven voor vrachtverkeer | E100: extra belangrijk | F100: =IF(K100=1,U100,IF(K100=2,U100*2,IF(K100=3,U100*3))) -> 1.097560976 | K100: =IFERROR(IF(OR(INDEX('Criteria-Status-Tabel'!$A$5:$K$128,MATCH("1-"&'Invulscherm 1 - Weging'!$A100,'Criteria-Status-Tabel'!$A$5:$A$128,0),MATCH(10*$S$15+$S$14,'Criteria-Status-Tabel'!$A$5:$K$5,0))="relevant",INDEX('Criteria-Status-Tabel'!$A$5:$K$128,MATCH("1-"&'Invulscherm 1 - Weging'!$A100,'Criteria-Status-Tabel'!$A$5:$A$128,0),MATCH(10*$S$15+$S$14,'Criteria-Status-Tabel'!$A$5:$K$5,0))="verplicht")=TRUE,2,IF(INDEX('Criteria-Status-Tabel'!$A$5:$K$128,MATCH("1-"&'Invulscherm 1 - Weging'!$A100,'Criteria-Status-Tabel'!$A$5:$A$128,0),MATCH(10*$S$15+$S$14,'Criteria-Status-Tabel'!$A$5:$K$5,0))="extra belangrijk",3,1)),"1") -> 3 | O100: =IFERROR(IF(OR(INDEX('Criteria-Status-Tabel'!$A$5:$K$128,MATCH("1-"&'Invulscherm 1 - Weging'!$A100,'Criteria-Status-Tabel'!$A$5:$A$128,0),MATCH(10*$S$15+$S$14,'Criteria-Status-Tabel'!$A$5:$K$5,0))="relevant",INDEX('Criteria-Status-Tabel'!$A$5:$K$128,MATCH("1-"&'Invulscherm 1 - Weging'!$A100,'Criteria-Status-Tabel'!$A$5:$A$128,0),MATCH(10*$S$15+$S$14,'Criteria-Status-Tabel'!$A$5:$K$5,0))="verplicht")=TRUE,2,IF(INDEX('Criteria-Status-Tabel'!$A$5:$K$128,MATCH("1-"&'Invulscherm 1 - Weging'!$A100,'Criteria-Status-Tabel'!$A$5:$A$128,0),MATCH(10*$S$15+$S$14,'Criteria-Status-Tabel'!$A$5:$K$5,0))="extra belangrijk",3,1)),"1") -> 3 | Q100: 0 | R100: 0 | U100: 0.3658536585 | W100: 2e - Alleen uit bij 'bestaande terreinen'
A101: TRA5 | B101: Integratie van transport | Q101: 0 | R101: 0
A102: TRA5.1 | B102: Integratie van verkeerstromen / Modal Shift | E102: =IF(K102=2,"verplicht","extra belangrijk") -> verplicht | F102: =IF(K102=1,U102,IF(K102=2,U102*2,IF(K102=3,U102*3))) -> 0.7317073171 | K102: =IFERROR(IF(OR(INDEX('Criteria-Status-Tabel'!$A$5:$K$128,MATCH("1-"&'Invulscherm 1 - Weging'!$A102,'Criteria-Status-Tabel'!$A$5:$A$128,0),MATCH(10*$S$15+$S$14,'Criteria-Status-Tabel'!$A$5:$K$5,0))="relevant",INDEX('Criteria-Status-Tabel'!$A$5:$K$128,MATCH("1-"&'Invulscherm 1 - Weging'!$A102,'Criteria-Status-Tabel'!$A$5:$A$128,0),MATCH(10*$S$15+$S$14,'Criteria-Status-Tabel'!$A$5:$K$5,0))="verplicht")=TRUE,2,IF(INDEX('Criteria-Status-Tabel'!$A$5:$K$128,MATCH("1-"&'Invulscherm 1 - Weging'!$A102,'Criteria-Status-Tabel'!$A$5:$A$128,0),MATCH(10*$S$15+$S$14,'Criteria-Status-Tabel'!$A$5:$K$5,0))="extra belangrijk",3,1)),"1") -> 2 | O102: =IFERROR(IF(OR(INDEX('Criteria-Status-Tabel'!$A$5:$K$128,MATCH("1-"&'Invulscherm 1 - Weging'!$A102,'Criteria-Status-Tabel'!$A$5:$A$128,0),MATCH(10*$S$15+$S$14,'Criteria-Status-Tabel'!$A$5:$K$5,0))="relevant",INDEX('Criteria-Status-Tabel'!$A$5:$K$128,MATCH("1-"&'Invulscherm 1 - Weging'!$A102,'Criteria-Status-Tabel'!$A$5:$A$128,0),MATCH(10*$S$15+$S$14,'Criteria-Status-Tabel'!$A$5:$K$5,0))="verplicht")=TRUE,2,IF(INDEX('Criteria-Status-Tabel'!$A$5:$K$128,MATCH("1-"&'Invulscherm 1 - Weging'!$A102,'Criteria-Status-Tabel'!$A$5:$A$128,0),MATCH(10*$S$15+$S$14,'Criteria-Status-Tabel'!$A$5:$K$5,0))="extra belangrijk",3,1)),"1") -> 2 | Q102: 0 | R102: 0 | U102: =15/SUM($K$89:$L$103) -> 0.3658536585
A103: TRA5.2 | B103: Aansluiting infrastructuur op de omgeving | H103: =IF(L103=1,"minder belangrijk",IF(L103=2,"relevant",IF(L103=3,"extra belangrijk"))) -> relevant | I103: =IF(L103=1,V103,IF(L103=2,V103*2,IF(L103=3,V103*3))) -> 0.7317073171 | L103: =IFERROR(IF(OR(INDEX('Criteria-Status-Tabel'!$A$5:$K$128,MATCH("2-"&'Invulscherm 1 - Weging'!$A103,'Criteria-Status-Tabel'!$A$5:$A$128,0),MATCH(10*$S$15+$S$14,'Criteria-Status-Tabel'!$A$5:$K$5,0))="relevant",INDEX('Criteria-Status-Tabel'!$A$5:$K$128,MATCH("2-"&'Invulscherm 1 - Weging'!$A103,'Criteria-Status-Tabel'!$A$5:$A$128,0),MATCH(10*$S$15+$S$14,'Criteria-Status-Tabel'!$A$5:$K$5,0))="verplicht")=TRUE,2,IF(INDEX('Criteria-Status-Tabel'!$A$5:$K$128,MATCH("2-"&'Invulscherm 1 - Weging'!$A103,'Criteria-Status-Tabel'!$A$5:$A$128,0),MATCH(10*$S$15+$S$14,'Criteria-Status-Tabel'!$A$5:$K$5,0))="extra belangrijk",3,1)),"1") -> 2 | P103: =IFERROR(IF(OR(INDEX('Criteria-Status-Tabel'!$A$5:$K$128,MATCH("2-"&'Invulscherm 1 - Weging'!$A103,'Criteria-Status-Tabel'!$A$5:$A$128,0),MATCH(10*$S$15+$S$14,'Criteria-Status-Tabel'!$A$5:$K$5,0))="relevant",INDEX('Criteria-Status-Tabel'!$A$5:$K$128,MATCH("2-"&'Invulscherm 1 - Weging'!$A103,'Criteria-Status-Tabel'!$A$5:$A$128,0),MATCH(10*$S$15+$S$14,'Criteria-Status-Tabel'!$A$5:$K$5,0))="verplicht")=TRUE,2,IF(INDEX('Criteria-Status-Tabel'!$A$5:$K$128,MATCH("2-"&'Invulscherm 1 - Weging'!$A103,'Criteria-Status-Tabel'!$A$5:$A$128,0),MATCH(10*$S$15+$S$14,'Criteria-Status-Tabel'!$A$5:$K$5,0))="extra belangrijk",3,1)),"1") -> 2 | Q103: 0 | R103: 0 | V103: =15/SUM($K$89:$L$103) -> 0.3658536585
A104: TOTAAL BESCHIKBARE SCORE | J104: =SUM(J86,J69,J58,J45,J30,J6) -> 100
C110: In het (verplichte) basispakket is nu opgenomen:
C112: 1. Centraal contactpersoon met overheden en toeleveranciers.
C113: 2. Verrichten van de administratie.
C114: 3. Beheer en onderhoud openbare ruimte.
C115: 4. Bewegwijzeringsysteem in het openbare gebied..
C116: 5. Collectieve beveiliging, toegangscontrole en onderhoud hekwerken rond terrein.
C117: 6. Keurmerk Veilig Ondernemen Bedrijventerrein (KVO-B).
C118: 7. Camerabeveiliging. Preventieve surveillance en alarmopvolging als de ondernemers dat wensen.
C120: Het basis pakket kan in de toekomst eventueel worden uitgebreid met:
C122: Gezamenlijk inkoop afval, energie, onderzoek en advies
C123: Centraal overleg met de nutsbedrijven, gemeente en andere overheden
C124: Energie inkoop (Warmte Koude Opslag/ WKO)
C125: Arbodienstverlening, verzekeringen, werving en secretariële diensten

Sheet Invulscherm 1b
C2: Toelichting op wijzigingen 'Invulscherm 1'
C4: Per thema kunnen maximaal 3 wijzigingen doorgevoerd worden. Indien in het 'invulblad 1' wijzigingen zijn aangebracht dan is het verplicht om hieronde een toelichting te geven. Wijzigingen (inclusief toelichting) worden afgekeurd bij certificering, als deze niet bijdragen aan het verduurzamen van de economische site / bedrijventerrein.
C6: 1. MAN - MANAGEMENT | L6: ='Invulscherm 1 - Weging'!D6 -> U heeft nog geen wijzigingen in dit thema doorgevoerd
C8: Wijziging 1: | E8: (invullen…)
C9: Wijziging 2: | E9: (invullen…)
C10: Wijziging 3: | E10: (invullen…)
C12: 2. SEW - SOCIAAL & ECONOMISCH WELZIJN | L12: ='Invulscherm 1 - Weging'!D30 -> U heeft nog geen wijzigingen in dit thema doorgevoerd
C14: Wijziging 1: | E14: (invullen…)
C15: Wijziging 2: | E15: (invullen…)
C16: Wijziging 3: | E16: (invullen…)
C18: 3. IOR - INFRASTRUCTUUR & OPENBARE RUIMTE | L18: ='Invulscherm 1 - Weging'!D45 -> U heeft nog geen wijzigingen in dit thema doorgevoerd
C20: Wijziging 1: | E20: (invullen…)
C21: Wijziging 2: | E21: (invullen…)
C22: Wijziging 3: | E22: (invullen…)
C24: 4. BRE - BRONNEN & ENERGIE | L24: ='Invulscherm 1 - Weging'!D58 -> U heeft nog geen wijzigingen in dit thema doorgevoerd
C26: Wijziging 1: | E26: (invullen…)
C27: Wijziging 2: | E27: (invullen…)
C28: Wijziging 3: | E28: (invullen…)
C30: 5. EDL - ECOLOGIE & DUURZAAM LANDGEBRUIK | L30: ='Invulscherm 1 - Weging'!D69 -> U heeft nog geen wijzigingen in dit thema doorgevoerd
C32: Wijziging 1: | E32: (invullen…)
C33: Wijziging 2: | E33: (invullen…)
C34: Wijziging 3: | E34: (invullen…)
C36: 6. TRA - TRANSPORT | L36: ='Invulscherm 1 - Weging'!D86 -> U heeft nog geen wijzigingen in dit thema doorgevoerd
C38: Wijziging 1: | E38: (invullen…)
C39: Wijziging 2: | E39: (invullen…)
C40: Wijziging 3: | E40: (invullen…)

Sheet Invulscherm 2 - Scores
K2: TOTAAL SCORE (%)
D3: Status | E3: criterium | F3: TIP | G3: weging | H3: Aandacht aan besteed? | I3: Check door een project medewerker | J3: Categorie score
A4: MAN | B4: 1. MANAGEMENT (20%) | J4: =SUM(J6:J30) -> 0 | K4: =J4 -> 0
A5: MAN1 | B5: Markt
A6: 1-MAN1.1 | C6: Marktanalyse (marktvraag & welke eisen stelt markt aan de locatie) | D6: ='Invulscherm 1 - Weging'!E9 -> extra belangrijk | E6: 1 - Er is een branche-analyse & marktanalyse uitgevoerd. 2 - Deze marktanalyse is doorvertaald naar een marktstrategie/businessplan. Daarbij vindt er een concretisering van de financiële-, economische-, organisatorische- en juridische aspecten plaats in een strategisch businessplan. 3 - Het type bedrijventerrein sluit aantoonbaar aan bij de marktvraag. | F6: - Branche-analyse en marktanalyse (kan in één document). - Businessplan - Onderbouwing die aantoont dat de keuze voor het type bedrijventerrein aansluit bij de marktvraag (max 1x A4) | G6: ='Invulscherm 1 - Weging'!F9 -> 1.2 | J6: =IF(O6=1,G6,0) -> 0 | K6: =J6 -> 0 | L6: 0 | M6: 0 | N6: =IF(R6=1,J6,0) -> 0 | O6: 0
A7: 1-MAN1.2 | C7: Effect marktanalyse op ruimtelijk ontwerp | D7: ='Invulscherm 1 - Weging'!E10 -> extra belangrijk | E7: 1 - Een impactstudie van de ten uitvoer gebrachte marktstrategie met betrekking tot het ontwerpproces. 2 - Een impactstudie van de ten uitvoer gebrachte marktstrategie met betrekking tot de projectlocatie. | F7: - impactstudie - impactstudie (aanvulling op criterium 1) | G7: ='Invulscherm 1 - Weging'!F10 -> 1.2 | J7: =IF(O7=1,G7,0) -> 0 | K7: =J7 -> 0 | L7: 0 | M7: 0 | N7: =IF(R7=1,J7,0) -> 0 | O7: 0
A8: 1-MAN1.3 | C8: Maatschappelijk kosten baten (MKBA) | D8: ='Invulscherm 1 - Weging'!E11 -> extra belangrijk | E8: 1. Er is een inschatting van de kosten-baten gemaakt. 2. De kosten-baten analyse is aantoonbaar doorvertaald in de voorbereidingsfase. | F8: - Kosten-baten inschatting of berekening. - Onderbouwing die aantoont dat de kosten-baten analyse ook daadwerkelijk is verwerkt in de voorbereidingsfase (max 1x A4) | G8: ='Invulscherm 1 - Weging'!F11 -> 1.2 | J8: 0 | K8: =J8 -> 0 | L8: 0 | M8: 0 | N8: 0 | O8: 0
A9: 2-MAN1.4 | C9: Maatschappelijk Verantwoord Ondernemen (MVO) | D9: ='Invulscherm 1 - Weging'!H12 -> relevant | E9: 1 - Bij het aantrekken van bedrijven worden partijen met een transparant en gecommuniceerd maatschappelijk programma (MVO) in lijn met de waarden van de ontwikkeling gestimuleerd. | F9: - Er is een MVO-profiel opgesteld waar bedrijven aan moeten voldoen voor vestiging op het terrein. Dit profiel is opgesteld op basis van de richtlijnen als gepresenteerd door MVO Vlaanderen. | G9: ='Invulscherm 1 - Weging'!I12 -> 0.8 | J9: 0 | K9: =J9 -> 0 | L9: 0 | M9: 0 | N9: 0 | O9: 0
A10: MAN2 | B10: Proces | K10: =J10 -> 0 | L10: 0 | M10: 0 | O10: 0
A11: 1-MAN2.1 | C11: Procesaanpak | D11: ='Invulscherm 1 - Weging'!E14 -> verplicht | E11: 1 - Het projectteam, inclusief de belangrijkste stakeholders (zie MAN3.1), worden aantoonbaar betrokken bij: projectdefinitie & doel, duurzaamheidsambitie, opmaken klantwensen proces (zie MAN3.2) en projectbeheersingsinstrumenten en afspraken. 2 - Verantwoordelijkheden zijn aantoonbaar afgestemd en gecommuniceerd. 3 - Naast het definiëren van een participatiemodel (zie MAN3.1 & MAN4.1), is ook het effectief overleg met overheden en nutmaatschappijen en andere belanghebbenden belangrijk. | F11: - Bewijsmateriaal in de vorm van Notulen of verslagen. | G11: ='Invulscherm 1 - Weging'!F14 -> 0.8 | J11: 0 | K11: =J11 -> 0 | L11: 0 | M11: 0 | N11: 0 | O11: 0
A12: 2-MAN2.1 | D12: ='Invulscherm 1 - Weging'!H14 -> relevant | E12: 4 - Bij de faseovergang naar gebruik gaat vaak veel informatie verloren. Er is voor de faseovergang van Realisatie naar Beheer & Gebruik een vorm van beheer ingericht waarin relevante kennisoverdracht is geborgd. | F12: - Beheerplan | G12: ='Invulscherm 1 - Weging'!I14 -> 0.8 | J12: 0 | K12: =J12 -> 0 | L12: 0 | M12: 0 | N12: 0 | O12: 0
A13: 1-MAN2.2 | C13: ='Invulscherm 1 - Weging'!C15 -> Uitgifteproces | D13: ='Invulscherm 1 - Weging'!E15 -> relevant | E13: 1 - Er wordt een uitgifteplan opgesteld wat voldoet aan de in het handboek beschreven eisen. | F13: - Uitgifteplan, met een aantoonbare ambitie op het gebied van duurzaamheid. | G13: ='Invulscherm 1 - Weging'!F15 -> 0.8 | J13: 0 | K13: =J13 -> 0 | L13: 0 | M13: 0 | N13: 0 | O13: 0
A14: 1-MAN2.3 | C14: Gebiedsvisie & duurzaamheidsambitie | D14: ='Invulscherm 1 - Weging'!E16 -> verplicht | E14: 1 - Er is integraal, met projectmedewerkers en belangrijkste stakeholders, een gebiedsvisie opgesteld gericht op een gebiedsontwikkeling waarin de aanwezige kwaliteiten, bedreigingen, sterkten en zwaktes aan bod komen. 2 - Er is integraal, met projectmedewerkers en belangrijkste stakeholders, een duurzaamheidsambitie opgesteld waarbij de belangrijkste thema's zichtbaar en communiceerbaar zijn gemaakt. 3 - De verantwoordelijkheid voor het realiseren van de duurzaamheidsambitie is geborgd (in het projectteam). | F14: - Gebiedsvisie, met bewijsvoering van totstandkoming proces in vorm van notulen en verslagen. - Duurzaamheidsambitie, met bewijsvoering van totstandkoming proces in vorm van notulen en verslagen. - Aantoonbare borging van rolverdeling (max 1x A4). | G14: ='Invulscherm 1 - Weging'!F16 -> 0.8 | J14: 0 | K14: =J14 -> 0 | L14: 0 | M14: 0 | N14: 0 | O14: 0
A15: 2-MAN2.3 | D15: ='Invulscherm 1 - Weging'!H16 -> verplicht | E15: 4 - Er vindt regelmatig controle plaats of de gestelde duurzaamheidsambitie voldoende is gebord in het ontwerp. | F15: - Bewijsvoering van cyclische borging duurzaamheidsambitie, in vorm van notulen en verslagen. | G15: ='Invulscherm 1 - Weging'!I16 -> 0.8 | J15: 0 | K15: =J15 -> 0 | L15: 0 | M15: 0 | N15: 0 | O15: 0
A16: MAN3 | B16: Draagvlak / Stakeholder management | J16: 0 | K16: =J16 -> 0 | L16: 0 | M16: 0 | O16: 0
A17: 1-MAN3.1 | C17: ='Invulscherm 1 - Weging'!C18 -> Stakeholder analyse + herziening ontwerp | D17: ='Invulscherm 1 - Weging'!E18 -> verplicht | E17: 1- Er is een stakeholderanalyse, in samenspraak met het projectteam, uitgevoerd. 2 - Per relevante stakeholder zijn de aan de gebiedsontwikkeling gerelateerde behoeften in kaart zijn gebracht en is aangegeven waar deze gekoppeld zijn aan andere stakeholders die daar een financiële relatie mee hebben. 3 - De stakeholderanalyse wordt regelmatig geëvalueerd en geüpdate. | F17: - Stakeholderanalyse - Notulen en/of verslaglegging | G17: ='Invulscherm 1 - Weging'!F18 -> 0.8 | J17: 0 | K17: =J17 -> 0 | L17: 0 | M17: 0 | N17: 0 | O17: 0
A18: 2-MAN3.1 | D18: ='Invulscherm 1 - Weging'!H18 -> relevant | E18: 4 - Indien de stakeholderanalyse wordt geüpdate (zie MAN3.1) dan kan worden aangetoond wat de effecten daarvan zijn op het ontwerp. | F18: - Update van stakeholderanalyse | G18: ='Invulscherm 1 - Weging'!I18 -> 0.8 | J18: =IF(O18=1,G18,0) -> 0 | K18: 0 | L18: 0 | M18: 0 | N18: =IF(R18=1,J18,0) -> 0 | O18: 0
A19: 1-MAN3.2 | C19: Klantwensen en garanderen van betrokkenheid | D19: ='Invulscherm 1 - Weging'!E19 -> verplicht | E19: 1 - In een vroeg stadium worden de klantwensen van alle stakeholders verzameld en opgenomen in een klantwensen document. | F19: - Klantwensendocument (in verschillende regio’s kan dit document een andere naam hebben). | G19: ='Invulscherm 1 - Weging'!F19 -> 0.8 | J19: 0 | K19: =J19 -> 0 | L19: 0 | M19: 0 | N19: 0 | O19: 0
A20: 2-MAN3.2 | D20: ='Invulscherm 1 - Weging'!H19 -> verplicht | E20: 2 - Bij aanvang van de ontwerpfase wordt het klantwensendocument opnieuw gereviewd en aangepast waar nodig (zie 1-MAN3.2). Eventuele wijzigingen worden duidelijk gecommuniceerd. | F20: - Verslaglegging van review. | G20: ='Invulscherm 1 - Weging'!I19 -> 0.8 | J20: 0 | K20: =J20 -> 0 | L20: 0 | M20: 0 | N20: 0 | O20: 0
A21: MAN4 | B21: Parkmanagement | J21: 0 | K21: =J21 -> 0 | L21: 0 | M21: 0 | O21: 0
A22: 1-MAN4.1 | C22: Collectieve financiering | D22: ='Invulscherm 1 - Weging'!E21 -> relevant | E22: 1 - Er is een bestendige samenwerkings- en financieringsconstructie opgesteld ter ondersteuning van de duurzame realisatie van de gebiedsontwikkeling. | F22: - Contract, eventueel aanvullende verslaglegging. | G22: ='Invulscherm 1 - Weging'!F21 -> 0.8 | J22: 0 | K22: =J22 -> 0 | L22: 0 | M22: 0 | N22: 0 | O22: 0
A23: 2-MAN4.2 | C23: Collectieve energie inkoop | D23: ='Invulscherm 1 - Weging'!H22 -> extra belangrijk | E23: 1 - Er wordt bestudeerd wat de mogelijkheden en voordelen van collectieve energie-inkoop zijn. Tevens wordt bestudeerd hoe de financiering en organisatie van eventuele collectieve energie opwekking eruit zou kunnen zien. 2 - Er wordt daadwerkelijk gezamenlijk energie ingekocht. | F23: - Verslaglegging en/of rapportage. Daarin staan beschreven de mogelijkheden en organisatie van collectieve inkoop, en eventueel de organisatie van collectieve opwekking. - Energieoverzicht dat aantoont dat, omgerekend per gevestigd bedrijf, minimaal 5% van de energie gezamenlijk wordt ingekocht. | G23: ='Invulscherm 1 - Weging'!I22 -> 1.2 | J23: 0 | K23: =J23 -> 0 | L23: 0 | M23: 0 | N23: 0 | O23: 0
A24: 1-MAN4.3 | C24: Collectief afvalmanagement | D24: ='Invulscherm 1 - Weging'!E23 -> verplicht | E24: 1 - Er wordt bestudeerd wat de mogelijkheden en voordelen van collectieve afvalmanagement zijn. 2 - Er wordt tevens bekeken of er een ‘onafhankelijke tussenpersoon’ moet worden aangesteld, om er voor te zorgen dat bedrijven met gevoelige informatie over afval, toch kunnen participeren. 3 - Indien bij criterium 2 is vastgesteld dat een ‘onafhankelijke tussenpersoon’ wenselijk is, dan is deze ook daadwerkelijk aangesteld. 4 - Er is een systeem ontworpen/ontwikkeld waarbij daadwerkelijk collectief afval wordt ingezameld. | F24: - Studie/rapport of verslaglegging. - Contract of verslaglegging. - Systeemontwerp. Deze bevat minimaal: systeemanalyse, afspraken, verzamelplekken of sorteerstraatjes en contract(en). | G24: ='Invulscherm 1 - Weging'!F23 -> 0.8 | J24: 0 | K24: =J24 -> 0 | L24: 0 | M24: 0 | N24: 0 | O24: 0
A25: 2-MAN4.4 | C25: ='Invulscherm 1 - Weging'!C24 -> Collectief beheer van groen | D25: ='Invulscherm 1 - Weging'!H24 -> extra belangrijk | E25: 1 - Er wordt bestudeerd wat de mogelijkheden zijn van het gezamenlijk beheren van groen. 2 - Er worden maatregelen getroffen die collectief beheer van groen stimuleren. | F25: - Studie/rapport of verslaglegging. - rapport/Verslaglegging of notulen. | G25: ='Invulscherm 1 - Weging'!I24 -> 1.2 | J25: =IF(O25=1,G25,0) -> 0 | K25: 0 | L25: 0 | M25: 0 | N25: =IF(R25=1,J25,0) -> 0 | O25: 0
A26: 2-MAN4.5 | C26: ='Invulscherm 1 - Weging'!C25 -> Collectieve mobiliteit | D26: ='Invulscherm 1 - Weging'!H25 -> extra belangrijk | E26: 1 - Er wordt bestudeerd wat de mogelijkheden zijn van collectieve mobiliteit (eisen zijn beschreven in het handboek) 2 - Er worden maatregelen getroffen die collectieve mobiliteit stimuleren. | F26: - Studie/rapport of verslaglegging. - rapport/Verslaglegging of notulen. | G26: ='Invulscherm 1 - Weging'!I25 -> 1.2 | J26: 0 | K26: =J26 -> 0 | L26: 0 | M26: 0 | N26: 0 | O26: 0
A27: 2-MAN4.6 | C27: Beveiliging | D27: ='Invulscherm 1 - Weging'!H26 -> relevant | E27: 1 - Er wordt bestudeerd wat de mogelijkheden zijn van gezamenlijk beveiligen (eisen zijn beschreven in het handboek). 2. Er worden collectieve beveiligingsmaatregelen getroffen. | F27: - Studie/rapport of verslaglegging. - Aankoopbewijs / foto’s van installatie. | G27: ='Invulscherm 1 - Weging'!I26 -> 0.8 | J27: 0 | K27: =J27 -> 0 | L27: 0 | M27: 0 | N27: 0 | O27: 0
A28: 2-MAN4.7 | C28: Delen/Lenen/ Ruilen | D28: ='Invulscherm 1 - Weging'!H27 -> relevant | E28: 1 - Er wordt bestudeerd wat de mogelijkheden zijn het delen/lenen of ruilen van individuele bezittingen (eisen zijn beschreven in het handboek). 2 - Er wordt aantoonbaar gedeeld/geleend of geruild. | F28: - Studie/rapport of verslaglegging. - Verslaglegging en/of notulen. | G28: ='Invulscherm 1 - Weging'!I27 -> 0.8 | J28: 0 | K28: =J28 -> 0 | L28: 0 | M28: 0 | N28: 0 | O28: 0
A29: 2-MAN4.8 | C29: Lokaal voedsel | D29: ='Invulscherm 1 - Weging'!H28 -> relevant | E29: 1 - De mogelijkheden voor het collectief produceren van lokaal voedsel op het terrein zijn bestudeerd (stadslandbouw). 2 - Daarbij wordt biologisch geproduceerd. 3 - Getracht wordt om het lokaal geproduceerde voedsel ook lokaal af te zetten, bijvoorbeeld in bedrijfskantines op het bedrijventerrein (sluiten van lokale voedsel kringloop). | F29: - Studie/rapport of verslaglegging. - Studie/rapport of verslaglegging. - Contract en/of verslaglegging. Indien afzetten op het terrein niet mogelijk blijkt te zijn dan kan worden volstaan met Bewijsvoering daarvan. | G29: ='Invulscherm 1 - Weging'!I28 -> 0.8 | J29: 0 | K29: =J29 -> 0 | L29: 0 | M29: 0 | N29: 0 | O29: 0
A30: 2-MAN4.9 | C30: ='Invulscherm 1 - Weging'!C29 -> Overgang van ontwikkelaar naar beheerder | D30: ='Invulscherm 1 - Weging'!H29 -> relevant | E30: 1 - Er is een plan opgesteld hoe het parkmanagement wordt overgedragen van de ontwikkelaar op de beheerder. 2 - Er is een professionele partij opgericht, of aangesteld, om het parkmanagement te beheren. | F30: - Studie/rapport of verslaglegging. - Contract of juridisch bewijs van oprichting. Indien er voor gekozen is om geen professionele partij op te richten, dan wordt onderbouwd waarom dit de meest duurzame keuze is. | G30: ='Invulscherm 1 - Weging'!I29 -> 0.8 | J30: 0 | K30: =J30 -> 0 | L30: 0 | M30: 0 | N30: 0 | O30: 0
A31: SEW | B31: 2. SOCIAAL & ECONOMISCH WELZIJN (15%) | J31: =SUM(J33:J46) -> 0 | K31: =J31 -> 0 | L31: 0 | M31: 0 | N31: =SUM(N33:N46) -> 0 | O31: 0
A32: SEW1 | B32: Fysisch Milieu & Gezondheid | K32: =J32 -> 0 | L32: 0 | M32: 0 | O32: 0
A33: 2-SEW1.1 | C33: Geluidsoverlast | D33: ='Invulscherm 1 - Weging'!H33 -> extra belangrijk | E33: 1 - Stel een geluidsbeheerplan op ten behoeve van omgevingslawaai. 2 - Stel de referentietoestand op ten behoeve van verkeerslawaai. 3 - Het aantal ernstig gehinderden in de invloedszone blijft gelijk of daalt ten opzichte van de referentietoestand met betrekking op verkeerslawaai. 4 - In gevoelige gebieden (gebieden van het Vlaams Ecologisch Netwerk (VEN), habitatrichtlijngebieden en vogelrichtlijngebieden) in de invloedssfeer is Lden lager dan 55 dB(A). | F33: - Geluidsbeheerplan conform de richtlijn Europese richtlijn 2002/49/EG en de algemene voorwaarden zoals die omschreven worden in hoofdstuk 4.5. van VLAREM-II. Hierbij wordt conform de norm rekening gehouden met zowel industrielawaai (bron) als omgevingslawaai. - Rapportage met onderbouwing van de referentietoestand. - Berekening op basis van mobiliteitseffectenrapport dat aantoont dat het aantal ernstige gehinderden niet toeneemt. - Rapportage of berekening dat aantoont dat de Lden lager is dan 55 dB(A). | G33: ='Invulscherm 1 - Weging'!I33 -> 1.8 | J33: 0 | K33: =J33 -> 0 | L33: 0 | M33: 0 | N33: =IF(O33=1,J33,0) -> 0 | O33: 0
A34: 2-SEW1.2 | C34: Lichthinder | D34: ='Invulscherm 1 - Weging'!H34 -> relevant | E34: 1 - Stel een lichtbeheerplan op. 2 - Voer mitigerende maatregelen uit ter beperking van lichthinder. | F34: - Lichtbeheerplan waarbij de aspecten als beschreven in dit hoofdstuk zijn verwerkt. Daarbij kunnen de VLAREM-voorschriften als richtlijn worden gebruikt. - Definitief ontwerp waarin lichthinder mitigerende maatregelen zijn getroffen | G34: ='Invulscherm 1 - Weging'!I34 -> 1.2 | J34: 0 | K34: =J34 -> 0 | L34: 0 | M34: 0 | N34: 0 | O34: 0
A35: 2-SEW1.3 | C35: Luchtkwaliteit | D35: ='Invulscherm 1 - Weging'!H35 -> extra belangrijk | E35: 1 - Stel de referentietoestand op ten behoeve van luchtkwaliteit. 2 - Neem ontwerpmaatregelen zodat de luchtverontreiniging gelijk blijft of daalt ten opzichte van de referentietoestand. | F35: - Rapportage van de referentietoestand conform beschreven aspecten. - Definitief ontwerp met de ontwerpmaatregelen en een Rapportage of berekening waaruit blijkt dat deze ontwerpmaatregelen ervoor zorgen dat de luchtverontreiniging gelijk blijft of daalt ten opzichte van de referentietoestand. | G35: ='Invulscherm 1 - Weging'!I35 -> 1.8 | J35: 0 | K35: =J35 -> 0 | L35: 0 | M35: 0 | N35: 0 | O35: 0
A36: 2-SEW1.4 | C36: ='Invulscherm 1 - Weging'!C36 -> Geuroverlast | D36: ='Invulscherm 1 - Weging'!H36 -> extra belangrijk | E36: 1 - Stel de referentietoestand op ten behoeven van geuroverlast. 2 - Neem ontwerpmaatregelen zodat de geuroverlast gelijk blijft of daalt ten opzichte van de referentietoestand. | F36: - Rapportage met een onderbouwing van de referentie toestand en hoe de evaluatie daarvan in zijn werk gaat. - Rapportage met daarin een evaluatie van de geuroverlast die wordt veroorzaakt naar de omgeving, definitief ontwerp met de ontwerpmaatregelen en een onderbouwing dat de voorgestelde maatregelen in het kader van de gebiedsontwikkeling de negatieve effecten van de ontwikkeling teniet zullen doen. | G36: ='Invulscherm 1 - Weging'!I36 -> 1.8 | J36: 0 | K36: =J36 -> 0 | L36: 0 | M36: 0 | N36: 0 | O36: 0
A37: SEW2 | B37: Lokale economie | K37: =J37 -> 0 | L37: 0 | M37: 0 | O37: 0
A38: 1-SEW2.1 | C38: Economische impactstudie | D38: ='Invulscherm 1 - Weging'!E38 -> verplicht | E38: 1 - Er wordt een economische impact studie uitgevoerd. 2 - Het economisch welzijn verhoogt doordat er investeringen zijn aangetrokken en netto werkgelegenheid is gecreëerd door de aanleg van het bedrijventerrein. | F38: - Rapportage van de economische impact studie. - Rapportage van de economische impact Studie dat aantoont dat Er werkgelegenheid is gecreëerd. | G38: ='Invulscherm 1 - Weging'!F38 -> 1.2 | J38: 0 | K38: =J38 -> 0 | L38: 0 | M38: 0 | N38: 0 | O38: 0
A39: 1-SEW2.2 | C39: Lokale werkgelegenheid | D39: ='Invulscherm 1 - Weging'!E39 -> relevant | E39: 1 - Minstens 5% van de opdrachtsom voor zowel de aanleg van het bedrijventerrein als de bouw van de bedrijven op het terrein wordt aan social return besteed. | F39: - Kostenraming/begroting | G39: ='Invulscherm 1 - Weging'!F39 -> 1.2 | J39: 0 | K39: =J39 -> 0 | L39: 0 | M39: 0 | N39: 0 | O39: 0
A40: SEW3 | B40: Sociale veiligheid | K40: =J40 -> 0 | L40: 0 | M40: 0 | O40: 0
A41: 1-SEW3.1 | C41: Nood- en hulpdiensten | D41: ='Invulscherm 1 - Weging'!E41 -> verplicht | E41: 1 - Overleg met politie, ambulance en brandweer over toegankelijkheid en voorzieningen op het bedrijventerrein. | F41: - Verslag van het overleg | G41: ='Invulscherm 1 - Weging'!F41 -> 1.2 | J41: 0 | K41: =J41 -> 0 | L41: 0 | M41: 0 | N41: 0 | O41: 0
A42: 2-SEW3.1 | D42: ='Invulscherm 1 - Weging'!H41 -> relevant | E42: 2 - Voorzie van een blusbekken met hemelwater voor de brandweer. Het blusbekken is opgenomen in het geïntegreerde watersysteem. De capaciteit van het blusbekken is in overleg met de brandweer bepaald. | F42: - Definitief ontwerp van het watersysteem | G42: ='Invulscherm 1 - Weging'!I41 -> 1.2 | J42: 0 | K42: =J42 -> 0 | L42: 0 | M42: 0 | N42: 0 | O42: 0
A43: 2-SEW3.2 | C43: Sociale controle | D43: ='Invulscherm 1 - Weging'!H42 -> relevant | E43: 1 - Er is onderzoek gedaan naar de optimalisaties die mogelijk zijn op het terrein ter bevordering van sociale veiligheid. 2 - Er is aan 3 van de 5 volgende sociale aspecten voldaan (zie handboek voor deze 5 aspecten) | F43: - Rapportage van onderzoek naar sociale veiligheid - Definitief ontwerp | G43: ='Invulscherm 1 - Weging'!I42 -> 1.2 | J43: 0 | K43: =J43 -> 0 | L43: 0 | M43: 0 | N43: 0 | O43: 0
A44: SEW4 | B44: Voorzieningen | K44: =J44 -> 0 | L44: 0 | M44: 0 | O44: 0
A45: 1-SEW4.1 | B45: Voorzieningen | D45: ='Invulscherm 1 - Weging'!E44 -> verplicht | E45: 1 - Inventarisatie van aanwezige en benodigde voorzieningen op en rondom het bedrijventerrein. 2 - Verdere uitwerking van de inventarisatie (bewijs 1), waarbij minimaal een onderscheid wordt gemaakt tussen ‘wenselijke voorzieningen’ en ‘noodzakelijke voorzieningen’ op en rondom het bedrijventerrein inclusief toelichting. | F45: - Rapportage van de inventarisatie | G45: ='Invulscherm 1 - Weging'!F44 -> 1.2 | J45: 0 | K45: =J45 -> 0 | L45: 0 | M45: 0 | N45: 0 | O45: 0
A46: 2-SEW4.1 | D46: ='Invulscherm 1 - Weging'!H44 -> relevant | E46: 3 - Op basis van de inventarisatie zijn de nodige gezamenlijke voorzieningen voor zowel het bedrijventerrein als de omgeving van het bedrijventerrein opgenomen in het ontwerp. | F46: - Definitief ontwerp | G46: ='Invulscherm 1 - Weging'!I44 -> 1.2 | J46: 0 | K46: =J46 -> 0 | L46: 0 | M46: 0 | N46: 0 | O46: 0
A47: IOR | B47: 3. INFRASTRUCTUUR & OPENBARE RUIMTE (15%) | J47: =SUM(J49:J62) -> 0 | K47: =J47 -> 0 | L47: 0 | M47: 0 | N47: =SUM(N49:N62) -> 0 | O47: 0
A48: IOR1 | B48: ='Invulscherm 1 - Weging'!B47 -> Beleving | K48: =J48 -> 0 | L48: 0 | M48: 0 | O48: 0
A49: 1-IOR1.1 | C49: ='Invulscherm 1 - Weging'!C48 -> Verweving met omgeving | D49: ='Invulscherm 1 - Weging'!E48 -> verplicht | E49: 1 - Het inventariseren en evalueren van de relatie tussen de economische hoofdfunctie en andere functies binnen en rondom de site. 2 - Een onderbouwde visievorming over welke vorm van afstemming tussen de verschillende functies wenselijk is. | F49: - Rapportage van de inventarisatie en de evaluatie - Rapportage over de visie t.a.v. verweving met de omgeving | G49: ='Invulscherm 1 - Weging'!F48 -> 1.153846154 | J49: 0 | K49: =J49 -> 0 | L49: 0 | M49: 0 | N49: =IF(O49=1,J49,0) -> 0 | O49: 0
A50: 2-IOR1.1 | D50: ='Invulscherm 1 - Weging'!H48 -> relevant | E50: 3 - Op basis van de visievorming is in het ontwerp rekening gehouden met de afstemming tussen de verschillende functies binnen en rondom de site. | F50: - Definitief ontwerp | G50: ='Invulscherm 1 - Weging'!I48 -> 1.153846154 | J50: 0 | K50: =J50 -> 0 | L50: 0 | M50: 0 | N50: =IF(O50=1,J50,0) -> 0 | O50: 0
A51: 1-IOR1.2 | C51: ='Invulscherm 1 - Weging'!C49 -> Beeldvorming | D51: ='Invulscherm 1 - Weging'!E49 -> relevant | E51: 1 - Het opstellen van een beeldkwaliteitsplan. | F51: - Een beeldkwaliteitsplan dat het bedrijventerrein op verschillende aspecten van ruimtelijke kwaliteit beoordeeld. | G51: ='Invulscherm 1 - Weging'!F49 -> 1.153846154 | J51: 0 | K51: =J51 -> 0 | L51: 0 | M51: 0 | N51: =IF(O51=1,J51,0) -> 0 | O51: 0
A52: 2-IOR1.2 | D52: ='Invulscherm 1 - Weging'!H49 -> relevant | E52: 2 - In het ontwerp is aandacht besteed aan de beleving op het bedrijventerrein, middels het beeldkwaliteitsplan | F52: - Definitief ontwerp wordt getoetst aan de hand van het beeldkwaliteitsplan. | G52: ='Invulscherm 1 - Weging'!I49 -> 1.153846154 | J52: 0 | K52: =J52 -> 0 | L52: 0 | M52: 0 | N52: =IF(O52=1,J52,0) -> 0 | O52: 0
A53: IOR2 | B53: Infrastructuur & Gebouwen | K53: =J53 -> 0 | L53: 0 | M53: 0 | O53: 0
A54: 1-IOR2.1 | C54: ='Invulscherm 1 - Weging'!C51 -> Bestaande bebouwing | D54: ='Invulscherm 1 - Weging'!E51 -> verplicht | E54: 1 - Bestaande bebouwing wordt geïnventariseerd. 2 - Er wordt in een maatschappelijke kosten-batenanalyse onderzocht of het de voorkeur heeft om bestaande bebouwing te vervangen voor een tijdshorizon van tenminste 50 jaar. 3 - De historische waarde wordt in kaart gebracht van aanwezig industrieel erfgoed en hoe dit bij kan dragen aan de culturele beleving van de site. | F54: - GRB (Geopunt) of opmetingsplan bestaande toestand - Een MKBA die met de netto contante waarde aangeeft of bestaande bebouwing (in eigendom) vervangen zou moeten worden. Hierbij moet de levensduur van de bebouwing gedefinieerd worden. Let op! Dit hoeft geen uitgebreide MKBA te zijn, maar dient wel volgens de richtlijnen uitgevoerd te worden (zie MAN1.3) - Een grafisch of tekstueel overzicht waaruit blijkt welk industrieel erfgoed aanwezig is en een kwalitatieve analyse van hoe dit bijdraagt aan de culturele beleving. | G54: ='Invulscherm 1 - Weging'!F51 -> 1.153846154 | J54: 0 | K54: =J54 -> 0 | L54: 0 | M54: 0 | N54: =IF(O54=1,J54,0) -> 0 | O54: 0
A55: 2-IOR2.1 | C55: ='Invulscherm 1 - Weging'!C51 -> Bestaande bebouwing | D55: ='Invulscherm 1 - Weging'!H51 -> relevant | E55: 4 - In het ontwerp van het bedrijventerrein wordt hergebruik van bestaande bebouwing gemaximaliseerd 5 - De bestaande bebouwing is ten opzichte van nieuwbouw een gelijkwaardig onderdeel van de duurzaamheidsambitie. | F55: - Een definitief ontwerp (DO) waaruit blijkt dat tenminste 50 % van de bestaande bebouwing met een houdbaarheid van 50 jaar of meer hergebruikt wordt. - In de duurzaamheidsambitie wordt de bestaande bebouwing tenminste aan de hand van dezelfde aspecten beschreven als de beoogde nieuwbouw. | G55: ='Invulscherm 1 - Weging'!I51 -> 1.153846154 | J55: 0 | K55: =J55 -> 0 | L55: 0 | M55: 0 | N55: =IF(O55=1,J55,0) -> 0 | O55: 0
A56: 1-IOR2.2 | C56: ='Invulscherm 1 - Weging'!C52 -> Bestaande infrastructuur | D56: ='Invulscherm 1 - Weging'!E52 -> verplicht | E56: 1 - Bestaande infrastructuur wordt geïnventariseerd. 2 - Er is onderzocht in welke mate de bestaande wegeninfrastructuur in staat is om een groeiende vervoersvraag op te vangen. 3 - Er is onderzocht in welke mate ondergrondse infrastructuur ruimte biedt voor wijzigingen van bovengrondse verschuivingen in functionaliteit. 4 - Er wordt in een financiële analyse onderzocht of het de voorkeur heeft om bestaande infrastructuur te vervangen voor een tijdshorizon van tenminste 50 jaar. | F56: - Een KLIP-KLIM of een opmetingsplan bestaande toestand inclusief ondergrondse infrastructuur. - Een berekening die aantoont hoeveel additionele capaciteit de wegeninfrastructuur heeft. - Een korte rapportage waarin wordt getoetst of de aanwezige ondergrondse vrije ruimte en de aanwezige ongebruikte capaciteit van ondergrondse infrastructuur voldoende is voor de beoogde ontwikkelingen. - Een rapportage waarin de levenscycluskosten met behulp van netto constante waarde voor tenminste 10 jaar zijn berekend en afgezet tegen het alternatief om bestaande infrastructuur te vervangen. | G56: ='Invulscherm 1 - Weging'!F52 -> 1.153846154 | J56: 0 | K56: =J56 -> 0 | L56: 0 | M56: 0 | N56: 0 | O56: 0
A57: 2-IOR2.2 | C57: ='Invulscherm 1 - Weging'!C52 -> Bestaande infrastructuur | D57: ='Invulscherm 1 - Weging'!H52 -> relevant | E57: 5 - Het bedrijventerrein wordt zodanig ontworpen dat alleen het gedeelte van bestaande infrastructuur dat niet gedurende 50 jaar na de realisatie functioneel in stand kan blijven wordt vervangen. 6 - In het ontwerp wordt nieuwe infrastructuur geïntegreerd met bestaande infrastructuur. | F57: - Een definitief ontwerp (DO) waaruit blijkt dat tenminste 50 % van de bestaande infrastructuur met een houdbaarheid van 50 jaar of meer hergebruikt wordt. - Een Definitief Ontwerp (DO) waarin is aangegeven hoe de nieuwe infrastructuur fysiek en functioneel aansluit op bestaande infrastructuur. | G57: ='Invulscherm 1 - Weging'!I52 -> 1.153846154 | J57: 0 | K57: =J57 -> 0 | L57: 0 | M57: 0 | N57: =IF(O57=1,J57,0) -> 0 | O57: 0
A58: 2-IOR2.3 | C58: Nieuwbouw | D58: ='Invulscherm 1 - Weging'!H53 -> relevant | E58: 1 - Gebouwen worden ontworpen om een zo laag mogelijke CO2-uitstoot ten gevolge van alle typen energieverbruik in de gebruiksfase te hebben. 2 - In het ontwerp wordt materiaalgebruik aantoonbaar geminimaliseerd. 3 - Er wordt een zorgvuldige afweging gemaakt tussen het hergebruik van materialen, duurzaamheid in de gebruiksfase en kosten. 4 - In het ontwerp van de gebouwen wordt rekening gehouden met multi-use en de mogelijkheid voor andere toekomstige functies van het gebouw. | F58: - Een berekening die in aantoont dat de CO2-uitstoot geminimaliseerd is. - Een berekening die in aantoont dat het materiaalgebruik voor gebouwen niet verminderd kan worden zonder aan functionaliteit in te boeten. - Een overzicht waarin verschillende hergebruik-scenario’s ten aanzien van duurzaamheid (waaronder belasting van het milieu) en kosten worden vergeleken. - Het Definitief Ontwerp (DO) geeft specifiek aan waar verschillende functies vervuld kunnen worden door dezelfde objecten. | G58: ='Invulscherm 1 - Weging'!I53 -> 1.153846154 | J58: 0 | K58: =J58 -> 0 | L58: 0 | M58: 0 | N58: 0 | O58: 0
A59: IOR3 | B59: Openbare ruimte | K59: =J59 -> 0 | L59: 0 | M59: 0 | O59: 0
A60: 2-IOR3.1 | C60: Materiaalgebruik | D60: ='Invulscherm 1 - Weging'!H55 -> extra belangrijk | E60: 1 - In het ontwerp van de openbare ruimte wordt aandacht besteed aan het gebruik van milieuvriendelijk materiaal, waarbij gekozen is voor materialen met de kleinste milieubelasting. 2 - In het ontwerp van de openbare ruimte wordt het hergebruik van materialen gemaximaliseerd. | F60: - Een overzicht met de hoeveelheden gebruikte materiaal waaruit blijkt dat de materialen met de laagste totale milieubelasting zijn gekozen. - Een berekening die in aantoont dat het materiaalgebruik in de openbare ruimte niet verminderd kan worden zonder aan functionaliteit in te boeten. | G60: ='Invulscherm 1 - Weging'!I55 -> 1.730769231 | J60: 0 | K60: =J60 -> 0 | L60: 0 | M60: 0 | N60: =IF(O60=1,J60,0) -> 0 | O60: 0
A61: 2-IOR3.2 | C61: Onderhoud | D61: ='Invulscherm 1 - Weging'!H56 -> verplicht | E61: 1 - Er wordt bij ontwerpkeuzes aantoonbaar rekening gehouden met de gevolgen voor de efficiëntie van de onderhoudsinspanning in de gebruiksfase. 2 - In het onderhoudsplan van de openbare ruimte van het bedrijventerrein wordt beschreven hoe het gebruik van materiaal en materieel geminimaliseerd kan worden. | F61: - In ontwerpnota’s wordt aangeven of en welke consequenties ontwerpkeuzes hebben voor de gebruiksfase in relatie tot benodigde tijd en middelen. - Een onderhoudsplan waarin tenminste is aangegeven hoe onderhoud het meest optimaal kan worden gepleegd, en welke en hoeveel materiaal en materieel er nodig is voor ieder type onderhoud. | G61: ='Invulscherm 1 - Weging'!I56 -> 1.153846154 | J61: 0 | K61: =J61 -> 0 | L61: 0 | M61: 0 | N61: 0 | O61: 0
A62: 2-IOR3.3 | C62: Kabels & Leidingen / Nutsvoorzieningen | D62: ='Invulscherm 1 - Weging'!H57 -> extra belangrijk | E62: 1 - Het ondergrondse tracé en ruimtebeslag van kabels en leidingen wordt geminimaliseerd. 2 - In het ontwerp wordt aantoonbaar rekening gehouden met de impact van kabels en leidingen op andere functionaliteiten van de ondergrondse ruimte en de impact van de andere functionaliteiten op de kabels en leidingen, zoals boomwortelruimte en waterberging. 3 - In het ontwerp worden kabels en leidingen zodanig gesitueerd dat het graaf- en herbestratingswerk dat benodigd is voor beheer en onderhoud geminimaliseerd wordt. 4 - Bij de aanleg van kabels en leidingen worden tracés vrijgehouden voor toekomstige collectieve en duurzame energiesystemen die bij aanleg nog niet mogelijk zijn. | F62: - Op het Definitief Ontwerp (DO) staan de kortst mogelijke tracés weergegeven. Indien het tracé of gedeelten van het tracé niet op de kortst mogelijke lijn liggen, dient in een ontwerpnota te worden toegelicht waarom deze keuze wordt gemaakt. Hierbij afstemming plaatst te vinden met de bevoegde instanties. - Op het Definitief Ontwerp (DO) staat aangegeven dat het tracé van kabels en leidingen niet binnen de de kruin van de boom valt. - Op het Definitief Ontwerp (DO) staat aangegeven dat er voldoende ruimte voorzien voor nutsleidingen en waterberging. - Op het Definitief Ontwerp (DO) staat aangegeven dat het tracé van kabels en leidingen toegankelijk is en minimaal herbestratingswerkzaamheden vergt. - In het Definitief Ontwerp (DO) zijn tracé reserveringen aangegeven voor toekomstige energiesystemen. | G62: ='Invulscherm 1 - Weging'!I57 -> 1.730769231 | J62: 0 | K62: =J62 -> 0 | L62: 0 | M62: 0 | N62: 0 | O62: 0
A63: BRE | B63: 4. BRONNEN & ENERGIE (15%) | J63: =SUM(J65:J78) -> 0 | K63: =J63 -> 0 | L63: 0 | M63: 0 | N63: =SUM(N69:N78) -> 0 | O63: 0
A64: BRE1 | B64: Energie | K64: =J64 -> 0 | L64: 0 | M64: 0 | O64: 0
A65: 1-BRE1.1 | C65: Rationeel Energie Gebruik (REG) | D65: ='Invulscherm 1 - Weging'!E61 -> extra belangrijk | E65: 1 - Het inventariseren van de mogelijkheden voor Rationeel Energie Gebruik (REG). | F65: - Een document waaruit blijkt dat er Een inventarisatie van REG-maatregelen heeft plaatsgevonden. | G65: ='Invulscherm 1 - Weging'!F61 -> 1.607142857 | J65: =IF(O65=1,G65,0) -> 0 | K65: 0 | L65: 0 | M65: 0 | N65: =IF(O65=1,J65,0) -> 0 | O65: 0
A66: 2-BRE1.1 | D66: ='Invulscherm 1 - Weging'!H61 -> extra belangrijk | E66: 2 - Er wordt een basecase opgesteld voor het bedrijventerrein op basis van traditioneel energieverbruik. 3 - Op basis van de basecase worden REG-maatregelen opgesteld om 40% reductie van het energieverbruik te realiseren. 4 - Deze REG-maatregelen worden opgenomen in het ontwerp voor het bedrijventerrein. | F66: - rapportage met de basecase - rapportage met REG-maatregelen en Een berekening van de reductie - definitief ontwerp met daarin de REG-maatregelen | G66: ='Invulscherm 1 - Weging'!I61 -> 1.607142857 | J66: 0 | K66: 0 | L66: 0 | M66: 0 | N66: 0 | O66: 0
A67: 1-BRE1.2 | C67: Restwarmte en -koude | D67: ='Invulscherm 1 - Weging'!E62 -> extra belangrijk | E67: 1 - Het inventariseren van de mogelijkheden om restwarmte en -koude binnen en buiten het plangebied te benutten. | F67: - rapportage waaruit blijkt dat de inventarisatie heeft plaatsgevonden | G67: ='Invulscherm 1 - Weging'!F62 -> 1.607142857 | J67: 0 | K67: 0 | L67: 0 | M67: 0 | N67: 0 | O67: 0
A68: 2-BRE1.2 | D68: ='Invulscherm 1 - Weging'!H62 -> relevant | E68: 2 - De restwarmte en -koude wordt binnen of buiten de site benut. Er kan bijvoorbeeld restwarmte uit koelwater worden gebruikt. | F68: - definitieve kabels- en leidingen tekening met daarin het restwarmte- en koude netwerk | G68: ='Invulscherm 1 - Weging'!I62 -> 1.071428571 | J68: 0 | K68: 0 | L68: 0 | M68: 0 | N68: 0 | O68: 0
A69: 1-BRE1.3 | C69: Duurzame energie | D69: ='Invulscherm 1 - Weging'!E63 -> verplicht | E69: 1 - Het inventariseren van de mogelijkheden om duurzame energie binnen of buiten het plangebied op te wekken. | F69: - Een document waaruit blijkt dat een inventarisatie van duurzame energie is uitgevoerd. Hierbij kan gebruik gemaakt worden van de energiekansenkaarten die door diverse instanties (bijvoorbeeld provincie Vlaams-Brabant en stad Antwerpen) zijn gemaakt. | G69: ='Invulscherm 1 - Weging'!F63 -> 1.071428571 | J69: 0 | K69: =J69 -> 0 | L69: 0 | M69: 0 | N69: =IF(O69=1,J69,0) -> 0 | O69: 0
A70: 2-BRE1.3 | D70: ='Invulscherm 1 - Weging'!H63 -> relevant | E70: Minimaal het volgende percentage van de energievraag van het gebied wordt ingevuld door het opwekken van duurzame energie binnen of buiten het plangebied. Stap 1 = 20% Stap 2 = 40% Stap 3 = 60% Stap 4 = 80% Stap 5 = 100% Stap 6 = Meer dan 100% (zie toelichting handboek) | F70: - Een document met Een berekening waarin dit wordt aangetoond | G70: ='Invulscherm 1 - Weging'!I63 -> 1.071428571 | H70: Bewijsvoering: 1 = 1 stap 2 = 2 stap 3 = 3 stap 4 = 4 stap 5 = 5 stap 6 = 6 stap | J70: =IF(O70=0,0,IF(O70=1,G70*(1/6),IF(O70=2,G70*(2/6),IF(O70=3,G70*(3/6),IF(O70=4,G70*(4/6),IF(O70=5,G70*(5/6),IF(O70=6,G70,0))))))) -> 0 | K70: =J70 -> 0 | L70: 0 | M70: 0 | N70: =IF(O70=1,J70*0.3,IF(O70=2,J70*0.66,IF(O70=3,J70,0))) -> 0 | O70: 0
A71: 1-BRE1.4 | C71: ='Invulscherm 1 - Weging'!B64 -> SMART-Grid | D71: ='Invulscherm 1 - Weging'!E64 -> verplicht | E71: 1 - Het inventariseren van de mogelijkheden om een SMART-grid toe te passen. | F71: - rapportage waaruit blijkt dat de inventarisatie heeft plaatsgevonden. | G71: ='Invulscherm 1 - Weging'!F64 -> 1.071428571 | J71: 0 | K71: =J71 -> 0 | L71: 0 | M71: 0 | N71: =IF(O71=1,J71,0) -> 0 | O71: 0
A72: 2-BRE1.4 | D72: ='Invulscherm 1 - Weging'!H64 -> relevant | E72: 2 - In het ontwerp is een SMART-grid voorzien. | F72: - definitief ontwerp met daarin de SMART-grid | G72: ='Invulscherm 1 - Weging'!I64 -> 1.071428571 | J72: 0 | K72: =J72 -> 0 | L72: 0 | M72: 0 | N72: 0 | O72: 0
A73: BRE2 | B73: Afval & Materiaalbeheer | K73: =J73 -> 0 | L73: 0 | M73: 0 | O73: 0
A74: 1-BRE2.1 | B74: Afval & Materiaalbeheer | D74: ='Invulscherm 1 - Weging'!E66 -> extra belangrijk | E74: 1 - Het inventariseren van inkomende en uitgaande materialen. 2 - Het inventariseren van mogelijkheden om materiaal- en afvalstromen samen te voegen of uit te wisselen tussen bedrijven (industriële symbiose). | F74: - rapportage met de inventarisatie van inkomende en uitgaande materialen. - rapportage met de inventarisatie van de mogelijkheden om materiaal- en afvalstromen samen te voegen of uit te wisselen tussen bedrijven. | G74: ='Invulscherm 1 - Weging'!F66 -> 1.607142857 | J74: =IF(O74=1,G74,0) -> 0 | K74: =J74 -> 0 | L74: 0 | M74: 0 | N74: 0 | O74: 0
A75: 2-BRE2.1 | D75: ='Invulscherm 1 - Weging'!H66 -> relevant | E75: 3 - Ontwerp een materiaal- en afvalsysteem waarbij het hergebruik en de efficiëntie van de stromen van materialen en afval centraal staat. | F75: - definitief ontwerp met daarin het materiaal- en afvalsysteem. | G75: ='Invulscherm 1 - Weging'!I66 -> 1.071428571 | J75: 0 | K75: =J75 -> 0 | L75: 0 | M75: 0 | N75: 0 | O75: 0
A76: BRE3 | B76: Water | K76: =J76 -> 0 | L76: 0 | M76: 0 | O76: 0
A77: 1-BRE3.1 | C77: ='Invulscherm 1 - Weging'!B68 -> Water (water als bron) | D77: ='Invulscherm 1 - Weging'!E68 -> verplicht | E77: 1 - Voer een wateraudit uit bij de ondernemingen op het bedrijventerrein en stem de verschillende waterstromen op elkaar af. | F77: - rapportage van de wateraudit | G77: ='Invulscherm 1 - Weging'!F68 -> 1.071428571 | J77: 0 | K77: =J77 -> 0 | L77: 0 | M77: 0 | N77: 0 | O77: 0
A78: 2-BRE3.1 | D78: ='Invulscherm 1 - Weging'!H68 -> relevant | E78: 2 - Productiegerichte terreinen: Het gebied maakt voor minimaal 10% gebruik van de toepassing van gebiedseigen water, waardoor er een vermindering is van de vraag van water buiten het systeem. Alle andere typen terreinen: Het gebied maakt voor minimaal 30% gebruik van de toepassing van gebiedseigen water, waardoor er een vermindering is van de vraag van water buiten het systeem. 3 - Bij het gebruik van gebiedseigen water moet de natuurlijke waterbalans in stand worden gehouden en mag er geen verslechtering van de waterkwaliteit plaatsvinden. | F78: - berekening van het ontwerp waaruit blijkt dat 10% of 30% van waterverbruik gebiedseigen water is. - ontwerp van het watersysteem met een berekening van de waterbalans en een analyse op de waterkwaliteit waaruit blijkt dat het natuurlijke watersysteem van het bedrijventerrein in stand wordt gehouden. | G78: ='Invulscherm 1 - Weging'!I68 -> 1.071428571 | J78: 0 | K78: =J78 -> 0 | L78: 0 | M78: 0 | N78: 0 | O78: 0
A79: EDL | B79: 5. ECOLOGIE & DUURZAAM LANDGEBRUIK (20%) | J79: =SUM(J81:J102) -> 0 | K79: =J79 -> 0 | L79: 0 | M79: 0 | N79: =SUM(N81:N102) -> 0 | O79: 0
A80: EDL1 | B80: Karakter | K80: =J80 -> 0 | L80: 0 | M80: 0 | O80: 0
A81: 1-EDL1.1 | B81: Karakter van het landschap | D81: ='Invulscherm 1 - Weging'!E72 -> verplicht | E81: 1 - Er wordt een volledige inmeting en inventarisatie van de eigenschappen van het terrein uitgevoerd om inzicht te krijgen over het karakter van het gebied en de relatie van het gebied tot zijn omgeving. | F81: - rapportage of tekeningen van de inmeting en inventarisatie (hierbij kan de landschapsatlas geraadpleegd worden) | G81: ='Invulscherm 1 - Weging'!F72 -> 1.052631579 | J81: 0 | K81: =J81 -> 0 | L81: 0 | M81: 0 | N81: =IF(O81=1,J81,0) -> 0 | O81: 0
A82: 2-EDL1.2 | D82: ='Invulscherm 1 - Weging'!H72 -> relevant | E82: 2 - De opmeting en inventarisatie van het karakter van het gebied vormen de basis van het ontwerp van het bedrijventerrein waarbij waardevolle landschapselementen worden geïntegreerd in het landschapsontwerp, zonder de functionaliteit van het bedrijventerrein te hypothekeren. | F82: - definitief ontwerp | G82: ='Invulscherm 1 - Weging'!I72 -> 1.052631579 | J82: 0 | K82: 0 | L82: 0 | M82: 0 | N82: =IF(O82=1,J82,0) -> 0 | O82: 0
A83: EDL2 | B83: Landgebruik | K83: =J83 -> 0 | L83: 0 | M83: 0 | O83: 0
A84: 1-EDL2.1 | C84: Positionering & landgebruik | D84: ='Invulscherm 1 - Weging'!E74 -> relevant | E84: 1 - Het bedrijventerrein is gesitueerd op meer dan 50% braakliggend en/of bebouwd terrein (brownfield). 2 - Er is een zonnestudie uitgevoerd. Daarbij is een optimale positionering van gebouwen ten opzichte van de zonneoriëntatie in kaart gebracht. | F84: - kaart waaruit dit blijkt - rapportage van de zonnestudie | G84: ='Invulscherm 1 - Weging'!F74 -> 1.052631579 | J84: 0 | K84: =J84 -> 0 | L84: 0 | M84: 0 | N84: =IF(O84=1,J84,0) -> 0 | O84: 0
A85: 2-EDL2.1 | D85: ='Invulscherm 1 - Weging'!H74 -> relevant | E85: 3 - Stel een berekening op voor de minimaal benodigde ruimte om bedrijfsvoering uit te voeren. 4 - In het ontwerp wordt maximaal 20% afgeweken van de minimaal benodigde ruimte. 5 - Bestaande (en nieuwe) waterlopen zijn de basis voor de ontwikkeling van het groen-blauwe netwerk op schaal van het inrichtingsplan. Het groen-blauwe netwerk wordt daarnaast optimaal geënt op het ontworpen wegenpatroon. | F85: - rapportage met de berekening - definitief ontwerp - inrichtingsplan of definitief ontwerp waarbij bestaande waterlopen maximaal behouden zijn gebleven. | G85: ='Invulscherm 1 - Weging'!I74 -> 1.052631579 | J85: 0 | K85: =J85 -> 0 | L85: 0 | M85: 0 | N85: 0 | O85: 0
A86: 1-EDL2.2 | C86: Flexibiliteit in tijdelijke en definitieve inrichting | D86: ='Invulscherm 1 - Weging'!E75 -> verplicht | E86: 1 - Onderzoek de mogelijkheden van tijdelijke inrichting en tijdelijk gebruik voor percelen en ruimtes die langer dan 6 maanden ongebruikt blijven. | F86: - rapportage van onderzoek naar tijdelijke inrichting en gebruik. | G86: ='Invulscherm 1 - Weging'!F75 -> 1.052631579 | J86: 0 | K86: =J86 -> 0 | L86: 0 | M86: 0 | N86: 0 | O86: 0
A87: 2-EDL2.2 | D87: ='Invulscherm 1 - Weging'!H75 -> relevant | E87: 2 - Het ontwerp maakt toekomstige verschuivingen en veranderingen van functionaliteiten van de openbare ruimte mogelijk in de gebruiksfase. 3 - Er wordt in het ontwerp extra ruimte gecreëerd voor toekomstige bebouwing. 4 - Er is voldoende flexibiliteit in het inrichtingsplan zodat kan worden ingespeeld op een veranderende context tijdens de realisatie van het bedrijventerrein. | F87: - Het Definitief Ontwerp (DO) geeft specifiek aan waar verschillende functies vervuld kunnen worden door dezelfde objecten in de openbare ruimte. - Het Definitief Ontwerp (DO) geeft specifiek aan welke ruimtes initieel nog geen functie vervuld. - Inrichtingsplan | G87: ='Invulscherm 1 - Weging'!I75 -> 1.052631579 | J87: 0 | K87: =J87 -> 0 | L87: 0 | M87: 0 | N87: 0 | O87: 0
A88: 1-EDL2.3 | C88: ='Invulscherm 1 - Weging'!C76 -> Hittestress | D88: ='Invulscherm 1 - Weging'!E76 -> relevant | E88: 1 - Er wordt een studie uitgevoerd waarbij wordt aangetoond of het terrein, inclusief omliggend gebied, gevoelig is voor hittestress (Urban Island Heat effect) | F88: - Rapportage met een onderzoek naar de gevoeligheid van hittestress op het bedrijventerrein | G88: ='Invulscherm 1 - Weging'!F76 -> 1.052631579 | J88: 0 | K88: =J88 -> 0 | L88: 0 | M88: 0 | N88: 0 | O88: 0
A89: 2-EDL2.3 | D89: ='Invulscherm 1 - Weging'!H76 -> relevant | E89: 2 - Indien uit de studie is gebleken dat het gebied gevoelig is voor hittestress, dan dienen er maatregelen te worden genomen om het effect te reduceren. | F89: - Ontwerp met daarin maatregelen om hittestress tegen te gaan en een onderbouwing van de maatregelen | G89: ='Invulscherm 1 - Weging'!I76 -> 1.052631579 | J89: 0 | K89: =J89 -> 0 | L89: 0 | M89: 0 | N89: 0 | O89: 0
A90: 2-EDL2.4 | B90: Bouwrijp maken (grondbalans / peilhoogten) | D90: ='Invulscherm 1 - Weging'!H77 -> relevant | E90: 1 - Maken van een gesloten grondbalans (bijvoorbeeld het overschot van ter plaatse gesaneerde grond gebruiken). 2 - Hou in het ontwerp rekening met het zo min mogelijk onherstelbaar verstoren van de bodem bij het bouwrijp maken en bij ondergrondse interventies (funderingspalen, kelders, pijpen voor WKO e.d.). 3 - Hou in het ontwerp rekening met het zo min mogelijk verstoren van de grondwaterstroming. 4 - Volgen van het gemeentelijk erosiebestrijdingplan (indien aanwezig). | F90: - Rapportage van grondbalans - Profielen van de ondergrond van de toekomstige situatie - Rapportage van de berekening van de effecten op grondwaterstroming - Definitief ontwerp | G90: ='Invulscherm 1 - Weging'!I77 -> 1.052631579 | J90: 0 | K90: =J90 -> 0 | L90: 0 | M90: 0 | N90: =IF(O90=1,J90,0) -> 0 | O90: 0
A91: 1-EDL2.5 | B91: Bodemverontreiniging | D91: ='Invulscherm 1 - Weging'!E78 -> relevant | E91: 1 - Realiseren van het bedrijventerrein op een ernstig verontreinigde bodem. 2 - In de voorbereidingsfase wordt gebruik gemaakt van de meest duurzame combinatie ‘ontwikkelvariant’ en ‘saneringsvariant’. Daarvoor wordt gebruik gemaakt van de Duurzaamheidsmeter Herontwikkeling Verontreinigde Sites (DZM-HVS) ontwikkeld door OVAM . 3 - In geval van verontreinigde bodem, wordt de afweging tussen wel of niet saneren en de ingevulde duurzaamheidsmeter van OVAM (zie criterium 2) gecontroleerd door een erkend bodem expert. | F91: - Planstudie rapportage - Milieukundig onderzoek - Rapportage van de tool DZM-HVS waarbij minimaal de voorbereidingsfase is ingevuld. - Notitie van erkend bodemsaneringsdeskundige waarbij deze aangeeft het benodigde bodemonderzoek, de keuze van wel of niet saneren en de ingevulde tool DZM-HVS te hebben bestudeerd. Tevens geeft deze aan dat de gemaakte keuzes vanuit een duurzaamheidoogpunt verantwoord zijn. | G91: ='Invulscherm 1 - Weging'!F78 -> 1.052631579 | J91: 0 | K91: =J91 -> 0 | L91: 0 | M91: 0 | N91: =IF(O91=1,J91,0) -> 0 | O91: 0
A92: 2-EDL2.5 | D92: ='Invulscherm 1 - Weging'!H78 -> relevant | E92: 4 - Voer de bodemsanering uit middels de best beschikbare technieken. In ontwerpfase wordt gebruik gemaakt van de meest duurzame combinatie ‘ontwikkelvariant’ en ‘saneringsvariant’. Daarvoor wordt gebruik gemaakt van de Duurzaamheidsmeter Herontwikkeling Verontreinigde Sites (DZM-HVS) ontwikkeld door OVAM. | F92: - Uitvoeringsontwerp van de sanering - Rapportage van de tool DZM-HVS waarbij minimaal de ontwerpfase is ingevuld. Daarbij is een duidelijke onderbouwing waarom keuzes zijn gemaakt. Indien wordt afgeweken van de meest duurzame combinatie (ranking 1) dan dient onderbouwd te worden waarom. | G92: ='Invulscherm 1 - Weging'!I78 -> 1.052631579 | J92: 0 | K92: =J92 -> 0 | L92: 0 | M92: 0 | N92: =IF(O92=1,J92,0) -> 0 | O92: 0
A93: EDL3 | B93: Ecologie & biodiversiteit | K93: =J93 -> 0 | L93: 0 | M93: 0 | O93: 0
A94: 1-EDL3.1 | C94: Ecologie & biodiversiteit | D94: ='Invulscherm 1 - Weging'!E80 -> verplicht | E94: 1 - Inventariseer en evalueer de ecologische waarden en functies en bepaal de effecten van de voorgenomen ontwikkeling op deze ecologische waarden. | F94: - Er is een biodiversiteitscan uitgevoerd. - Er is een natuurrapport gemaakt door een ecoloog. | G94: ='Invulscherm 1 - Weging'!F80 -> 1.052631579 | J94: 0 | K94: =J94 -> 0 | L94: 0 | M94: 0 | N94: 0 | O94: 0
A95: 2-EDL3.1 | D95: ='Invulscherm 1 - Weging'!H80 -> relevant | E95: 2 - Behoudt zoveel mogelijk van de ecologische waarden en functies in het gebied en voorkom, mitigeer of compenseer negatieve effecten 3 - Optimaliseer binnen het bedrijventerrein de omstandigheden voor ecologische waarden. 4 - Versterk bijzonder of zeldzame ecologische waarden op regionale schaal. | F95: - Een natuurrapport (zie introductie) met daarin Een plan om de ecologische waarden te behouden. - definitief ecologisch ontwerp waarin is aangetoond dat de ecologische omstandigheden worden geoptimaliseerd - definitief ecologisch ontwerp waarin is aangetoond dat bijzondere of zeldzame ecologische waarden worden versterkt | G95: ='Invulscherm 1 - Weging'!I80 -> 1.052631579 | J95: 0 | K95: =J95 -> 0 | L95: 0 | M95: 0 | N95: 0 | O95: 0
A96: 1-EDL3.2 | C96: Abiotische structuren | D96: ='Invulscherm 1 - Weging'!E81 -> verplicht | E96: 1 - Inventariseer en evalueer de abiotische structuren. | F96: - Inventarisatie en evaluatie van abiotische structuren door een milieudeskundige | G96: ='Invulscherm 1 - Weging'!F81 -> 1.052631579 | J96: 0 | K96: =J96 -> 0 | L96: 0 | M96: 0 | N96: 0 | O96: 0
A97: 2-EDL3.2 | D97: ='Invulscherm 1 - Weging'!H81 -> relevant | E97: 2 - Behoudt de abiotische structuren of onderbouw de keuze om de abiotische structuren niet te behouden en compenseer de ontstane schade. 3 - Inzetten van abiotische structuren om de kwaliteit van de gebiedsontwikkeling te vergroten. | F97: - rapportage met daarin Een plan om de abiotische structuren te behouden - definitief ontwerp waarin onderbouwd is hoe de aanwezige abiotische structuren worden ingezet om de kwaliteit van het gebied te versterken | G97: ='Invulscherm 1 - Weging'!I81 -> 1.052631579 | J97: 0 | K97: =J97 -> 0 | L97: 0 | M97: 0 | N97: 0 | O97: 0
A98: 2-EDL3.3 | C98: Vergroening | D98: ='Invulscherm 1 - Weging'!H82 -> verplicht | E98: 1 - Minimaal 50% van het openbaar domein van het bedrijventerrein is onderdeel van een groter overkoepelende blauw-groene zone. 2 - Koppel het groen aan laagdynamische ontwikkelingen zoals fiets- en voetpaden en lunchlocaties. 3 - Ontwerp het groen volgens de principes van het Harmonisch Park- en Groenbeheer. | F98: - Overzichtstekening van de bedrijventerrein met daarop de blauw-groene zone - Overzichtstekening van de bedrijventerrein met daarop de blauw-groene zone - definitief ontwerp | G98: ='Invulscherm 1 - Weging'!I82 -> 1.052631579 | J98: 0 | K98: =J98 -> 0 | L98: 0 | M98: 0 | N98: 0 | O98: 0
A99: EDL4 | B99: Water | K99: 0 | L99: 0 | M99: 0 | O99: 0
A100: 1-EDL4.1 | C100: ='Invulscherm 1 - Weging'!C84 -> Hoogwaterbescherming & klimaatadaptatie | D100: ='Invulscherm 1 - Weging'!E84 -> verplicht | E100: 1 - Er is een hemelwatersysteemkaart opgesteld voor het gebied en doorgerekend op een bui van T = 50. 2 - Er is een hemelwaterplan opgesteld voor het bedrijventerrein en overstromingsgevoelige gebieden op het bedrijventerrein zijn inzichtelijk gemaakt aan de hand van een watertoets. | F100: - Hemelwaterplan - Hemelwaterplan, overstromingskaart en watertoets | G100: ='Invulscherm 1 - Weging'!F84 -> 1.052631579 | J100: =IF(O100=1,G100,0) -> 0 | K100: 0 | L100: 0 | M100: 0 | N100: =IF(O100=1,J100,0) -> 0 | O100: 0
A101: 2-EDL4.1 | D101: ='Invulscherm 1 - Weging'!H84 -> relevant | E101: 3 - Compenseer alle verhardingen in het openbaar domein en 50% van de maximaal realiseerbare oppervlakte van private daken en verhardingen in het bijkomend grondbeslag met klimaatadaptieve maatregelen in het openbaar domein. 4 - Er is genoeg waterbergend vermogen in het gebied gecreëerd zodat er geen hemelwateroverlast optreedt bij een T = 50 bui. | F101: - Definitief ontwerp - Rapportage met simulatie van een T=50 bui op het definitief ontwerp | G101: ='Invulscherm 1 - Weging'!I84 -> 1.052631579 | J101: =IF(O101=1,G101,0) -> 0 | K101: 0 | L101: 0 | M101: 0 | N101: =IF(O101=1,J101,0) -> 0 | O101: 0
A102: 2-EDL4.2 | C102: Waterkwaliteit | D102: ='Invulscherm 1 - Weging'!H85 -> relevant | E102: 1 - De natuurlijke waterbalans wordt in stand gehouden zonder verslechtering van de waterkwaliteit van het oppervlaktewater. | F102: - Rapportage met het onderzoek waaruit blijkt dat er geen verslechtering van de waterkwaliteit plaatsvindt welke is getoetst welke is getoetst aan de lozingsnormen zoals bepaald in Vlarem II. | G102: ='Invulscherm 1 - Weging'!I85 -> 1.052631579 | J102: 0 | K102: =J102 -> 0 | L102: 0 | M102: 0 | N102: =IF(O102=1,J102,0) -> 0 | O102: 0
A103: TRA | B103: 6. TRANSPORT (15%) | J103: =SUM(J105:J127) -> 0 | K103: =J103 -> 0 | L103: 0 | M103: 0 | N103: =SUM(N104:N127) -> 0 | O103: 0
A104: TRA1 | B104: Non-gemotoriseerd verkeer | K104: =J104 -> 0 | L104: 0 | M104: 0 | O104: 0
A105: 1-TRA1.1 | C105: Inpassing voor fiets- en voetgangersverkeer | D105: ='Invulscherm 1 - Weging'!E89 -> verplicht | E105: 1 - Er wordt geïnventariseerd hoe er op het bedrijventerrein maximaal rekening kan worden gehouden met infrastructuur voor fietsers en voetgangers. | F105: - Ruimtelijke analyse van optimale inpassing voor mobiliteit, met daarin benoemd de kansen voor fiets- en voetgangersverkeer. | G105: ='Invulscherm 1 - Weging'!F89 -> 0.7317073171 | J105: 0 | K105: =J105 -> 0 | L105: 0 | M105: 0 | N105: =IF(O105=1,J105,0) -> 0 | O105: 0
A106: 2-TRA1.1 | D106: ='Invulscherm 1 - Weging'!H89 -> relevant | E106: 2 - In het ontwerp wordt er aantoonbaar extra ruimte gecreëerd voor een bereikbare en integrale fiets- en voetgangersinfrastructuur. | F106: - Extra ruimte (meer dan de ontwerpnorm) gemaakt voor fiets- en voetgangersverkeer in het ontwerp. | G106: ='Invulscherm 1 - Weging'!I89 -> 0.7317073171 | J106: 0 | K106: =J106 -> 0 | L106: 0 | M106: 0 | N106: =IF(O106=1,J106,0) -> 0 | O106: 0
A107: 1-TRA1.2 | C107: Stimuleren fiets- en voetgangersverkeer | D107: ='Invulscherm 1 - Weging'!E90 -> verplicht | E107: 1 - Er wordt geïnventariseerd hoe het gebruik van fiets- en voetgangersinfrastructuur zo aantrekkelijk mogelijk kan worden gemaakt (zie transport 1.2) | F107: - Als toevoeging van de ruimtelijke analyse (TRA 1.1) wordt er een plan opgesteld hoe het gebruik van fiets- en voetgangersinfrastructuur zo aantrekkelijk mogelijk kan worden gemaakt (zie transport 1.2). Daarbij worden minimaal de in de introductie besproken voorbeeldmaatregelen overwogen. | G107: ='Invulscherm 1 - Weging'!F90 -> 0.7317073171 | J107: 0 | K107: =J107 -> 0 | L107: 0 | M107: 0 | N107: =IF(O107=1,J107,0) -> 0 | O107: 0
A108: 2-TRA1.2 | D108: ='Invulscherm 1 - Weging'!H90 -> relevant | E108: 2 - De fiets- en voetgangersroutes worden integraal met de omgeving ontworpen, waarbij maatregelen worden geïmplementeerd om het traject zo aantrekkelijk mogelijk te maken. | F108: - De maatregelen als overwogen in criterium 1-TRA1.2 worden aantoonbaar toegepast in het ontwerp. | G108: ='Invulscherm 1 - Weging'!I90 -> 0.7317073171 | J108: 0 | K108: =J108 -> 0 | L108: 0 | M108: 0 | N108: =IF(O108=1,J108,0) -> 0 | O108: 0
A109: TRA2 | B109: Openbaar vervoer | K109: =J109 -> 0
A110: 1-TRA2.1 | C110: Stimuleren van openbaar & collectief vervoer | D110: ='Invulscherm 1 - Weging'!E92 -> relevant | E110: 1 - De mogelijkheden om het gebruik van openbaar vervoer en collectief vervoer te stimuleren zijn in kaart gebracht in een SWOT-analyse. 2 - Hierbij wordt in ieder geval rekening gehouden met de fysieke ontwerpkansen nu en in de toekomst (positionering van haltes en routes) en overige stimulerende middelen. Er is hierover in een vroege fase fysiek contact geweest met de openbaar vervoer bedrijven. | F110: - SWOT-analyse waarbij minimaal rekening is gehouden met verschillende typen openbaar en collectief vervoer. Daarbij zijn minimaal overwogen: collectief vervoer, taxi’s, ov-fiets en voor- en natransport (van en naar transportmiddel). - SWOT-analyse. | G110: ='Invulscherm 1 - Weging'!F92 -> 0.7317073171 | J110: 0 | K110: =J110 -> 0 | L110: 0 | M110: 0 | N110: =IF(O110=1,J110,0) -> 0 | O110: 0
A111: 2-TRA2.1 | D111: ='Invulscherm 1 - Weging'!H92 -> relevant | E111: 3 - Het gebruik van openbaar vervoer wordt gestimuleerd door de geïdentificeerde kansen maximaal te benutten in het ontwerp. 4 - Indien er geen openbaar vervoer mogelijkheden zijn (resultaat SWOT) dan wordt er aantoonbaar voor een ‘duurzaam’ alternatief gekozen: taxi, ov-fiets, etc. | F111: - er is Op basis van de SWOT Een vervoersplan met maatregelen uitgevoerd. Daarbij is aangeven welke vervoerstype voor welke vervoersstroom het beste kan worden ingevuld. Tevens is aangegeven welke maatregelen uit het vervoersplan zijn verwerkt in het ontwerp. - Indien er geen openbaar vervoer is toegepast. dan is in het vervoersplan onderbouwd aangegeven welk duurzaam alternatief is gekozen en waarom. | G111: ='Invulscherm 1 - Weging'!I92 -> 0.7317073171 | J111: 0 | K111: =J111 -> 0 | L111: 0 | M111: 0 | N111: 0 | O111: 0
A112: TRA3 | B112: Autoverkeer | K112: =J112 -> 0 | L112: 0 | M112: 0 | O112: 0
A113: 1-TRA3.1 | C113: Inpassing autoverkeer | D113: ='Invulscherm 1 - Weging'!E94 -> verplicht | E113: 1 - Er wordt geïnventariseerd hoe er op het bedrijventerrein maximaal rekening kan worden gehouden met infrastructuur voor autoverkeer. | F113: - Ruimtelijke analyse van optimale inpassing voor mobiliteit, met daarin benoemd de kansen voor autoverkeer (zie ook TRA1.1). | G113: ='Invulscherm 1 - Weging'!F94 -> 0.7317073171 | J113: =IF(O113=1,G113,0) -> 0 | K113: 0 | L113: 0 | M113: 0 | N113: =IF(O113=1,J113,0) -> 0 | O113: 0
A114: 2-TRA3.1 | D114: ='Invulscherm 1 - Weging'!H94 -> relevant | E114: 2 - In het ontwerp wordt er aantoonbaar rekening gehouden met de in de introductie genoemde ontwerpaspecten voor autovervoer. | F114: - Er wordt in het ontwerp aantoonbaar rekening gehouden met doorstroming, hoeveelheid asfalt en multifunctioneel ruimtegebruik. | G114: ='Invulscherm 1 - Weging'!I94 -> 0.7317073171 | J114: 0 | K114: 0 | L114: 0 | M114: 0 | N114: 0 | O114: 0
A115: 1-TRA3.2 | C115: Het faciliteren van auto's op alternatieve energiebronnen | D115: ='Invulscherm 1 - Weging'!E95 -> verplicht | E115: 1 - Er wordt een rapportage opgesteld met maatregelen die autogebruik kunnen ontmoedigen. Hierbij wordt minimaal rekening gehouden met de voorbeelden als beschreven in de introductie. | F115: - rapportage, dit kan eventueel worden geïntegreerd in de SWOT analyse en vervoersplan van TRA2.1. | G115: ='Invulscherm 1 - Weging'!F95 -> 0.7317073171 | J115: 0 | K115: =J115 -> 0 | L115: 0 | M115: 0 | N115: 0 | O115: 0
A116: 2-TRA3.2 | D116: ='Invulscherm 1 - Weging'!H95 -> relevant | E116: 2 - Maatregelen om autogebruik te ontmoedigen worden geïmplementeerd in het ontwerp. | F116: - Aantoonbare ontwerpmaatregelen (zowel ‘push’ als ‘pull’) op basis van de kansen uit het rapport 1-TRA3.3. | G116: ='Invulscherm 1 - Weging'!I95 -> 0.7317073171 | J116: 0 | K116: =J116 -> 0 | L116: 0 | M116: 0 | N116: 0 | O116: 0
A117: 1-TRA3.3 | C117: Het reduceren van autogebruik | D117: ='Invulscherm 1 - Weging'!E96 -> verplicht | E117: 1 - Er wordt onderzocht in welke mate er voor het bedrijventerrein gebruik van emissieloze voertuigen gemaakt kan worden de komende 15 jaar. | F117: - Onderzoek naar alternatieve toepassingen die geschikt zouden kunnen zijn op en voor het bedrijventerrein (nu en in de komende 15 jaar). Daarbij wordt minimaal rekening gehouden met de voorbeelden als beschreven in de inleiding. | G117: ='Invulscherm 1 - Weging'!F96 -> 0.7317073171 | J117: 0 | K117: =J117 -> 0 | L117: 0 | M117: 0 | N117: 0 | O117: 0
A118: 2-TRA3.3 | D118: ='Invulscherm 1 - Weging'!H96 -> relevant | E118: 2 - Er worden voldoende voorzieningen voor emissieloze voertuigen opgenomen. Daarbij wordt rekening gehouden met flexibiliteit om in de toekomst nieuwe technologieën niet uit te sluiten. | F118: - Aantoonbare voorzieningen in het ontwerp, op basis van het onderzoek in 1-TRA3.3. | G118: ='Invulscherm 1 - Weging'!I96 -> 0.7317073171 | J118: 0 | K118: =J118 -> 0 | L118: 0 | M118: 0 | N118: 0 | O118: 0
A119: TRA4 | B119: Vrachtverkeer | K119: =J119 -> 0
A120: 1-TRA4.1 | C120: ='Invulscherm 1 - Weging'!B98 -> Inpassing en doorstroming van vrachtverkeer | D120: ='Invulscherm 1 - Weging'!E98 -> extra belangrijk | E120: 1 - Er wordt geïnventariseerd hoe er op het bedrijventerrein maximaal rekening kan worden gehouden met de infrastructuur voor vrachtverkeer. 2 - De noodzaak voor vrachtwagens om toegang te hebben tot specifieke bestemmingen op het bedrijventerreinen is aangegeven op een plattegrond of overzichtskaart. | F120: - Ruimtelijke analyse van optimale inpassing voor mobiliteit, met daarin benoemd de kansen voor vrachtverkeer (zie ook TRA1.1). Daarbij is het reduceren van het aantal stops (van en naar de bestemming) leidinggevend. - Plattegrond en/of overzichtskaart | G120: ='Invulscherm 1 - Weging'!F98 -> 1.097560976 | J120: =IF(O120=1,G120,0) -> 0 | K120: 0 | L120: 0 | M120: 0 | N120: =IF(O120=1,J120,0) -> 0 | O120: 0
A121: 2-TRA4.1 | D121: ='Invulscherm 1 - Weging'!H98 -> relevant | E121: 3 - In het ontwerp wordt aantoonbaar rekening gehouden met de in de introductie genoemde ontwerpaspecten voor vrachtvervoer. 4 - De toegang voor vrachtwagens wordt beperkt tot die wegen die strikt noodzakelijk zijn voor de bevoorrading van bedrijven. | F121: - Er wordt in het ontwerp aantoonbaar rekening gehouden met doorstroming, hoeveelheid asfalt en multifunctioneel ruimtegebruik. - In het ontwerp is aantoonbaar rekening onderscheid te maken tussen wegen voor vrachtverkeer (bevoorrading) en andere wegen (woon-werk verkeer etc.). | G121: ='Invulscherm 1 - Weging'!I98 -> 0.7317073171 | J121: 0 | K121: 0 | L121: 0 | M121: 0 | N121: 0 | O121: 0
A122: 1-TRA4.2 | C122: ='Invulscherm 1 - Weging'!B99 -> Maatregelen voor het minimaliseren van hinder door vrachtverkeer | D122: ='Invulscherm 1 - Weging'!E99 -> extra belangrijk | E122: 1 - Er wordt een plan opgesteld om hinder ten gevolge van vrachtverkeer te minimaliseren. Het plan bevat tenminste maatregelen ten aanzien van geluidsoverlast, luchtkwaliteit, verkeersveiligheid en trillingen. | F122: - Hinderplan | G122: ='Invulscherm 1 - Weging'!F99 -> 1.097560976 | J122: 0 | K122: =J122 -> 0 | L122: 0 | M122: 0 | N122: 0 | O122: 0
A123: 2-TRA4.2 | D123: ='Invulscherm 1 - Weging'!H99 -> relevant | E123: 2 - Maatregelen die hinder ten gevolge van vrachtverkeer kunnen verminderen worden geïmplementeerd in het ontwerp. | F123: - In het ontwerp zijn aantoonbaar maatregelen genomen uit het hinderplan. | G123: ='Invulscherm 1 - Weging'!I99 -> 0.7317073171 | J123: 0 | K123: =J123 -> 0 | L123: 0 | M123: 0 | N123: 0 | O123: 0
A124: 1-TRA4.3 | C124: ='Invulscherm 1 - Weging'!B100 -> Onderzoeken van alternatieven voor vrachtverkeer | D124: ='Invulscherm 1 - Weging'!E100 -> extra belangrijk | E124: 1 - Er wordt een onderzoek gedaan naar de mogelijkheden om vrachtvervoer (gedeeltelijk) te laten vervangen door scheeps- en/of treinvervoer. | F124: - Uit onderzoek blijkt dat de gekozen alternatieven voor wel- of geen vrachtverkeer optimaal zijn gekozen. Daarbij is minimaal rekening gehouden met de voorbeelden als beschreven in de introductie. | G124: ='Invulscherm 1 - Weging'!F100 -> 1.097560976 | J124: 0 | K124: =J124 -> 0 | L124: 0 | M124: 0 | N124: 0 | O124: 0
A125: TRA5 | B125: Integratie van transport | K125: =J125 -> 0
A126: 1-TRA5.1 | C126: ='Invulscherm 1 - Weging'!B102 -> Integratie van verkeerstromen / Modal Shift | D126: ='Invulscherm 1 - Weging'!E102 -> verplicht | E126: 1 - Er wordt een verkeersmodel opgesteld waaruit blijkt wat de te verwachten modal split is op en naar het bedrijventerrein. 2 - Ontwikkelingen die verkeersstromen (vervoerswijzen, verkeersintensiteiten en modal split) in de toekomst kunnen veranderen zijn onderzocht en in verband gebracht met het bedrijventerrein en de omgeving. 3 - Er is een inventarisatie uitgevoerd waaruit blijkt hoe de weginfrastructuur rondom het bedrijventerrein eruit ziet. 4 - Er wordt een inventarisatie gemaakt van de benodigde bebording, bewegwijzering en bebakening om de navigatie van, naar en op het bedrijventerrein te vergemakkelijken. 5 - De resultaten van het onderzoek worden geïmplementeerd in een plan om de modal shitft te realiseren. | F126: - verkeersmodel - onderzoek minimaal onderzocht: - Hoe gaat het transport plaatsvinden? - Is mobiliteit überhaupt wel nodig?(bijv. alternatief door bediening op afstand) - Lokale oplossingen mogelijk (niet individueel uit verre landen) - Is het mogelijk om alleen grondstoffen binnen te halen en assemblage op het terrein te doen? - Zijn samenwerkingen op het terrein mogelijk? (afval=voedsel) - plan voor realisatie modal shift (lange termijn) | G126: ='Invulscherm 1 - Weging'!F102 -> 0.7317073171 | J126: 0 | K126: =J126 -> 0 | L126: 0 | M126: 0 | N126: 0 | O126: 0
A127: 2-TRA5.2 | C127: ='Invulscherm 1 - Weging'!B103 -> Aansluiting infrastructuur op de omgeving | D127: ='Invulscherm 1 - Weging'!H103 -> relevant | E127: 1 - De weginfrastructuur wordt zodanig ontworpen dat deze naadloos aansluit op infrastructuur buiten de grenzen van het bedrijventerrein. 2 - Het ontwerp van weginfrastructuur is erop gericht om gemotoriseerd van non-gemotoriseerd verkeer te scheiden, waarbij autoverkeer (woon-werk) en vrachtverkeer ook waar mogelijk worden gescheiden. 3 - Het ontwerp van weginfrastructuur houdt rekening met veranderingen in verkeersaanbod op de lange termijn. | F127: - ontwerp | G127: ='Invulscherm 1 - Weging'!I103 -> 0.7317073171 | J127: 0 | K127: =J127 -> 0 | L127: 0 | M127: 0 | N127: 0 | O127: 0
A128: TOTAAL SCORE | K128: =SUM(K103+K79+K63+K47+K31+K4)/100 -> 0
C142: - Moet er in hoofdstuk 6 iets bij over parkeren? Of zit dit al in één van de criteria?

Sheet BRONNEN (hidden)
D1: 1 - Voorbereidingsfase | E1: 2- Ontwerpfase | F1: 3 - CHECK - Realisatie
A2: 1. Management | C2: MAN | G2: Koppeling met: | H2: BREEAM Communities? | I2: Afkorting BREEAM Communities | J2: Aanvulling vereist (andere meters)? | K2: Toelichting
A3: 1.1 Markt | C3: MAN1
B4: 1.1.1 Marktanalyse (marktvraag & welke eisen stelt markt aan de locatie) | C4: MAN1.1 | D4: DZM Gent 1.1.2 d | H4: nee | I4: - | J4: ja | K4: Ontwikkelen op basis Blue Gate/Logistiek Park Moerdijk/Logistiek Park Schijns
B5: 1.1.2 Effect marktanalyse op ruimtelijk ontwerp | C5: MAN1.2 | H5: nee | I5: - | J5: ja | K5: Ontwikkelen op basis Blue Gate/Logistiek Park Moerdijk/Logistiek Park Schijns
B6: 1.1.3 Duurzaamheidsambitie passend bij markt | C6: MAN1.3 | H6: nee | I6: - | J6: ja | K6: Ontwikkelen op basis Blue Gate/Logistiek Park Moerdijk/Logistiek Park Schijns
B7: 1.1.4 MVO / CSR (duurzame bedrijfvoering) | C7: MAN1.5 | D7: BREEAM-NL Geb MAN6 | E7: minder belangrijk | F7: = minder belangrijk | G7: relevant
A8: 1.2 Procesaanpak | C8: MAN2 | D8: BREEAM-NL Geb MAN1 & MAN5, instr. DZM Scholenb. 1.1a & 1.1b, LNE Wijken BEH 02.01, DZM Gent 1.2 c
B9: 1.2.1 Gebiedsvisie & duurzaamheidsambitie | C9: MAN2.1 | D9: LNE Wijken BEH 01.02 | E9: extra belangrijk | F9: = extra belangrijk | G9: verplicht | K9: Bij elke fase duurzaamheidsambitie meetbaar testen / communiceren
A10: 1.3 Draagvlak / Stakeholder management | C10: MAN3
B11: 1.3.1 Stakeholder analyse | C11: MAN3.1 | D11: instr. DZM Scholenb. 1.2b, BREEAM-NL Geb SYN4 | I11: GO1 | J11: nee | K11: -
B12: 1.3.2 Klanteisen en garanderen betrokkenheid | C12: MAN3.2 | I12: GO2 | J12: nee | K12: -
B13: 1.3.3 Herziening ontwerp aan de hand van stakeholder analyse | C13: MAN3.3 | I13: GO3 | J13: nee | K13: -
A14: 1.4 Parkmanagement | C14: MAN4 | H14: nee | I14: - | J14: ja | K14: Ontwikkelen op basis Blue Gate/Logistiek Park Moerdijk/Logistiek Park Schijns
B15: 1.4.1 Collectieve financieringsmogelijkheden | C15: MAN4.1 | D15: BREEAM-NL GEB SYN4 | H15: nee | I15: - | J15: ja | K15: Ontwikkelen op basis Blue Gate/Logistiek Park Moerdijk/Logistiek Park Schijns
B16: 1.4.2 Collectieve energie (inkoop en opwekken) | C16: MAN4.2 | G16: 4.1 / 4.3 | H16: nee | I16: - | J16: ja
B17: 1.4.3 Collectief afvalmanagement | C17: MAN4.3 | G17: 4.4 | H17: ja | I17: RE06 | J17: ja | K17: Niet voldoende gericht op collectief afvalbeheer.
B18: 1.4.4 Veiligheid | C18: MAN4.4 | G18: 5.1 | H18: nee | I18: - | J18: ja | K18: Samen regelen / 1 camera --> één centrale beveiliging.
B19: 1.4.5 Delen/Lenen/ Ruilen / Keten daten | C19: MAN4.5
B20: 1.4.6 Lokaal voedsel | C20: MAN4.6 | H20: nee | I20: - | J20: ja | K20: Optioneel? / Is opgenomen in BREEAM-NL Gebiedsontwikkeling
A21: 1.5 Beheer | C21: MAN5
A22: 2. Sociaal en economisch welzijn | C22: SEW
A23: 2.1 Gezondheid | C23: SEW1 | H23: ja | I23: SE08 | J23: ja | K23: onvoldoende belicht in BREEAM Communities
B24: 2.1.1 Groen | C24: SEW1.1 | E24: 2-SEW1.1-1 - zelf 2-SEW1.1-2 - DESG 4.4 a 2-SEW1.1-3 - DESG 4.4 b | H24: ja | I24: SE11 | J24: mogelijk
B25: 2.1.2 Klimaat maatregelen | C25: SEW1.2 | D25: 1SEW1.2-1 - BNLGO RO12 | E25: 2-SEW1.2-1 - IDS 2.3.2.b 2-SEW1.2-2 - DESG 4.3.2 a 2-SEW1.2-3 - BNLGO RO12 | H25: Ja | I25: SE10 / SE3 / SE13 / LE06 | J25: ja | K25: + waterberging / infiltratie / % verharding etc.
A26: 2.2 Fysisch Milieu | C26: SEW2
B27: 2.2.1 Geluidsoverlast | C27: SEW2.1 | E27: 2SEW2.1-1en2 - BNLGO KLI7 | H27: Ja | I27: SE04 | J27: mogelijk | K27: van & naar omgeving!
B28: 2.2.2 Lichthinder | C28: SEW2.2 | E28: 2-SEW2.2 - BNLNR POL7 | H28: Ja | I28: SE16 | J28: mogelijk
B29: 2.2.3 Luchtkwaliteit | C29: SEW2.3 | E29: 2-SEW2.3 - betere formuleren
B30: 2.2.4 Overige fysische milieu aspecten | C30: SEW2.4 | E30: 2-SEW2.4 - DESG 8.1 (windhinder)
A31: 2.3 Lokale economie | C31: SEW3
B32: 2.3.1 Economische impactstudie / werkgelegenheid | C32: SEW3.1 | D32: 1-SEW3.1 - BNLGO W&W4 | H32: ja | I32: SE01 | J32: nee
B33: 2.3.2 Social return | C33: SEW3.2 | D33: 1-SEW3.2 | G33: belangrijk?? | H33: ja | I33: SE17 / SE01 | J33: nee
A34: 2.4 Veiligheid | C34: SEW4 | D34: 1-SEW4 | E34: 2-SEW4 | G34: nood-/hulpdiensten | K34: Hoe richt je dit in? Voldoet aan politiekeurmerk veilig wonen
A35: 2.5 Voorzieningen (gym/kinderdagverblijf/supermarkt, etc.) | C35: SEW5 | D35: 1-SEW5 | K35: Niet allemaal langs supermarkt rijden!
A36: 2.6 Verweving met omgeving | C36: SEW6
A37: 3. Infrastructuur & Openbare ruimte | C37: IOR | H37: ja | I37: RE04
A38: 3.1 Infrastructuur en Gebouwen | C38: IOR1
B39: Analyse houdbaarheid bestaande bebouwing | C39: IOR1.1 | D39: 1-IOR1.1 -1/2/3- zelf bepaald
B40: Analyse houdbaarheid bestaande infrastructuur | C40: IOR1.2 | D40: 1-IOR1.2 -1/2 - zelf bepaald
B41: Hergebruik bestaande bebouwing | C41: IOR1.3 | E41: 2-IOR1.3-1 - zelf bepaald 2-IOR1.3-2 - zelf bepaald
B42: Hergebruik bestaande infrastructuur | C42: IOR1.4 | E42: 2-IOR-1.4-1 - zelf bepaald 2-IOR-1.4-2 zelf bepaald
B43: Nieuwbouw | C43: IOR1.5 | E43: 2-IOR1.1 -1- BNLNR ENE1 2-IOR1.1-2- IDS 6.1.1.a 2-IOR1.1-3 IDS 6.1.2.b
A44: 3.2 Openbare ruimte | C44: IOR2
B45: Materiaalgebruik | C45: IOR2.1 | E45: 2-IOR2.1-1/2 BNLGO BR04/05
B46: Onderhoud | C46: IOR2.2 | E46: 2-IOR2.2 zelf bepaald 3-IOR2.2 zelf bepaald
B47: Kabels & Leidingen / Nutsvoorzieningen | C47: IOR2.3 | E47: 2-IOR2.3 1/2/3 zelf bepaald
B48: Flexibiliteit | C48: IOR2.4 | E48: 2-IOR2.4 -1/2- BRNLNR MAT 8
A49: 4. Bronnen & Energie (terrein) | C49: BRE
A50: 4.1 Energie | C50: BRE1 | D50: 1-BRE1 - BNLGO BRO 1, DESG 7.2 | E50: 2-BRE1-1tm5 - BNLGO BRO 2 2-BRE1-6 - zelf | H50: ja | I50: RE01, RE03 | J50: ja | K50: andere meters checken
A51: 4.2 Afval & Materiaalbeheer | C51: BRE2 | E51: 2-BRE1-1 - DESG 4.5 2-BRE1-2 - IDS 6.2.3.b
A52: 4.3 Water | C52: BRE3 | D52: 1-BRE3 - DESG 5.3 a, IDS 5.1.a | E52: 2-BRE3-1en2 - BNLGO BRO 3 2-BRE3-3 - DESG 5.2 a 2-BRE3-4 - DESG 5.5.1 b 2-BRE3-5 - DESG 5.5.2 c | G52: 2.1.2, (afvalwater / hemelwater / drinkwater) | H52: ja | I52: RE01, LE06 | J52: ja | K52: andere meters checken
A53: 5. Ecologie & duurzaam landgebruik | C53: EDL
A54: 5.1 Karakter van het landschap / Gebiedsentiteit | C54: EDL1 | D54: 1-EDL1 | H54: ja | I54: LE05 / SE14 | J54: nee
A55: 5.2 Positionering plots / stedenbouwkundige invulling / Landgebruik | C55: EDL2 | D55: 1-EDL2 | H55: ja/nee | I55: LE02 | J55: ja | K55: Ontwikkelen op basis Blue Gate/Logistiek Park Moerdijk/Logistiek Park Schijns
B56: 5.2.1 Overstromingsgevaar | C56: EDL2.1
A57: 5.3 Ecologie | C57: EDL3 | D57: 1-EDL3 | H57: ja | I57: LE01 | J57: ja | K57: alleen van toepassing indien niet MER-plichtig / koppelen biodiversiteitstoets
B58: Vergroening | C58: EDL3.1 | E58: 2-EDL3.2
B59: Biodiversiteit | C59: EDL3.2 | D59: 1-EDL3.1
A60: 5.4 Bouwrijp maken (grondbalans / peilhoogten) | C60: EDL4 | D60: 1-EDL4 | E60: 2-EDL4 | H60: nee | I60: - | J60: ja | K60: Ontwikkelen op basis Blue Gate/Logistiek Park Moerdijk/Logistiek Park Schijns
A61: 5.5 Bodemverontreiniging | C61: EDL5 | D61: 1-EDL5 | E61: 2-EDL5 | H61: nee | I61: - | J61: ja | K61: Aansluiten op: OVAM-tool
A62: 6. Transport | C62: TRA
A63: 6.1 Verkeers- en transportstromingen. | B63: Non-gemotoriseerd verkeer | C63: TRA1 | D63: BNLGO RO08 DESG3.2.1a | E63: BNLGO RO08 BNLNR TRA3a/TRA4 IDS3.1.2.1c | H63: ja | I63: TM01 | J63: ja
A64: 6.2 | B64: Openbaar vervoer | C64: TRA2 | D64: BIUTRA003, IDS3.1.2.1d, DESG3.2.3a | E64: BIUTRA003, IDS3.1.2.1d, DESG3.2.3a
A65: 6.3 | B65: Autoverkeer | C65: TRA3 | D65: BNLNR TRA3a BIU TRA102 | E65: BNLNR TRA3a BIU TRA102 | H65: ja | I65: TM05 | J65: ja
A66: 6.4 | B66: Vrachtverkeer | C66: TRA4 | D66: DESG3.4a DESG3.5a DESG2.1.f / 3.4a | E66: DESG3.4a DESG3.5a DESG2.1.f / 3.4a | H66: nee | I66: - | J66: ja | K66: Ontwikkelen op basis Blue Gate/Logistiek Park Moerdijk/Logistiek Park Schijns
A67: 6.5 | B67: Integratie van transport | C67: TRA5 | D67: BCOM TM01 IDS3.1.1a LNE MOB03 DESG3.2.2a / BIU TRA004 | E67: BCOM TM01 IDS3.1.1a LNE MOB03 DESG3.2.2a / BIU TRA004 | H67: nee | I67: - | J67: ja | K67: Ontwikkelen op basis Blue Gate/Logistiek Park Moerdijk/Logistiek Park Schijns
B69: Legenda:
B70: Duurzaamheidsmeter Economische Sites Gent | C70: DESG
B71: BREEAM-NL Gebiedsontwikkeling | C71: BNLGO
B72: BREEAM-NL Nieuwbouw en Renovatie | C72: BNLNR
B73: Instrument voor Duurzame Scholenbouw | C73: IDS
H75: Dubbeling:
H76: Wel economische sites maar niet in scope:

Sheet Blad2 (hidden)
A1: Consultatieplan | F1: Ja | G1: Planfase | H1: Nieuwbouw | I1: Projectgrens
A2: Consultatie en marktbenadering | F2: Nee | G2: Realisatiefase | H2: Renovatie | I2: Systeemgrens
A3: Beoordeling ontwerp | F3: Aangepast | G3: Beide | H3: In-use
H4: Nieuwbouw & Renovatie
A5: Management van faciliteiten | H5: Alledrie
A7: Economische impact
A8: Lokale demografische samenstelling | F8: Management
A9: Overstromingsrisico | F9: Sociaal en economisch welzijn
A10: Geluidshinder | F10: Bronnen en energie
A11: Voorzieningsniveau | F11: Ggebiedsklimaat (Landgebrui & Ecologie)
A12: Publiek domein | F12: Transport en mobiliteit
F13: Gebouwen
A14: Utiliteiten | F14: Overig
A15: Klimaatadaptatie
A16: Groene infrastructuur
A17: Lokaal parkeren
A18: Overstromingsrisicomanagement
A19: Lokale inpassing
A20: Inclusive design
A21: Lichtvervuiling
A22: Arbeid en vaardigheden
A24: Energiestrategie
A25: Bestaande gebouwen en infrastructuur
A26: Waterstrategie
A27: Duurzame gebouwen
A28: Lage impact materialen
A29: Efficiënt gebruik van hulpbronnen
A30: Emissies door verkeer
A32: Ecologische strategie
A33: Ruimtelijke ontwikkeling
A34: Watervervuiling
A35: Verrijking van ecologische waarde
A36: Landschap
A37: Benutting van regenwater
A39: Beoordeling transport
A40: Veilig en aantrekkelijk straatbeeld
A41: Fietsnetwerk
A42: Toegang tot openbaar vervoer
A43: Faciliteiten voor fietsers
A44: Faciliteiten voor OV-reizigers

Sheet Criteria-Status-Tabel
D2: Standaard Status
D3: Nieuw terrein | H3: Bestaand terrein
D4: Productiegericht / gemengd | E4: Kantoor terrein | F4: Vrijetijd terrein | G4: Logistiek | H4: Productiegericht / gemengd | I4: Kantoor terrein | J4: Vrijetijd terrein | K4: Logistiek
A5: MAN | B5: 1. MANAGEMENT (20%) | D5: 11 | E5: 12 | F5: 13 | G5: 14 | H5: 21 | I5: 22 | J5: 23 | K5: 24
A6: MAN1 | B6: Markt
A7: 1-MAN1.1 | C7: Marktanalyse (marktvraag & welke eisen stelt markt aan de locatie) | D7: extra belangrijk | E7: extra belangrijk | F7: extra belangrijk | G7: extra belangrijk | H7: relevant | I7: relevant | J7: relevant | K7: relevant
A8: 1-MAN1.2 | C8: Effect marktanalyse op ruimtelijk ontwerp | D8: extra belangrijk | E8: extra belangrijk | F8: extra belangrijk | G8: extra belangrijk | H8: relevant | I8: relevant | J8: relevant | K8: relevant
A9: 1-MAN1.3 | C9: Maatschappelijk kosten baten (MKBA) | D9: extra belangrijk | E9: extra belangrijk | F9: extra belangrijk | G9: extra belangrijk | H9: relevant | I9: relevant | J9: relevant | K9: relevant
A10: 2-MAN1.4 | C10: Maatschappelijk Verantwoord Ondernemen (MVO) | D10: relevant | E10: relevant | F10: relevant | G10: relevant | H10: relevant | I10: relevant | J10: relevant | K10: relevant
A11: MAN2 | B11: Proces
A12: 1-MAN2.1 | C12: Procesaanpak | D12: verplicht | E12: verplicht | F12: verplicht | G12: verplicht | H12: verplicht | I12: verplicht | J12: verplicht | K12: verplicht
A13: 2-MAN2.1 | D13: relevant | E13: relevant | F13: relevant | G13: relevant | H13: relevant | I13: relevant | J13: relevant | K13: relevant | L13: 1
A14: 1-MAN2.2 | C14: ='Invulscherm 1 - Weging'!C15 -> Uitgifteproces | D14: relevant | E14: relevant | F14: relevant | G14: relevant | H14: minder belangrijk | I14: minder belangrijk | J14: minder belangrijk | K14: minder belangrijk
A15: 1-MAN2.3 | C15: Gebiedsvisie & duurzaamheidsambitie | D15: verplicht | E15: verplicht | F15: verplicht | G15: verplicht | H15: verplicht | I15: verplicht | J15: verplicht | K15: verplicht
A16: 2-MAN2.3 | D16: verplicht | E16: verplicht | F16: verplicht | G16: verplicht | H16: verplicht | I16: verplicht | J16: verplicht | K16: verplicht
A17: MAN3 | B17: Draagvlak / Stakeholder management
A18: 1-MAN3.1 | C18: ='Invulscherm 1 - Weging'!C18 -> Stakeholder analyse + herziening ontwerp | D18: verplicht | E18: verplicht | F18: verplicht | G18: verplicht | H18: verplicht | I18: verplicht | J18: verplicht | K18: verplicht
A19: 2-MAN3.1 | D19: relevant | E19: relevant | F19: relevant | G19: relevant | H19: minder belangrijk | I19: minder belangrijk | J19: minder belangrijk | K19: minder belangrijk
A20: 1-MAN3.2 | C20: Klantwensen en garanderen van betrokkenheid | D20: verplicht | E20: verplicht | F20: verplicht | G20: verplicht | H20: relevant | I20: relevant | J20: relevant | K20: relevant
A21: 2-MAN3.2 | D21: verplicht | E21: verplicht | F21: verplicht | G21: verplicht | H21: relevant | I21: relevant | J21: relevant | K21: relevant
A22: MAN4 | B22: Parkmanagement
A23: 1-MAN4.1 | C23: Collectieve financiering | D23: relevant | E23: relevant | F23: relevant | G23: relevant | H23: relevant | I23: relevant | J23: relevant | K23: relevant
A24: 2-MAN4.2 | C24: Collectieve energie inkoop | D24: extra belangrijk | E24: relevant | F24: relevant | G24: relevant | H24: relevant | I24: relevant | J24: relevant | K24: relevant
A25: 1-MAN4.3 | C25: Collectief afvalmanagement | D25: verplicht | E25: verplicht | F25: verplicht | G25: verplicht | H25: relevant | I25: relevant | J25: relevant | K25: relevant
A26: 2-MAN4.4 | C26: ='Invulscherm 1 - Weging'!C24 -> Collectief beheer van groen | D26: extra belangrijk | E26: extra belangrijk | F26: extra belangrijk | G26: extra belangrijk | H26: relevant | I26: relevant | J26: relevant | K26: relevant
A27: 2-MAN4.5 | C27: ='Invulscherm 1 - Weging'!C25 -> Collectieve mobiliteit | D27: extra belangrijk | E27: extra belangrijk | F27: extra belangrijk | G27: extra belangrijk | H27: relevant | I27: relevant | J27: relevant | K27: relevant
A28: 2-MAN4.6 | C28: Beveiliging | D28: relevant | E28: relevant | F28: relevant | G28: relevant | H28: relevant | I28: relevant | J28: relevant | K28: relevant
A29: 2-MAN4.7 | C29: Delen/Lenen/ Ruilen | D29: relevant | E29: relevant | F29: relevant | G29: relevant | H29: relevant | I29: relevant | J29: relevant | K29: relevant
A30: 2-MAN4.8 | C30: Lokaal voedsel | D30: relevant | E30: relevant | F30: relevant | G30: relevant | H30: relevant | I30: relevant | J30: relevant | K30: relevant
A31: 2-MAN4.9 | C31: ='Invulscherm 1 - Weging'!C29 -> Overgang van ontwikkelaar naar beheerder | D31: relevant | E31: relevant | F31: relevant | G31: relevant | H31: relevant | I31: relevant | J31: relevant | K31: relevant
A32: SEW | B32: 2. SOCIAAL & ECONOMISCH WELZIJN (15%)
A33: SEW1 | B33: Fysisch Milieu & Gezondheid
A34: 2-SEW1.1 | C34: Geluidsoverlast | D34: extra belangrijk | E34: relevant | F34: relevant | G34: extra belangrijk | H34: extra belangrijk | I34: relevant | J34: relevant | K34: extra belangrijk
A35: 2-SEW1.2 | C35: Lichthinder | D35: relevant | E35: relevant | F35: relevant | G35: relevant | H35: minder belangrijk | I35: minder belangrijk | J35: minder belangrijk | K35: minder belangrijk
A36: 2-SEW1.3 | C36: Luchtkwaliteit | D36: extra belangrijk | E36: relevant | F36: relevant | G36: relevant | H36: extra belangrijk | I36: relevant | J36: relevant | K36: relevant
A37: 2-SEW1.4 | C37: ='Invulscherm 1 - Weging'!C36 -> Geuroverlast | D37: extra belangrijk | E37: relevant | F37: relevant | G37: relevant | H37: relevant | I37: relevant | J37: relevant | K37: relevant
A38: SEW2 | B38: Lokale economie
A39: 1-SEW2.1 | C39: Economische impactstudie | D39: verplicht | E39: verplicht | F39: verplicht | G39: verplicht | H39: verplicht | I39: verplicht | J39: verplicht | K39: verplicht
A40: 1-SEW2.2 | C40: Lokale werkgelegenheid | D40: relevant | E40: relevant | F40: relevant | G40: relevant | H40: relevant | I40: relevant | J40: relevant | K40: relevant
A41: SEW3 | B41: Sociale veiligheid
A42: 1-SEW3.1 | C42: Nood- en hulpdiensten | D42: verplicht | E42: verplicht | F42: verplicht | G42: verplicht | H42: verplicht | I42: verplicht | J42: verplicht | K42: verplicht
A43: 2-SEW3.1 | D43: relevant | E43: relevant | F43: relevant | G43: relevant | H43: relevant | I43: relevant | J43: relevant | K43: relevant
A44: 2-SEW3.2 | C44: Sociale controle | D44: relevant | E44: relevant | F44: relevant | G44: relevant | H44: relevant | I44: relevant | J44: relevant | K44: relevant
A45: SEW4 | B45: Voorzieningen
A46: 1-SEW4.1 | C46: Voorzieningen | D46: verplicht | E46: verplicht | F46: verplicht | G46: verplicht | H46: verplicht | I46: verplicht | J46: verplicht | K46: verplicht
A47: 2-SEW4.1 | D47: relevant | E47: relevant | F47: extra belangrijk | G47: relevant | H47: relevant | I47: relevant | J47: extra belangrijk | K47: relevant
A48: IOR | B48: 3. INFRASTRUCTUUR & OPENBARE RUIMTE (15%)
A49: IOR1 | B49: ='Invulscherm 1 - Weging'!B47 -> Beleving
A50: 1-IOR1.1 | C50: ='Invulscherm 1 - Weging'!C48 -> Verweving met omgeving | D50: verplicht | E50: verplicht | F50: verplicht | G50: verplicht | H50: verplicht | I50: verplicht | J50: verplicht | K50: verplicht
A51: 2-IOR1.1 | D51: relevant | E51: relevant | F51: relevant | G51: relevant | H51: relevant | I51: relevant | J51: relevant | K51: relevant
A52: 1-IOR1.2 | C52: ='Invulscherm 1 - Weging'!C49 -> Beeldvorming | D52: relevant | E52: relevant | F52: relevant | G52: relevant | H52: minder belangrijk | I52: minder belangrijk | J52: minder belangrijk | K52: minder belangrijk
A53: 2-IOR1.2 | D53: relevant | E53: relevant | F53: relevant | G53: relevant | H53: relevant | I53: relevant | J53: relevant | K53: relevant
A54: IOR2 | B54: Infrastructuur & Gebouwen
A55: 1-IOR2.1 | C55: ='Invulscherm 1 - Weging'!C51 -> Bestaande bebouwing | D55: verplicht | E55: verplicht | F55: verplicht | G55: verplicht | H55: verplicht | I55: verplicht | J55: verplicht | K55: verplicht
A56: 2-IOR2.1 | C56: ='Invulscherm 1 - Weging'!C51 -> Bestaande bebouwing | D56: relevant | E56: relevant | F56: relevant | G56: relevant | H56: relevant | I56: relevant | J56: relevant | K56: relevant
A57: 1-IOR2.2 | C57: ='Invulscherm 1 - Weging'!C52 -> Bestaande infrastructuur | D57: verplicht | E57: verplicht | F57: verplicht | G57: verplicht | H57: verplicht | I57: verplicht | J57: verplicht | K57: verplicht
A58: 2-IOR2.2 | C58: ='Invulscherm 1 - Weging'!C52 -> Bestaande infrastructuur | D58: relevant | E58: relevant | F58: relevant | G58: relevant | H58: relevant | I58: relevant | J58: relevant | K58: relevant
A59: 2-IOR2.3 | C59: Nieuwbouw | D59: relevant | E59: relevant | F59: relevant | G59: relevant | H59: relevant | I59: relevant | J59: relevant | K59: relevant
A60: IOR3 | B60: Openbare ruimte
A61: 2-IOR3.1 | C61: Materiaalgebruik | D61: extra belangrijk | E61: extra belangrijk | F61: extra belangrijk | G61: extra belangrijk | H61: relevant | I61: relevant | J61: relevant | K61: relevant
A62: 2-IOR3.2 | C62: Onderhoud | D62: verplicht | E62: verplicht | F62: verplicht | G62: verplicht | H62: verplicht | I62: verplicht | J62: verplicht | K62: verplicht
A63: 2-IOR3.3 | C63: Kabels & Leidingen / Nutsvoorzieningen | D63: extra belangrijk | E63: extra belangrijk | F63: extra belangrijk | G63: extra belangrijk | H63: relevant | I63: relevant | J63: relevant | K63: relevant
A64: BRE | B64: 4. BRONNEN & ENERGIE (15%)
A65: BRE1 | B65: Energie
A66: 1-BRE1.1 | C66: Rationeel Energie Gebruik (REG) | D66: extra belangrijk | E66: verplicht | F66: verplicht | G66: verplicht | H66: extra belangrijk | I66: verplicht | J66: verplicht | K66: verplicht
A67: 2-BRE1.1 | D67: extra belangrijk | E67: relevant | F67: relevant | G67: relevant | H67: extra belangrijk | I67: relevant | J67: relevant | K67: relevant
A68: 1-BRE1.2 | C68: Restwarmte en -koude | D68: extra belangrijk | E68: verplicht | F68: verplicht | G68: verplicht | H68: extra belangrijk | I68: verplicht | J68: verplicht | K68: verplicht
A69: 2-BRE1.2 | D69: relevant | E69: relevant | F69: relevant | G69: relevant | H69: relevant | I69: relevant | J69: relevant | K69: relevant
A70: 1-BRE1.3 | C70: Duurzame energie | D70: verplicht | E70: verplicht | F70: verplicht | G70: verplicht | H70: verplicht | I70: verplicht | J70: verplicht | K70: verplicht
A71: 2-BRE1.3 | D71: relevant | E71: relevant | F71: relevant | G71: relevant | H71: relevant | I71: relevant | J71: relevant | K71: relevant
A72: 1-BRE1.4 | C72: ='Invulscherm 1 - Weging'!B64 -> SMART-Grid | D72: verplicht | E72: verplicht | F72: verplicht | G72: verplicht | H72: verplicht | I72: verplicht | J72: verplicht | K72: verplicht
A73: 2-BRE1.4 | D73: relevant | E73: relevant | F73: relevant | G73: relevant | H73: relevant | I73: relevant | J73: relevant | K73: relevant
A74: BRE2 | B74: Afval & Materiaalbeheer
A75: 1-BRE2.1 | C75: Afval & Materiaalbeheer | D75: extra belangrijk | E75: relevant | F75: relevant | G75: relevant | H75: extra belangrijk | I75: relevant | J75: relevant | K75: relevant
A76: 2-BRE2.1 | D76: relevant | E76: relevant | F76: relevant | G76: relevant | H76: relevant | I76: relevant | J76: relevant | K76: relevant
A77: BRE3 | B77: Water
A78: 1-BRE3.1 | C78: ='Invulscherm 1 - Weging'!B68 -> Water (water als bron) | D78: verplicht | E78: verplicht | F78: verplicht | G78: verplicht | H78: verplicht | I78: verplicht | J78: verplicht | K78: verplicht
A79: 2-BRE3.1 | D79: relevant | E79: relevant | F79: relevant | G79: relevant | H79: relevant | I79: relevant | J79: relevant | K79: relevant
A80: EDL | B80: 5. ECOLOGIE & DUURZAAM LANDGEBRUIK (20%)
A81: EDL1 | B81: Karakter
A82: 1-EDL1.1 | C82: Karakter van het landschap | D82: verplicht | E82: verplicht | F82: verplicht | G82: verplicht | H82: verplicht | I82: verplicht | J82: verplicht | K82: verplicht | L82: 1
A83: 2-EDL1.1 | D83: relevant | E83: relevant | F83: relevant | G83: relevant | H83: minder belangrijk | I83: minder belangrijk | J83: minder belangrijk | K83: minder belangrijk
A84: EDL2 | B84: Landgebruik
A85: 1-EDL2.1 | C85: Positionering & landgebruik | D85: relevant | E85: relevant | F85: relevant | G85: relevant | H85: minder belangrijk | I85: minder belangrijk | J85: minder belangrijk | K85: minder belangrijk
A86: 2-EDL2.1 | D86: relevant | E86: relevant | F86: relevant | G86: relevant | H86: minder belangrijk | I86: minder belangrijk | J86: minder belangrijk | K86: minder belangrijk
A87: 1-EDL2.2 | C87: Flexibiliteit in tijdelijke en definitieve inrichting | D87: verplicht | E87: verplicht | F87: verplicht | G87: verplicht | H87: verplicht | I87: verplicht | J87: verplicht | K87: verplicht
A88: 2-EDL2.2 | D88: relevant | E88: relevant | F88: relevant | G88: relevant | H88: relevant | I88: relevant | J88: relevant | K88: relevant
A89: 1-EDL2.3 | C89: ='Invulscherm 1 - Weging'!C76 -> Hittestress | D89: relevant | E89: relevant | F89: relevant | G89: relevant | H89: relevant | I89: relevant | J89: relevant | K89: relevant
A90: 2-EDL2.3 | D90: relevant | E90: relevant | F90: relevant | G90: relevant | H90: relevant | I90: relevant | J90: relevant | K90: relevant
A91: 2-EDL2.4 | C91: Bouwrijp maken (grondbalans / peilhoogten) | D91: relevant | E91: relevant | F91: relevant | G91: relevant | H91: minder belangrijk | I91: minder belangrijk | J91: minder belangrijk | K91: minder belangrijk
A92: 1-EDL2.5 | C92: Bodemverontreiniging | D92: relevant | E92: relevant | F92: relevant | G92: relevant | H92: relevant | I92: relevant | J92: relevant | K92: relevant
A93: 2-EDL2.5 | D93: relevant | E93: relevant | F93: relevant | G93: relevant | H93: relevant | I93: relevant | J93: relevant | K93: relevant
A94: EDL3 | B94: Ecologie & biodiversiteit
A95: 1-EDL3.1 | C95: Ecologie & biodiversiteit | D95: verplicht | E95: verplicht | F95: verplicht | G95: verplicht | H95: verplicht | I95: verplicht | J95: verplicht | K95: verplicht
A96: 2-EDL3.1 | D96: relevant | E96: relevant | F96: relevant | G96: relevant | H96: relevant | I96: relevant | J96: relevant | K96: relevant
A97: 1-EDL3.2 | C97: Abiotische structuren | D97: verplicht | E97: verplicht | F97: verplicht | G97: verplicht | H97: verplicht | I97: verplicht | J97: verplicht | K97: verplicht
A98: 2-EDL3.2 | D98: relevant | E98: relevant | F98: relevant | G98: relevant | H98: relevant | I98: relevant | J98: relevant | K98: relevant | L98: 1
A99: 2-EDL3.3 | C99: Vergroening | D99: verplicht | E99: verplicht | F99: verplicht | G99: verplicht | H99: verplicht | I99: verplicht | J99: verplicht | K99: verplicht
A100: EDL4 | B100: Water
A101: 1-EDL4.1 | C101: ='Invulscherm 1 - Weging'!C84 -> Hoogwaterbescherming & klimaatadaptatie | D101: verplicht | E101: verplicht | F101: verplicht | G101: verplicht | H101: verplicht | I101: verplicht | J101: verplicht | K101: verplicht
A102: 2-EDL4.1 | D102: relevant | E102: relevant | F102: relevant | G102: relevant | H102: relevant | I102: relevant | J102: relevant | K102: relevant
A103: 2-EDL4.2 | C103: Waterkwaliteit | D103: relevant | E103: relevant | F103: relevant | G103: relevant | H103: relevant | I103: relevant | J103: relevant | K103: relevant
A104: TRA | B104: 6. TRANSPORT (15%)
A105: TRA1 | B105: Non-gemotoriseerd verkeer
A106: 1-TRA1.1 | B106: Inpassing voor fiets- en voetgangersverkeer | D106: verplicht | E106: verplicht | F106: verplicht | G106: verplicht | H106: verplicht | I106: verplicht | J106: verplicht | K106: verplicht
A107: 2-TRA1.1 | D107: relevant | E107: relevant | F107: relevant | G107: relevant | H107: minder belangrijk | I107: minder belangrijk | J107: minder belangrijk | K107: minder belangrijk
A108: 1-TRA1.2 | B108: Stimuleren fiets- en voetgangersverkeer | D108: verplicht | E108: verplicht | F108: verplicht | G108: verplicht | H108: verplicht | I108: verplicht | J108: verplicht | K108: verplicht
A109: 2-TRA1.2 | D109: relevant | E109: relevant | F109: relevant | G109: relevant | H109: relevant | I109: relevant | J109: relevant | K109: relevant
A110: TRA2 | B110: Openbaar vervoer
A111: 1-TRA2.1 | B111: Stimuleren van openbaar & collectief vervoer | D111: relevant | E111: extra belangrijk | F111: extra belangrijk | G111: relevant | H111: relevant | I111: relevant | J111: relevant | K111: relevant
A112: 2-TRA2.1 | D112: relevant | E112: extra belangrijk | F112: extra belangrijk | G112: relevant | H112: relevant | I112: relevant | J112: relevant | K112: relevant
A113: TRA3 | B113: Autoverkeer
A114: 1-TRA3.1 | B114: ='Invulscherm 2 - Scores'!C113 -> Inpassing autoverkeer | D114: verplicht | E114: verplicht | F114: verplicht | G114: verplicht | H114: verplicht | I114: verplicht | J114: verplicht | K114: verplicht
A115: 2-TRA3.1 | D115: relevant | E115: relevant | F115: relevant | G115: relevant | H115: relevant | I115: relevant | J115: relevant | K115: relevant
A116: 1-TRA3.2 | B116: Het reduceren van autogebruik | D116: verplicht | E116: verplicht | F116: verplicht | G116: verplicht | H116: verplicht | I116: verplicht | J116: verplicht | K116: verplicht
A117: 2-TRA3.2 | D117: relevant | E117: relevant | F117: relevant | G117: relevant | H117: relevant | I117: relevant | J117: relevant | K117: relevant
A118: 1-TRA3.3 | B118: Het faciliteren van auto's op alternatieve energiebronnen | D118: verplicht | E118: verplicht | F118: verplicht | G118: verplicht | H118: verplicht | I118: verplicht | J118: verplicht | K118: verplicht
A119: 2-TRA3.3 | D119: relevant | E119: relevant | F119: relevant | G119: relevant | H119: relevant | I119: relevant | J119: relevant | K119: relevant
A120: TRA4 | B120: Vrachtverkeer
A121: 1-TRA4.1 | B121: ='Invulscherm 2 - Scores'!C120 -> Inpassing en doorstroming van vrachtverkeer | D121: extra belangrijk | E121: relevant | F121: relevant | G121: extra belangrijk | H121: extra belangrijk | I121: relevant | J121: relevant | K121: extra belangrijk
A122: 2-TRA4.1 | D122: relevant | E122: relevant | F122: relevant | G122: relevant | H122: relevant | I122: relevant | J122: relevant | K122: relevant
A123: 1-TRA4.2 | B123: ='Invulscherm 2 - Scores'!C122 -> Maatregelen voor het minimaliseren van hinder door vrachtverkeer | D123: extra belangrijk | E123: relevant | F123: relevant | G123: extra belangrijk | H123: extra belangrijk | I123: relevant | J123: relevant | K123: extra belangrijk
A124: 2-TRA4.2 | D124: relevant | E124: relevant | F124: relevant | G124: relevant | H124: relevant | I124: relevant | J124: relevant | K124: relevant
A125: 1-TRA4.3 | B125: ='Invulscherm 2 - Scores'!C124 -> Onderzoeken van alternatieven voor vrachtverkeer | D125: extra belangrijk | E125: relevant | F125: relevant | G125: extra belangrijk | H125: extra belangrijk | I125: relevant | J125: relevant | K125: extra belangrijk
A126: TRA5 | B126: Integratie van transport
A127: 1-TRA5.1 | B127: ='Invulscherm 2 - Scores'!C126 -> Integratie van verkeerstromen / Modal Shift | D127: verplicht | E127: verplicht | F127: verplicht | G127: verplicht | H127: verplicht | I127: verplicht | J127: verplicht | K127: verplicht
A128: 2-TRA5.2 | B128: ='Invulscherm 2 - Scores'!C127 -> Aansluiting infrastructuur op de omgeving | D128: relevant | E128: relevant | F128: relevant | G128: relevant | H128: relevant | I128: relevant | J128: relevant | K128: relevant
C143: - Moet er in hoofdstuk 6 iets bij over parkeren? Of zit dit al in één van de criteria?

Sheet Blad1 (hidden)
D4: = niet van toepassing (nvt) | G4: relevant | H4: = relevant
D6: = extra belangrijk | G6: verplicht | H6: = verplicht
